Workbook

Sheet Main
B10: 2019-07-23
B12: Sheet No. | C12: Template Name | D12: Summary
B13: 1 | C13: Future Intra | D13: For Intraday trading in F&O segment
B14: 2 | C14: Cash Intra | D14: For Intraday trading in cash market segment
B15: 3 | C15: Mid-cap Intra | D15: For Intraday trading in Mid-cap stocks
B16: 4 | C16: Bulk Deals | D16: Reveals Bulk Deals carried on NSE & BSE
B17: 5 | C17: Call Tracker
K27: `

Sheet Future Intra
M5: Back to Main Page
A6: FOR INTRA DAY TRADING | L6: =Main!B10 -> 2019-07-23
A9: Sr.no | B9: Sector | C9: Scrip | D9: CLOSE RATE | E9: Pivot Point | F9: Supports | I9: Resistances
B10: Sector | D10: Point | E10: Point | F10: S1 | G10: S2 | H10: S3 | I10: R1 | J10: R2 | K10: R3 | L10: HIGH | M10: LOW | N10: OI | O10: % Change in OI
A11: 1 | B11: Index | C11: BANKNIFTY | D11: 29389.65 | E11: 29451.10 | F11: 29203.55 | G11: 29017.45 | H11: 28769.90 | I11: 29637.20 | J11: 29884.75 | K11: 30070.85 | L11: 29698.65 | M11: 29265 | N11: 1795740 | O11: -6.74%
A12: 2 | B12: Index | C12: NIFTY | D12: 11360.25 | E12: 11359.85 | F12: 11311.95 | G12: 11263.65 | H12: 11215.75 | I12: 11408.15 | J12: 11456.05 | K12: 11504.35 | L12: 11407.75 | M12: 11311.55 | N12: 19536300 | O12: -3.63%
A13: 3 | B13: Index | C13: NIFTYIT | D13: 15459.00 | E13: 15447.33 | F13: 15386.67 | G13: 15314.33 | H13: 15253.67 | I13: 15519.67 | J13: 15580.33 | K13: 15652.67 | L13: 15508 | M13: 15375 | N13: 16700 | O13: -0.30%
A14: 4 | B14: Cement | C14: ACC | D14: 1583.05 | E14: 1569.28 | F14: 1550.57 | G14: 1518.08 | H14: 1499.37 | I14: 1601.77 | J14: 1620.48 | K14: 1652.97 | L14: 1588 | M14: 1536.8 | N14: 2730000 | O14: -6.51%
A15: 5 | B15: Others | C15: ADANIENT | D15: 132.00 | E15: 131.85 | F15: 129.20 | G15: 126.40 | H15: 123.75 | I15: 134.65 | J15: 137.30 | K15: 140.10 | L15: 134.5 | M15: 129.05 | N15: 30616000 | O15: 3.94%
A16: 6 | B16: Others | C16: ADANIPORTS | D16: 407.20 | E16: 404.83 | F16: 399.97 | G16: 392.73 | H16: 387.87 | I16: 412.07 | J16: 416.93 | K16: 424.17 | L16: 409.7 | M16: 397.6 | N16: 16337500 | O16: 2.35%
A17: 7 | B17: Power | C17: ADANIPOWER | D17: 62.70 | E17: 62.02 | F17: 60.83 | G17: 58.97 | H17: 57.78 | I17: 63.88 | J17: 65.07 | K17: 66.93 | L17: 63.2 | M17: 60.15 | N17: 149140000 | O17: 16.59%
A18: 8 | B18: Automobile | C18: AMARAJABAT | D18: 618.95 | E18: 616.00 | F18: 608.05 | G18: 597.15 | H18: 589.20 | I18: 626.90 | J18: 634.85 | K18: 645.75 | L18: 623.95 | M18: 605.1 | N18: 1654800 | O18: -6.26%
A19: 9 | B19: Cement | C19: AMBUJACEM | D19: 216.50 | E19: 214.98 | F19: 212.67 | G19: 208.83 | H19: 206.52 | I19: 218.82 | J19: 221.13 | K19: 224.97 | L19: 217.3 | M19: 211.15 | N19: 19557500 | O19: 1.31%
A20: 10 | B20: Others | C20: APOLLOHOSP | D20: 1367.45 | E20: 1369.78 | F20: 1351.67 | G20: 1335.88 | H20: 1317.77 | I20: 1385.57 | J20: 1403.68 | K20: 1419.47 | L20: 1387.9 | M20: 1354 | N20: 1627000 | O20: 8.50%
A21: 11 | B21: Automobile | C21: APOLLOTYRE | D21: 172.40 | E21: 171.62 | F21: 169.88 | G21: 167.37 | H21: 165.63 | I21: 174.13 | J21: 175.87 | K21: 178.38 | L21: 173.35 | M21: 169.1 | N21: 12327000 | O21: 5.49%
A22: 12 | B22: Textile | C22: ARVIND | D22: 59.50 | E22: 58.48 | F22: 56.67 | G22: 53.83 | H22: 52.02 | I22: 61.32 | J22: 63.13 | K22: 65.97 | L22: 60.3 | M22: 55.65 | N22: 9324000 | O22: 2.78%
A23: 13 | B23: Automobile | C23: ASHOKLEY | D23: 76.45 | E23: 76.30 | F23: 75.15 | G23: 73.85 | H23: 72.70 | I23: 77.60 | J23: 78.75 | K23: 80.05 | L23: 77.45 | M23: 75 | N23: 85932000 | O23: -0.69%
A24: 14 | B24: FMCG | C24: ASIANPAINT | D24: 1404.65 | E24: 1390.68 | F24: 1370.02 | G24: 1335.38 | H24: 1314.72 | I24: 1425.32 | J24: 1445.98 | K24: 1480.62 | L24: 1411.35 | M24: 1356.05 | N24: 6310800 | O24: 1.27%
A25: 15 | B25: Pharma | C25: AUROPHARMA | D25: 569.90 | E25: 564.02 | F25: 551.78 | G25: 533.67 | H25: 521.43 | I25: 582.13 | J25: 594.37 | K25: 612.48 | L25: 576.25 | M25: 545.9 | N25: 16901000 | O25: -5.90%
A26: 16 | B26: Banking | C26: AXISBANK | D26: 729.75 | E26: 730.47 | F26: 721.03 | G26: 712.32 | H26: 702.88 | I26: 739.18 | J26: 748.62 | K26: 757.33 | L26: 739.9 | M26: 721.75 | N26: 52608000 | O26: 3.34%
A27: 17 | B27: Automobile | C27: BAJAJ-AUTO | D27: 2570.15 | E27: 2569.22 | F27: 2524.18 | G27: 2478.22 | H27: 2433.18 | I27: 2615.18 | J27: 2660.22 | K27: 2706.18 | L27: 2614.25 | M27: 2523.25 | N27: 2574500 | O27: 0.20%
A28: 18 | B28: Finance | C28: BAJAJFINSV | D28: 7185.00 | E28: 7280.57 | F28: 7004.43 | G28: 6823.87 | H28: 6547.73 | I28: 7461.13 | J28: 7737.27 | K28: 7917.83 | L28: 7556.7 | M28: 7100 | N28: 874625 | O28: 8.65%
A29: 19 | B29: Finance | C29: BAJFINANCE | D29: 3258.00 | E29: 3251.02 | F29: 3177.98 | G29: 3097.97 | H29: 3024.93 | I29: 3331.03 | J29: 3404.07 | K29: 3484.08 | L29: 3324.05 | M29: 3171 | N29: 6476500 | O29: 3.56%
A30: 20 | B30: Automobile | C30: BALKRISIND | D30: 731.85 | E30: 728.27 | F30: 722.58 | G30: 713.32 | H30: 707.63 | I30: 737.53 | J30: 743.22 | K30: 752.48 | L30: 733.95 | M30: 719 | N30: 2067200 | O30: 3.90%
A31: 21 | B31: Banking | C31: BANKBARODA | D31: 118.65 | E31: 118.05 | F31: 116.45 | G31: 114.25 | H31: 112.65 | I31: 120.25 | J31: 121.85 | K31: 124.05 | L31: 119.65 | M31: 115.85 | N31: 53973000 | O31: -0.22%
A32: 22 | B32: Banking | C32: BANKINDIA | D32: 80.90 | E32: 80.35 | F32: 79.45 | G32: 78.00 | H32: 77.10 | I32: 81.80 | J32: 82.70 | K32: 84.15 | L32: 81.25 | M32: 78.9 | N32: 31302000 | O32: -1.97%
A33: 23 | B33: FMCG | C33: BATAINDIA | D33: 1285.05 | E33: 1282.32 | F33: 1268.63 | G33: 1252.22 | H33: 1238.53 | I33: 1298.73 | J33: 1312.42 | K33: 1328.83 | L33: 1296 | M33: 1265.9 | N33: 2802800 | O33: 11.68%
A34: 24 | B34: Capital_Goods | C34: BEL | D34: 100.00 | E34: 98.88 | F34: 96.42 | G34: 92.83 | H34: 90.37 | I34: 102.47 | J34: 104.93 | K34: 108.52 | L34: 101.35 | M34: 95.3 | N34: 36336000 | O34: -1.93%
A35: 25 | B35: FMCG | C35: BERGEPAINT | D35: 308.85 | E35: 308.70 | F35: 306.75 | G35: 304.65 | H35: 302.70 | I35: 310.80 | J35: 312.75 | K35: 314.85 | L35: 310.65 | M35: 306.6 | N35: 2417800 | O35: 13.53%
A36: 26 | B36: Automobile | C36: BHARATFORG | D36: 435.65 | E36: 435.17 | F36: 429.33 | G36: 423.02 | H36: 417.18 | I36: 441.48 | J36: 447.32 | K36: 453.63 | L36: 441 | M36: 428.85 | N36: 8928000 | O36: 3.87%
A37: 27 | B37: Telecom | C37: BHARTIARTL | D37: 342.60 | E37: 340.87 | F37: 337.78 | G37: 332.97 | H37: 329.88 | I37: 345.68 | J37: 348.77 | K37: 353.58 | L37: 343.95 | M37: 336.05 | N37: 33884406 | O37: 1.59%
A38: 28 | B38: Capital_Goods | C38: BHEL | D38: 64.15 | E38: 63.75 | F38: 63.20 | G38: 62.25 | H38: 61.70 | I38: 64.70 | J38: 65.25 | K38: 66.20 | L38: 64.3 | M38: 62.8 | N38: 48532500 | O38: 3.29%
A39: 29 | B39: Pharma | C39: BIOCON | D39: 247.15 | E39: 244.25 | F39: 240.30 | G39: 233.45 | H39: 229.50 | I39: 251.10 | J39: 255.05 | K39: 261.90 | L39: 248.2 | M39: 237.4 | N39: 11754000 | O39: -6.42%
A40: 30 | B40: Automobile | C40: BOSCHLTD | D40: 15193.80 | E40: 15189.93 | F40: 15114.82 | G40: 15035.83 | H40: 14960.72 | I40: 15268.92 | J40: 15344.03 | K40: 15423.02 | L40: 15265.05 | M40: 15110.95 | N40: 158550 | O40: -0.88%
A41: 31 | B41: Oil_Gas | C41: BPCL | D41: 353.70 | E41: 349.95 | F41: 344.90 | G41: 336.10 | H41: 331.05 | I41: 358.75 | J41: 363.80 | K41: 372.60 | L41: 355 | M41: 341.15 | N41: 13507200 | O41: 0.12%
A42: 32 | B42: FMCG | C42: BRITANNIA | D42: 2735.30 | E42: 2738.32 | F42: 2712.43 | G42: 2689.57 | H42: 2663.68 | I42: 2761.18 | J42: 2787.07 | K42: 2809.93 | L42: 2764.2 | M42: 2715.45 | N42: 2489200 | O42: 0.87%
A43: 33 | B43: Technology | C43: CADILAHC | D43: 232.10 | E43: 229.03 | F43: 225.22 | G43: 218.33 | H43: 214.52 | I43: 235.92 | J43: 239.73 | K43: 246.62 | L43: 232.85 | M43: 222.15 | N43: 16076800 | O43: 0.97%
A44: 34 | B44: Pharma | C44: CANBK | D44: 265.00 | E44: 265.20 | F44: 260.85 | G44: 256.70 | H44: 252.35 | I44: 269.35 | J44: 273.70 | K44: 277.85 | L44: 269.55 | M44: 261.05 | N44: 10328000 | O44: -5.77%
A45: 35 | B45: Banking | C45: CASTROLIND | D45: 128.65 | E45: 127.30 | F45: 125.55 | G45: 122.45 | H45: 120.70 | I45: 130.40 | J45: 132.15 | K45: 135.25 | L45: 129.05 | M45: 124.2 | N45: 10094600 | O45: 8.64%
A46: 36 | B46: Oil_Gas | C46: CENTURYTEX | D46: 917.95 | E46: 910.05 | F46: 899.40 | G46: 880.85 | H46: 870.20 | I46: 928.60 | J46: 939.25 | K46: 957.80 | L46: 920.7 | M46: 891.5 | N46: 4163400 | O46: -5.37%
A47: 37 | B47: Textile | C47: CESC | D47: 759.00 | E47: 755.08 | F47: 742.12 | G47: 725.23 | H47: 712.27 | I47: 771.97 | J47: 784.93 | K47: 801.82 | L47: 768.05 | M47: 738.2 | N47: 1040800 | O47: 0.93%
A48: 38 | B48: Power | C48: CHOLAFIN | D48: 255.95 | E48: 257.77 | F48: 252.48 | G48: 249.02 | H48: 243.73 | I48: 261.23 | J48: 266.52 | K48: 269.98 | L48: 263.05 | M48: 254.3 | N48: 3547500 | O48: 3.96%
A49: 39 | B49: Finance | C49: CIPLA | D49: 531.00 | E49: 533.13 | F49: 524.97 | G49: 518.93 | H49: 510.77 | I49: 539.17 | J49: 547.33 | K49: 553.37 | L49: 541.3 | M49: 527.1 | N49: 11246000 | O49: 1.81%
A50: 40 | B50: Pharma | C50: COALINDIA | D50: 221.30 | E50: 220.58 | F50: 217.47 | G50: 213.63 | H50: 210.52 | I50: 224.42 | J50: 227.53 | K50: 231.37 | L50: 223.7 | M50: 216.75 | N50: 42354400 | O50: 11.17%
A51: 41 | B51: Others | C51: COLPAL | D51: 1162.10 | E51: 1165.62 | F51: 1149.48 | G51: 1136.87 | H51: 1120.73 | I51: 1178.23 | J51: 1194.37 | K51: 1206.98 | L51: 1181.75 | M51: 1153 | N51: 2251200 | O51: 2.26%
A52: 42 | B52: FMCG | C52: CONCOR | D52: 538.20 | E52: 535.93 | F52: 529.22 | G52: 520.23 | H52: 513.52 | I52: 544.92 | J52: 551.63 | K52: 560.62 | L52: 542.65 | M52: 526.95 | N52: 2847786 | O52: 4.95%
A53: 43 | B53: Others | C53: CUMMINSIND | D53: 724.90 | E53: 724.22 | F53: 717.78 | G53: 710.67 | H53: 704.23 | I53: 731.33 | J53: 737.77 | K53: 744.88 | L53: 730.65 | M53: 717.1 | N53: 2312100 | O53: -0.18%
A54: 44 | B54: Capital_Goods | C54: DABUR | D54: 422.75 | E54: 422.68 | F54: 416.87 | G54: 410.98 | H54: 405.17 | I54: 428.57 | J54: 434.38 | K54: 440.27 | L54: 428.5 | M54: 416.8 | N54: 14058750 | O54: 3.40%
A55: 45 | B55: FMCG | C55: DHFL | D55: 52.10 | E55: 52.37 | F55: 49.73 | G55: 47.37 | H55: 44.73 | I55: 54.73 | J55: 57.37 | K55: 59.73 | L55: 55 | M55: 50 | N55: 18168000 | O55: -8.67%
A56: 46 | B56: Finance | C56: DISHTV | D56: 33.80 | E56: 33.03 | F56: 31.87 | G56: 29.93 | H56: 28.77 | I56: 34.97 | J56: 36.13 | K56: 38.07 | L56: 34.2 | M56: 31.1 | N56: 128534000 | O56: 19.06%
A57: 47 | B57: Media | C57: DIVISLAB | D57: 1628.85 | E57: 1622.18 | F57: 1610.82 | G57: 1592.78 | H57: 1581.42 | I57: 1640.22 | J57: 1651.58 | K57: 1669.62 | L57: 1633.55 | M57: 1604.15 | N57: 2678000 | O57: -2.94%
A58: 48 | B58: Pharma | C58: DLF | D58: 179.00 | E58: 178.97 | F58: 176.03 | G58: 173.07 | H58: 170.13 | I58: 181.93 | J58: 184.87 | K58: 187.83 | L58: 181.9 | M58: 176 | N58: 38808000 | O58: 0.93%
A59: 49 | B59: Realty | C59: DRREDDY | D59: 2636.80 | E59: 2629.18 | F59: 2610.42 | G59: 2584.03 | H59: 2565.27 | I59: 2655.57 | J59: 2674.33 | K59: 2700.72 | L59: 2647.95 | M59: 2602.8 | N59: 3376750 | O59: -0.95%
A60: 50 | B60: Pharma | C60: EICHERMOT | D60: 17036.00 | E60: 17208.53 | F60: 16743.02 | G60: 16450.03 | H60: 15984.52 | I60: 17501.52 | J60: 17967.03 | K60: 18260.02 | L60: 17674.05 | M60: 16915.55 | N60: 441575 | O60: 2.37%
A61: 51 | B61: Automobile | C61: ENGINERSIN | D61: 107.85 | E61: 107.43 | F61: 105.92 | G61: 103.98 | H61: 102.47 | I61: 109.37 | J61: 110.88 | K61: 112.82 | L61: 108.95 | M61: 105.5 | N61: 9370200 | O61: -5.26%
A62: 52 | B62: Infrastructure | C62: EQUITAS | D62: 117.05 | E62: 115.67 | F62: 113.63 | G62: 110.22 | H62: 108.18 | I62: 119.08 | J62: 121.12 | K62: 124.53 | L62: 117.7 | M62: 112.25 | N62: 13600000 | O62: 5.07%
A63: 53 | B63: Finance | C63: ESCORTS | D63: 493.05 | E63: 494.98 | F63: 484.07 | G63: 475.08 | H63: 464.17 | I63: 503.97 | J63: 514.88 | K63: 523.87 | L63: 505.9 | M63: 486 | N63: 6160000 | O63: 4.79%
A64: 54 | B64: Automobile | C64: EXIDEIND | D64: 190.45 | E64: 188.92 | F64: 185.63 | G64: 180.82 | H64: 177.53 | I64: 193.73 | J64: 197.02 | K64: 201.83 | L64: 192.2 | M64: 184.1 | N64: 8784000 | O64: -0.35%
A65: 55 | B65: Automobile | C65: FEDERALBNK | D65: 95.75 | E65: 96.32 | F65: 94.23 | G65: 92.72 | H65: 90.63 | I65: 97.83 | J65: 99.92 | K65: 101.43 | L65: 98.4 | M65: 94.8 | N65: 46249000 | O65: 1.29%
A66: 56 | B66: Banking | C66: GAIL | D66: 138.45 | E66: 137.63 | F66: 136.17 | G66: 133.88 | H66: 132.42 | I66: 139.92 | J66: 141.38 | K66: 143.67 | L66: 139.1 | M66: 135.35 | N66: 35796474 | O66: 2.10%
A67: 57 | B67: Oil_Gas | C67: GLENMARK | D67: 428.30 | E67: 426.87 | F67: 421.63 | G67: 414.97 | H67: 409.73 | I67: 433.53 | J67: 438.77 | K67: 445.43 | L67: 432.1 | M67: 420.2 | N67: 6413000 | O67: -1.87%
A68: 58 | B68: Pharma | C68: GMRINFRA | D68: 14.70 | E68: 14.67 | F68: 14.53 | G68: 14.37 | H68: 14.23 | I68: 14.83 | J68: 14.97 | K68: 15.13 | L68: 14.8 | M68: 14.5 | N68: 190935000 | O68: 3.54%
A69: 59 | B69: Infrastructure | C69: GODREJCP | D69: 621.85 | E69: 622.63 | F69: 614.57 | G69: 607.28 | H69: 599.22 | I69: 629.92 | J69: 637.98 | K69: 645.27 | L69: 630.7 | M69: 615.35 | N69: 6058400 | O69: -0.47%
A70: 60 | B70: FMCG | C70: GRASIM | D70: 894.35 | E70: 885.82 | F70: 874.03 | G70: 853.72 | H70: 841.93 | I70: 906.13 | J70: 917.92 | K70: 938.23 | L70: 897.6 | M70: 865.5 | N70: 12963000 | O70: -0.25%
A71: 61 | B71: Cement | C71: HAVELLS | D71: 721.85 | E71: 717.97 | F71: 710.13 | G71: 698.42 | H71: 690.58 | I71: 729.68 | J71: 737.52 | K71: 749.23 | L71: 725.8 | M71: 706.25 | N71: 5886000 | O71: -1.97%
A72: 62 | B72: Others | C72: HCLTECH | D72: 1021.05 | E72: 1018.52 | F72: 1008.28 | G72: 995.52 | H72: 985.28 | I72: 1031.28 | J72: 1041.52 | K72: 1054.28 | L72: 1028.75 | M72: 1005.75 | N72: 10596600 | O72: 0.60%
A73: 63 | B73: Technology | C73: HDFC | D73: 2191.45 | E73: 2221.45 | F73: 2153.80 | G73: 2116.15 | H73: 2048.50 | I73: 2259.10 | J73: 2326.75 | K73: 2364.40 | L73: 2289.1 | M73: 2183.8 | N73: 27600000 | O73: -1.10%
A74: 64 | B74: Finance | C74: HDFCBANK | D74: 2304.60 | E74: 2314.63 | F74: 2276.77 | G74: 2248.93 | H74: 2211.07 | I74: 2342.47 | J74: 2380.33 | K74: 2408.17 | L74: 2352.5 | M74: 2286.8 | N74: 16962000 | O74: 1.92%
A75: 65 | B75: Banking | C75: HEROMOTOCO | D75: 2404.20 | E75: 2403.87 | F75: 2356.03 | G75: 2307.87 | H75: 2260.03 | I75: 2452.03 | J75: 2499.87 | K75: 2548.03 | L75: 2451.7 | M75: 2355.7 | N75: 2399800 | O75: 2.97%
A76: 66 | B76: Automobile | C76: HEXAWARE | D76: 358.70 | E76: 357.15 | F76: 354.05 | G76: 349.40 | H76: 346.30 | I76: 361.80 | J76: 364.90 | K76: 369.55 | L76: 360.25 | M76: 352.5 | N76: 1924500 | O76: -6.62%
A77: 67 | B77: Technology | C77: HINDALCO | D77: 202.35 | E77: 200.78 | F77: 196.57 | G77: 190.78 | H77: 186.57 | I77: 206.57 | J77: 210.78 | K77: 216.57 | L77: 205 | M77: 195 | N77: 34471500 | O77: -0.47%
A78: 68 | B78: Metals | C78: HINDPETRO | D78: 294.05 | E78: 291.90 | F78: 288.35 | G78: 282.65 | H78: 279.10 | I78: 297.60 | J78: 301.15 | K78: 306.85 | L78: 295.45 | M78: 286.2 | N78: 16041900 | O78: -1.80%
A79: 69 | B79: Oil_Gas | C79: HINDUNILVR | D79: 1685.85 | E79: 1690.62 | F79: 1657.93 | G79: 1630.02 | H79: 1597.33 | I79: 1718.53 | J79: 1751.22 | K79: 1779.13 | L79: 1723.3 | M79: 1662.7 | N79: 11591400 | O79: 2.80%
A80: 70 | B80: FMCG | C80: HINDZINC | D80: 225.40 | E80: 224.47 | F80: 219.18 | G80: 212.97 | H80: 207.68 | I80: 230.68 | J80: 235.97 | K80: 242.18 | L80: 229.75 | M80: 218.25 | N80: 7766400 | O80: 0.41%
A81: 71 | B81: Metals | C81: IBULHSGFIN | D81: 657.15 | E81: 646.63 | F81: 630.07 | G81: 602.98 | H81: 586.42 | I81: 673.72 | J81: 690.28 | K81: 717.37 | L81: 663.2 | M81: 619.55 | N81: 18431200 | O81: -4.00%
A82: 72 | B82: Finance | C82: ICICIBANK | D82: 412.85 | E82: 410.80 | F82: 407.30 | G82: 401.75 | H82: 398.25 | I82: 416.35 | J82: 419.85 | K82: 425.40 | L82: 414.3 | M82: 405.25 | N82: 87824000 | O82: 1.02%
A83: 73 | B83: Banking | C83: ICICIPRULI | D83: 376.10 | E83: 376.67 | F83: 371.68 | G83: 367.27 | H83: 362.28 | I83: 381.08 | J83: 386.07 | K83: 390.48 | L83: 381.65 | M83: 372.25 | N83: 4464000 | O83: -4.83%
A84: 74 | B84: Finance | C84: IDBI | D84: 33.55 | E84: 33.43 | F84: 32.82 | G84: 32.08 | H84: 31.47 | I84: 34.17 | J84: 34.78 | K84: 35.52 | L84: 34.05 | M84: 32.7 | N84: 28140000 | O84: -4.52%
A85: 75 | B85: Banking | C85: IDEA | D85: 10.80 | E85: 10.80 | F85: 10.65 | G85: 10.50 | H85: 10.35 | I85: 10.95 | J85: 11.10 | K85: 11.25 | L85: 10.95 | M85: 10.65 | N85: 430724000 | O85: 2.75%
A86: 76 | B86: Telecom | C86: IDFCFIRSTB | D86: 40.25 | E86: 40.07 | F86: 39.58 | G86: 38.92 | H86: 38.43 | I86: 40.73 | J86: 41.22 | K86: 41.88 | L86: 40.55 | M86: 39.4 | N86: 158712000 | O86: -1.47%
A87: 77 | B87: Banking | C87: IGL | D87: 316.40 | E87: 317.43 | F87: 313.97 | G87: 311.53 | H87: 308.07 | I87: 319.87 | J87: 323.33 | K87: 325.77 | L87: 320.9 | M87: 315 | N87: 4765750 | O87: -0.17%
A88: 78 | B88: Oil_Gas | C88: INDIGO | D88: 1513.60 | E88: 1488.00 | F88: 1449.60 | G88: 1385.60 | H88: 1347.20 | I88: 1552.00 | J88: 1590.40 | K88: 1654.40 | L88: 1526.4 | M88: 1424 | N88: 4582200 | O88: -2.81%
A89: 79 | B89: Others | C89: INDUSINDBK | D89: 1421.05 | E89: 1412.03 | F89: 1393.17 | G89: 1365.28 | H89: 1346.42 | I89: 1439.92 | J89: 1458.78 | K89: 1486.67 | L89: 1430.9 | M89: 1384.15 | N89: 11776400 | O89: 0.14%
A90: 80 | B90: Banking | C90: INFRATEL | D90: 263.65 | E90: 263.30 | F90: 258.60 | G90: 253.55 | H90: 248.85 | I90: 268.35 | J90: 273.05 | K90: 278.10 | L90: 268 | M90: 258.25 | N90: 6548000 | O90: -2.99%
A91: 81 | B91: Telecom | C91: INFY | D91: 786.00 | E91: 787.27 | F91: 781.63 | G91: 777.27 | H91: 771.63 | I91: 791.63 | J91: 797.27 | K91: 801.63 | L91: 792.9 | M91: 782.9 | N91: 61226400 | O91: -0.18%
A92: 82 | B92: Technology | C92: IOC | D92: 147.95 | E92: 148.18 | F92: 145.32 | G92: 142.68 | H92: 139.82 | I92: 150.82 | J92: 153.68 | K92: 156.32 | L92: 151.05 | M92: 145.55 | N92: 54894000 | O92: -3.24%
A93: 83 | B93: Oil_Gas | C93: ITC | D93: 265.05 | E93: 266.23 | F93: 263.47 | G93: 261.88 | H93: 259.12 | I93: 267.82 | J93: 270.58 | K93: 272.17 | L93: 269 | M93: 264.65 | N93: 93252000 | O93: 4.75%
A94: 84 | B94: FMCG | C94: JINDALSTEL | D94: 143.70 | E94: 141.90 | F94: 139.30 | G94: 134.90 | H94: 132.30 | I94: 146.30 | J94: 148.90 | K94: 153.30 | L94: 144.5 | M94: 137.5 | N94: 37376000 | O94: 2.28%
A95: 85 | B95: Metals | C95: JSWSTEEL | D95: 265.05 | E95: 262.52 | F95: 259.03 | G95: 253.02 | H95: 249.53 | I95: 268.53 | J95: 272.02 | K95: 278.03 | L95: 266 | M95: 256.5 | N95: 50878000 | O95: -2.51%
A96: 86 | B96: Metals | C96: JUBLFOOD | D96: 1199.85 | E96: 1202.58 | F96: 1188.47 | G96: 1177.08 | H96: 1162.97 | I96: 1213.97 | J96: 1228.08 | K96: 1239.47 | L96: 1216.7 | M96: 1191.2 | N96: 2636000 | O96: -3.37%
A97: 87 | B97: Others | C97: JUSTDIAL | D97: 714.85 | E97: 717.63 | F97: 695.27 | G97: 675.68 | H97: 653.32 | I97: 737.22 | J97: 759.58 | K97: 779.17 | L97: 740 | M97: 698.05 | N97: 3253600 | O97: 4.08%
A98: 88 | B98: Others | C98: KAJARIACER | D98: 523.40 | E98: 527.08 | F98: 514.27 | G98: 505.13 | H98: 492.32 | I98: 536.22 | J98: 549.03 | K98: 558.17 | L98: 539.9 | M98: 517.95 | N98: 3081000 | O98: 7.29%
A99: 89 | B99: Others | C99: KOTAKBANK | D99: 1457.50 | E99: 1467.20 | F99: 1436.50 | G99: 1415.50 | H99: 1384.80 | I99: 1488.20 | J99: 1518.90 | K99: 1539.90 | L99: 1497.9 | M99: 1446.2 | N99: 9621600 | O99: -8.17%
A100: 90 | B100: Banking | C100: BSOFT | D100: 76.50 | E100: 75.27 | F100: 73.18 | G100: 69.87 | H100: 67.78 | I100: 78.58 | J100: 80.67 | K100: 83.98 | L100: 77.35 | M100: 71.95 | N100: 2789700 | O100: -8.83%
A101: 91 | B101: Finance | C101: L&TFH | D101: 107.90 | E101: 107.93 | F101: 105.07 | G101: 102.23 | H101: 99.37 | I101: 110.77 | J101: 113.63 | K101: 116.47 | L101: 110.8 | M101: 105.1 | N101: 35343000 | O101: -3.41%
A102: 92 | B102: Finance | C102: LICHSGFIN | D102: 514.40 | E102: 515.72 | F102: 507.43 | G102: 500.47 | H102: 492.18 | I102: 522.68 | J102: 530.97 | K102: 537.93 | L102: 524 | M102: 508.75 | N102: 10111200 | O102: 5.11%
A103: 93 | B103: Capital_Goods | C103: LT | D103: 1389.55 | E103: 1391.02 | F103: 1377.28 | G103: 1365.02 | H103: 1351.28 | I103: 1403.28 | J103: 1417.02 | K103: 1429.28 | L103: 1404.75 | M103: 1378.75 | N103: 15057750 | O103: 2.78%
A104: 94 | B104: Pharma | C104: LUPIN | D104: 758.00 | E104: 755.10 | F104: 743.55 | G104: 729.10 | H104: 717.55 | I104: 769.55 | J104: 781.10 | K104: 795.55 | L104: 766.65 | M104: 740.65 | N104: 8652000 | O104: -2.63%
A105: 95 | B105: Automobile | C105: M&M | D105: 566.55 | E105: 568.45 | F105: 559.40 | G105: 552.25 | H105: 543.20 | I105: 575.60 | J105: 584.65 | K105: 591.80 | L105: 577.5 | M105: 561.3 | N105: 22969000 | O105: 1.79%
A106: 96 | B106: Finance | C106: M&MFIN | D106: 359.00 | E106: 357.77 | F106: 352.93 | G106: 346.87 | H106: 342.03 | I106: 363.83 | J106: 368.67 | K106: 374.73 | L106: 362.6 | M106: 351.7 | N106: 13496250 | O106: 0.77%
A107: 97 | B107: Finance | C107: MANAPPURAM | D107: 121.25 | E107: 121.43 | F107: 118.82 | G107: 116.38 | H107: 113.77 | I107: 123.87 | J107: 126.48 | K107: 128.92 | L107: 124.05 | M107: 119 | N107: 15180000 | O107: 13.05%
A108: 98 | B108: FMCG | C108: MARICO | D108: 362.95 | E108: 364.18 | F108: 359.37 | G108: 355.78 | H108: 350.97 | I108: 367.77 | J108: 372.58 | K108: 376.17 | L108: 369 | M108: 360.6 | N108: 9126000 | O108: 4.68%
A109: 99 | B109: Automobile | C109: MARUTI | D109: 5915.70 | E109: 5868.30 | F109: 5788.60 | G109: 5661.50 | H109: 5581.80 | I109: 5995.40 | J109: 6075.10 | K109: 6202.20 | L109: 5948 | M109: 5741.2 | N109: 3314700 | O109: -1.41%
A110: 100 | B110: FMCG | C110: MCDOWELL-N | D110: 600.55 | E110: 594.02 | F110: 585.08 | G110: 569.62 | H110: 560.68 | I110: 609.48 | J110: 618.42 | K110: 633.88 | L110: 602.95 | M110: 578.55 | N110: 11705000 | O110: 2.72%
A111: 101 | B111: Others | C111: MCX | D111: 879.60 | E111: 869.37 | F111: 855.88 | G111: 832.17 | H111: 818.68 | I111: 893.08 | J111: 906.57 | K111: 930.28 | L111: 882.85 | M111: 845.65 | N111: 2212700 | O111: 6.25%
A112: 102 | B112: Finance | C112: MFSL | D112: 414.50 | E112: 410.37 | F112: 405.13 | G112: 395.77 | H112: 390.53 | I112: 419.73 | J112: 424.97 | K112: 434.33 | L112: 415.6 | M112: 401 | N112: 2938800 | O112: 2.13%
A113: 103 | B113: Oil_Gas | C113: MGL | D113: 765.85 | E113: 765.95 | F113: 756.90 | G113: 747.95 | H113: 738.90 | I113: 774.90 | J113: 783.95 | K113: 792.90 | L113: 775 | M113: 757 | N113: 1255200 | O113: 2.80%
A114: 104 | B114: Technology | C114: MINDTREE | D114: 684.00 | E114: 676.07 | F114: 662.13 | G114: 640.27 | H114: 626.33 | I114: 697.93 | J114: 711.87 | K114: 733.73 | L114: 690 | M114: 654.2 | N114: 2098800 | O114: 5.62%
A115: 105 | B115: Automobile | C115: MOTHERSUMI | D115: 111.65 | E115: 110.08 | F115: 107.87 | G115: 104.08 | H115: 101.87 | I115: 113.87 | J115: 116.08 | K115: 119.87 | L115: 112.3 | M115: 106.3 | N115: 29403000 | O115: 3.52%
A116: 106 | B116: Automobile | C116: MRF | D116: 53991.90 | E116: 53751.57 | F116: 53371.73 | G116: 52751.57 | H116: 52371.73 | I116: 54371.73 | J116: 54751.57 | K116: 55371.73 | L116: 54131.4 | M116: 53131.4 | N116: 29680 | O116: 1.61%
A117: 107 | B117: Finance | C117: MUTHOOTFIN | D117: 616.95 | E117: 613.33 | F117: 607.67 | G117: 598.38 | H117: 592.72 | I117: 622.62 | J117: 628.28 | K117: 637.57 | L117: 619 | M117: 604.05 | N117: 3343500 | O117: 0.86%
A118: 108 | B118: Metals | C118: NATIONALUM | D118: 45.95 | E118: 45.75 | F118: 45.30 | G118: 44.65 | H118: 44.20 | I118: 46.40 | J118: 46.85 | K118: 47.50 | L118: 46.2 | M118: 45.1 | N118: 45110000 | O118: 0.94%
A119: 109 | B119: Infrastructure | C119: NBCC | D119: 50.95 | E119: 50.50 | F119: 49.75 | G119: 48.55 | H119: 47.80 | I119: 51.70 | J119: 52.45 | K119: 53.65 | L119: 51.25 | M119: 49.3 | N119: 38938500 | O119: 1.71%
A120: 110 | B120: Infrastructure | C120: NCC | D120: 79.95 | E120: 79.03 | F120: 76.92 | G120: 73.88 | H120: 71.77 | I120: 82.07 | J120: 84.18 | K120: 87.22 | L120: 81.15 | M120: 76 | N120: 44976000 | O120: 3.59%
A121: 111 | B121: FMCG | C121: NESTLEIND | D121: 11331.75 | E121: 11396.70 | F121: 11219.45 | G121: 11107.15 | H121: 10929.90 | I121: 11509.00 | J121: 11686.25 | K121: 11798.55 | L121: 11573.95 | M121: 11284.4 | N121: 372550 | O121: 1.06%
A122: 112 | B122: Technology | C122: NIITTECH | D122: 1306.60 | E122: 1308.73 | F122: 1301.17 | G122: 1295.73 | H122: 1288.17 | I122: 1314.17 | J122: 1321.73 | K122: 1327.17 | L122: 1316.3 | M122: 1303.3 | N122: 1446000 | O122: -1.08%
A123: 113 | B123: Metals | C123: NMDC | D123: 113.75 | E123: 113.48 | F123: 111.82 | G123: 109.88 | H123: 108.22 | I123: 115.42 | J123: 117.08 | K123: 119.02 | L123: 115.15 | M123: 111.55 | N123: 31134000 | O123: 0.84%
A124: 114 | B124: Power | C124: NTPC | D124: 130.95 | E124: 130.33 | F124: 128.27 | G124: 125.58 | H124: 123.52 | I124: 133.02 | J124: 135.08 | K124: 137.77 | L124: 132.4 | M124: 127.65 | N124: 102283200 | O124: 6.55%
A125: 115 | B125: Technology | C125: OFSS | D125: 3345.45 | E125: 3339.58 | F125: 3295.42 | G125: 3245.38 | H125: 3201.22 | I125: 3389.62 | J125: 3433.78 | K125: 3483.82 | L125: 3383.75 | M125: 3289.55 | N125: 265950 | O125: -0.23%
A126: 116 | B126: Oil_Gas | C126: OIL | D126: 160.40 | E126: 159.02 | F126: 156.68 | G126: 152.97 | H126: 150.63 | I126: 162.73 | J126: 165.07 | K126: 168.78 | L126: 161.35 | M126: 155.3 | N126: 13483833 | O126: 0.74%
A127: 117 | B127: Oil_Gas | C127: ONGC | D127: 146.95 | E127: 145.10 | F127: 142.70 | G127: 138.45 | H127: 136.05 | I127: 149.35 | J127: 151.75 | K127: 156.00 | L127: 147.5 | M127: 140.85 | N127: 71726250 | O127: 3.57%
A128: 118 | B128: Textile | C128: PAGEIND | D128: 19242.75 | E128: 19398.55 | F128: 18959.20 | G128: 18675.65 | H128: 18236.30 | I128: 19682.10 | J128: 20121.45 | K128: 20405.00 | L128: 19837.9 | M128: 19115 | N128: 219450 | O128: 8.89%
A129: 119 | B129: Pharma | C129: PEL | D129: 1898.80 | E129: 1893.12 | F129: 1860.23 | G129: 1821.67 | H129: 1788.78 | I129: 1931.68 | J129: 1964.57 | K129: 2003.13 | L129: 1926 | M129: 1854.55 | N129: 3700708 | O129: -0.07%
A130: 120 | B130: Oil_Gas | C130: PETRONET | D130: 242.00 | E130: 240.73 | F130: 238.67 | G130: 235.33 | H130: 233.27 | I130: 244.07 | J130: 246.13 | K130: 249.47 | L130: 242.8 | M130: 237.4 | N130: 18693000 | O130: 5.38%
A131: 121 | B131: Finance | C131: PFC | D131: 121.10 | E131: 119.52 | F131: 116.78 | G131: 112.47 | H131: 109.73 | I131: 123.83 | J131: 126.57 | K131: 130.88 | L131: 122.25 | M131: 115.2 | N131: 52346600 | O131: 3.86%
A132: 122 | B132: FMCG | C132: PIDILITIND | D132: 1201.90 | E132: 1194.97 | F132: 1185.93 | G132: 1169.97 | H132: 1160.93 | I132: 1210.93 | J132: 1219.97 | K132: 1235.93 | L132: 1204 | M132: 1179 | N132: 2666500 | O132: 0.87%
A133: 123 | B133: Banking | C133: PNB | D133: 72.65 | E133: 72.52 | F133: 71.48 | G133: 70.32 | H133: 69.28 | I133: 73.68 | J133: 74.72 | K133: 75.88 | L133: 73.55 | M133: 71.35 | N133: 107702000 | O133: -1.61%
A134: 124 | B134: Power | C134: POWERGRID | D134: 204.55 | E134: 204.75 | F134: 202.60 | G134: 200.65 | H134: 198.50 | I134: 206.70 | J134: 208.85 | K134: 210.80 | L134: 206.9 | M134: 202.8 | N134: 34468000 | O134: 2.11%
A135: 125 | B135: Media | C135: PVR | D135: 1736.55 | E135: 1725.65 | F135: 1708.90 | G135: 1681.25 | H135: 1664.50 | I135: 1753.30 | J135: 1770.05 | K135: 1797.70 | L135: 1742.4 | M135: 1698 | N135: 892800 | O135: 4.59%
A136: 126 | B136: Cement | C136: RAMCOCEM | D136: 760.10 | E136: 762.55 | F136: 748.30 | G136: 736.50 | H136: 722.25 | I136: 774.35 | J136: 788.60 | K136: 800.40 | L136: 776.8 | M136: 750.75 | N136: 940000 | O136: -1.43%
A137: 127 | B137: Textile | C137: RAYMOND | D137: 680.60 | E137: 677.98 | F137: 670.87 | G137: 661.13 | H137: 654.02 | I137: 687.72 | J137: 694.83 | K137: 704.57 | L137: 685.1 | M137: 668.25 | N137: 2767200 | O137: 2.16%
A138: 128 | B138: Banking | C138: RBLBANK | D138: 479.70 | E138: 481.88 | F138: 468.67 | G138: 457.63 | H138: 444.42 | I138: 492.92 | J138: 506.13 | K138: 517.17 | L138: 495.1 | M138: 470.85 | N138: 12903600 | O138: 12.19%
A139: 129 | B139: Power | C139: RECLTD | D139: 150.05 | E139: 147.92 | F139: 145.33 | G139: 140.62 | H139: 138.03 | I139: 152.63 | J139: 155.22 | K139: 159.93 | L139: 150.5 | M139: 143.2 | N139: 55878000 | O139: 5.31%
A140: 130 | B140: Finance | C140: RELCAPITAL | D140: 50.60 | E140: 50.18 | F140: 48.92 | G140: 47.23 | H140: 45.97 | I140: 51.87 | J140: 53.13 | K140: 54.82 | L140: 51.45 | M140: 48.5 | N140: 13038000 | O140: -2.77%
A141: 131 | B141: Oil_Gas | C141: RELIANCE | D141: 1280.95 | E141: 1264.07 | F141: 1243.63 | G141: 1206.32 | H141: 1185.88 | I141: 1301.38 | J141: 1321.82 | K141: 1359.13 | L141: 1284.5 | M141: 1226.75 | N141: 42540500 | O141: -2.19%
A142: 132 | B142: Power | C142: RELINFRA | D142: 43.10 | E142: 42.67 | F142: 41.33 | G142: 39.57 | H142: 38.23 | I142: 44.43 | J142: 45.77 | K142: 47.53 | L142: 44 | M142: 40.9 | N142: 14960000 | O142: -4.52%
A143: 133 | B143: Metals | C143: SAIL | D143: 46.35 | E143: 45.72 | F143: 44.93 | G143: 43.52 | H143: 42.73 | I143: 47.13 | J143: 47.92 | K143: 49.33 | L143: 46.5 | M143: 44.3 | N143: 113460000 | O143: -2.35%
A144: 134 | B144: Banking | C144: SBIN | D144: 351.90 | E144: 353.65 | F144: 347.90 | G144: 343.90 | H144: 338.15 | I144: 357.65 | J144: 363.40 | K144: 367.40 | L144: 359.4 | M144: 349.65 | N144: 72300000 | O144: 3.36%
A145: 135 | B145: Cement | C145: SHREECEM | D145: 20972.60 | E145: 20894.87 | F145: 20699.73 | G145: 20426.87 | H145: 20231.73 | I145: 21167.73 | J145: 21362.87 | K145: 21635.73 | L145: 21090 | M145: 20622 | N145: 133800 | O145: -0.96%
A146: 136 | B146: Capital_Goods | C146: SIEMENS | D146: 1191.10 | E146: 1186.92 | F146: 1177.03 | G146: 1162.97 | H146: 1153.08 | I146: 1200.98 | J146: 1210.87 | K146: 1224.93 | L146: 1196.8 | M146: 1172.85 | N146: 1256750 | O146: -1.30%
A147: 137 | B147: Textile | C147: SRF | D147: 2700.10 | E147: 2675.85 | F147: 2644.30 | G147: 2588.50 | H147: 2556.95 | I147: 2731.65 | J147: 2763.20 | K147: 2819.00 | L147: 2707.4 | M147: 2620.05 | N147: 1198000 | O147: 1.57%
A148: 138 | B148: Finance | C148: SRTRANSFIN | D148: 1039.30 | E148: 1047.37 | F148: 1024.48 | G148: 1009.67 | H148: 986.78 | I148: 1062.18 | J148: 1085.07 | K148: 1099.88 | L148: 1070.25 | M148: 1032.55 | N148: 4521000 | O148: 2.88%
A149: 139 | B149: Pharma | C149: STAR | D149: 351.35 | E149: 351.18 | F149: 347.62 | G149: 343.88 | H149: 340.32 | I149: 354.92 | J149: 358.48 | K149: 362.22 | L149: 354.75 | M149: 347.45 | N149: 3394800 | O149: -7.00%
A150: 140 | B150: Pharma | C150: SUNPHARMA | D150: 430.10 | E150: 431.25 | F150: 418.50 | G150: 406.90 | H150: 394.15 | I150: 442.85 | J150: 455.60 | K150: 467.20 | L150: 444 | M150: 419.65 | N150: 56383800 | O150: 3.65%
A151: 141 | B151: Media | C151: SUNTV | D151: 473.90 | E151: 469.02 | F151: 461.28 | G151: 448.67 | H151: 440.93 | I151: 481.63 | J151: 489.37 | K151: 501.98 | L151: 476.75 | M151: 456.4 | N151: 7317000 | O151: 2.21%
A152: 142 | B152: Fertilisers | C152: TATACHEM | D152: 599.85 | E152: 597.42 | F152: 592.43 | G152: 585.02 | H152: 580.03 | I152: 604.83 | J152: 609.82 | K152: 617.23 | L152: 602.4 | M152: 590 | N152: 2762100 | O152: 6.23%
A153: 143 | B153: Technology | C153: TATAELXSI | D153: 680.60 | E153: 688.55 | F153: 668.70 | G153: 656.80 | H153: 636.95 | I153: 700.45 | J153: 720.30 | K153: 732.20 | L153: 708.4 | M153: 676.65 | N153: 2368800 | O153: 0.95%
A154: 144 | B154: FMCG | C154: TATAGLOBAL | D154: 252.80 | E154: 251.22 | F154: 246.63 | G154: 240.47 | H154: 235.88 | I154: 257.38 | J154: 261.97 | K154: 268.13 | L154: 255.8 | M154: 245.05 | N154: 7074000 | O154: -0.87%
A155: 145 | B155: Automobile | C155: TATAMOTORS | D155: 157.00 | E155: 157.05 | F155: 154.80 | G155: 152.60 | H155: 150.35 | I155: 159.25 | J155: 161.50 | K155: 163.70 | L155: 159.3 | M155: 154.85 | N155: 66702000 | O155: -2.27%
A156: 146 | B156: Automobile | C156: TATAMTRDVR | D156: 74.95 | E156: 74.97 | F156: 73.78 | G156: 72.62 | H156: 71.43 | I156: 76.13 | J156: 77.32 | K156: 78.48 | L156: 76.15 | M156: 73.8 | N156: 31962000 | O156: -1.04%
A157: 147 | B157: Power | C157: TATAPOWER | D157: 67.25 | E157: 66.77 | F157: 66.08 | G157: 64.92 | H157: 64.23 | I157: 67.93 | J157: 68.62 | K157: 69.78 | L157: 67.45 | M157: 65.6 | N157: 53694000 | O157: 3.09%
A158: 148 | B158: Metals | C158: TATASTEEL | D158: 465.90 | E158: 461.70 | F158: 455.75 | G158: 445.60 | H158: 439.65 | I158: 471.85 | J158: 477.80 | K158: 487.95 | L158: 467.65 | M158: 451.55 | N158: 32516467 | O158: -1.66%
A159: 149 | B159: Technology | C159: TCS | D159: 2110.20 | E159: 2100.17 | F159: 2080.58 | G159: 2050.97 | H159: 2031.38 | I159: 2129.78 | J159: 2149.37 | K159: 2178.98 | L159: 2119.75 | M159: 2070.55 | N159: 16375000 | O159: -1.39%
A160: 150 | B160: Technology | C160: TECHM | D160: 659.40 | E160: 659.93 | F160: 654.87 | G160: 650.33 | H160: 645.27 | I160: 664.47 | J160: 669.53 | K160: 674.07 | L160: 665 | M160: 655.4 | N160: 16740000 | O160: -0.12%
A161: 151 | B161: FMCG | C161: TITAN | D161: 1086.05 | E161: 1080.62 | F161: 1067.88 | G161: 1049.72 | H161: 1036.98 | I161: 1098.78 | J161: 1111.52 | K161: 1129.68 | L161: 1093.35 | M161: 1062.45 | N161: 9858000 | O161: 0.45%
A162: 152 | B162: Pharma | C162: TORNTPHARM | D162: 1490.70 | E162: 1492.65 | F162: 1463.30 | G162: 1435.90 | H162: 1406.55 | I162: 1520.05 | J162: 1549.40 | K162: 1576.80 | L162: 1522 | M162: 1465.25 | N162: 879000 | O162: 5.14%
A163: 153 | B163: Power | C163: TORNTPOWER | D163: 309.60 | E163: 308.25 | F163: 304.50 | G163: 299.40 | H163: 295.65 | I163: 313.35 | J163: 317.10 | K163: 322.20 | L163: 312 | M163: 303.15 | N163: 5181000 | O163: 19.68%
A164: 154 | B164: Automobile | C164: TVSMOTOR | D164: 380.90 | E164: 385.62 | F164: 373.83 | G164: 366.77 | H164: 354.98 | I164: 392.68 | J164: 404.47 | K164: 411.53 | L164: 397.4 | M164: 378.55 | N164: 8793400 | O164: -2.90%
A165: 155 | B165: FMCG | C165: UBL | D165: 1379.25 | E165: 1374.15 | F165: 1363.20 | G165: 1347.15 | H165: 1336.20 | I165: 1390.20 | J165: 1401.15 | K165: 1417.20 | L165: 1385.1 | M165: 1358.1 | N165: 1136100 | O165: 0.81%
A166: 156 | B166: Finance | C166: UJJIVAN | D166: 276.50 | E166: 273.28 | F166: 268.92 | G166: 261.33 | H166: 256.97 | I166: 280.87 | J166: 285.23 | K166: 292.82 | L166: 277.65 | M166: 265.7 | N166: 6332800 | O166: -2.68%
A167: 157 | B167: Cement | C167: ULTRACEMCO | D167: 4577.75 | E167: 4542.57 | F167: 4490.18 | G167: 4402.62 | H167: 4350.23 | I167: 4630.13 | J167: 4682.52 | K167: 4770.08 | L167: 4594.95 | M167: 4455 | N167: 2340600 | O167: 1.86%
A168: 158 | B168: Banking | C168: UNIONBANK | D168: 74.80 | E168: 74.38 | F168: 73.47 | G168: 72.13 | H168: 71.22 | I168: 75.72 | J168: 76.63 | K168: 77.97 | L168: 75.3 | M168: 73.05 | N168: 31857000 | O168: -7.22%
A169: 159 | B169: Fertilisers | C169: UPL | D169: 640.40 | E169: 641.30 | F169: 635.15 | G169: 629.90 | H169: 623.75 | I169: 646.55 | J169: 652.70 | K169: 657.95 | L169: 647.45 | M169: 636.05 | N169: 15022800 | O169: -2.40%
A170: 160 | B170: Metals | C170: VEDL | D170: 167.75 | E170: 166.37 | F170: 163.43 | G170: 159.12 | H170: 156.18 | I170: 170.68 | J170: 173.62 | K170: 177.93 | L170: 169.3 | M170: 162.05 | N170: 66939000 | O170: 5.23%
A171: 161 | B171: Capital_Goods | C171: VOLTAS | D171: 581.55 | E171: 577.63 | F171: 571.12 | G171: 560.68 | H171: 554.17 | I171: 588.07 | J171: 594.58 | K171: 605.02 | L171: 584.15 | M171: 567.2 | N171: 4546000 | O171: 16.33%
A172: 162 | B172: Technology | C172: WIPRO | D172: 265.55 | E172: 265.23 | F172: 263.57 | G172: 261.58 | H172: 259.92 | I172: 267.22 | J172: 268.88 | K172: 270.87 | L172: 266.9 | M172: 263.25 | N172: 33872000 | O172: -1.67%
A173: 163 | B173: Banking | C173: YESBANK | D173: 91.55 | E173: 88.68 | F173: 84.62 | G173: 77.68 | H173: 73.62 | I173: 95.62 | J173: 99.68 | K173: 106.62 | L173: 92.75 | M173: 81.75 | N173: 132105600 | O173: -10.93%
A174: 164 | B174: Media | C174: ZEEL | D174: 364.00 | E174: 360.12 | F174: 353.38 | G174: 342.77 | H174: 336.03 | I174: 370.73 | J174: 377.47 | K174: 388.08 | L174: 366.85 | M174: 349.5 | N174: 24802700 | O174: 0.96%
A221: Pivot Point: This is trigger point for intra day buy/sell based on the price range of the previous day
A222: As per the tool,the trader should take BUY position just above Pivot and keep the stop loss of pivot point and the first target would be Resistance 1(R1)
A223: If R1 is crossed then R2 becomes the next target with stop loss of at R1
A224: Similarly if price goes below pivot point then the trader should sell and keep a stop loss of pivot point and the first target would be S1
A225: If S1 is crossed then S2 becomes the next target with stop loss of at S1
A227: Disclaimer:
A228: This document has been prepared by the Retail Research Desk of Asit C Mehta
A229: Investment Intermediates Ltd. and is meant for use of the recipient only
A230: and is not for circulation. This document is not to be reported or
A231: copied or made available to others. It should not be considered to be
A232: taken as an offer to sell or a solicitation to buy any security. The
A233: information contained herein is from sources believed reliable. We do
A234: not represent that it is accurate or complete and it should not be
A235: relied upon as such. We may from time to time have positions in and buy
A236: and sell securities referred to herein

Sheet Cash Intra
M5: Back to Main Page
A6: FOR INTRA DAY TRADING | K6: =Main!B10 -> 2019-07-23
A8: Sr.no | B8: Scrip | C8: CLOSE RATE | D8: Pivot Point | E8: Supports | H8: Resistances
C9: Point | E9: S1 | F9: S2 | G9: S3 | H9: R1 | I9: R2 | J9: R3 | K9: HIGH | L9: LOW | M9: Total Trade Quanity in Lakhs
A10: 1 | B10: Nifty 50 | C10: 11346.2 | D10: 11348.53 | E10: 11298.92 | F10: 11251.63 | G10: 11202.02 | H10: 11395.82 | I10: 11445.43 | J10: 11492.72 | K10: 11398.15 | L10: 11301.25
A11: 2 | B11: Nifty Bank | C11: 29284.95 | D11: 29371.40 | E11: 29107.65 | F11: 28930.35 | G11: 28666.60 | H11: 29548.70 | I11: 29812.45 | J11: 29989.75 | K11: 29635.15 | L11: 29194.1
A12: 3 | B12: Nifty CPSE | C12: 2130.9 | D12: 2119.05 | E12: 2095.80 | F12: 2060.70 | G12: 2037.45 | H12: 2154.15 | I12: 2177.40 | J12: 2212.50 | K12: 2142.3 | L12: 2083.95
A13: 4 | B13: Nifty Infra | C13: 3177.8 | D13: 3167.25 | E13: 3144.40 | F13: 3111.00 | G13: 3088.15 | H13: 3200.65 | I13: 3223.50 | J13: 3256.90 | K13: 3190.1 | L13: 3133.85
A14: 5 | B14: Nifty IT | C14: 15448.25 | D14: 15425.63 | E14: 15357.22 | F14: 15266.18 | G14: 15197.77 | H14: 15516.67 | I14: 15585.08 | J14: 15676.12 | K14: 15494.05 | L14: 15334.6
A15: 6 | B15: Nifty PSE | C15: 3370.6 | D15: 3352.60 | E15: 3324.40 | F15: 3278.20 | G15: 3250.00 | H15: 3398.80 | I15: 3427.00 | J15: 3473.20 | K15: 3380.8 | L15: 3306.4
A16: 7 | B16: Nifty Midcap 50 | C16: 4491.35 | D16: 4477.65 | E16: 4453.10 | F16: 4414.85 | G16: 4390.30 | H16: 4515.90 | I16: 4540.45 | J16: 4578.70 | K16: 4502.2 | L16: 4439.4
A17: 8 | B17: ABB | C17: 1403.9 | D17: 1400.55 | E17: 1381.70 | F17: 1359.50 | G17: 1340.65 | H17: 1422.75 | I17: 1441.60 | J17: 1463.80 | K17: 1419.4 | L17: 1378.35 | M17: 0.4543
A18: 9 | B18: ACC | C18: 1581.3 | D18: 1567.77 | E18: 1549.53 | F18: 1517.77 | G18: 1499.53 | H18: 1599.53 | I18: 1617.77 | J18: 1649.53 | K18: 1586 | L18: 1536 | M18: 14.00234
A19: 10 | B19: AUBANK | C19: 656.15 | D19: 660.43 | E19: 646.87 | F19: 637.58 | G19: 624.02 | H19: 669.72 | I19: 683.28 | J19: 692.57 | K19: 674 | L19: 651.15 | M19: 1.5427
A20: 11 | B20: ADANIPORTS | C20: 407.2 | D20: 404.40 | E20: 399.30 | F20: 391.40 | G20: 386.30 | H20: 412.30 | I20: 417.40 | J20: 425.30 | K20: 409.5 | L20: 396.5 | M20: 19.41825
A21: 12 | B21: ADANIPOWER | C21: 62.95 | D21: 62.38 | E21: 60.77 | F21: 58.58 | G21: 56.97 | H21: 64.57 | I21: 66.18 | J21: 68.37 | K21: 64 | L21: 60.2 | M21: 128.31653
A22: 13 | B22: ABCAPITAL | C22: 88 | D22: 87.42 | E22: 86.58 | F22: 85.17 | G22: 84.33 | H22: 88.83 | I22: 89.67 | J22: 91.08 | K22: 88.25 | L22: 86 | M22: 10.28679
A23: 14 | B23: ABFRL | C23: 207.55 | D23: 206.13 | E23: 203.92 | F23: 200.28 | G23: 198.07 | H23: 209.77 | I23: 211.98 | J23: 215.62 | K23: 208.35 | L23: 202.5 | M23: 2.51802
A24: 15 | B24: AJANTPHARM | C24: 914.7 | D24: 916.68 | E24: 906.12 | F24: 897.53 | G24: 886.97 | H24: 925.27 | I24: 935.83 | J24: 944.42 | K24: 927.25 | L24: 908.1 | M24: 1.40385
A25: 16 | B25: ALKEM | C25: 1797.9 | D25: 1781.78 | E25: 1757.57 | F25: 1717.23 | G25: 1693.02 | H25: 1822.12 | I25: 1846.33 | J25: 1886.67 | K25: 1806 | L25: 1741.45 | M25: 0.20202
A26: 17 | B26: AMARAJABAT | C26: 621 | D26: 621.18 | E26: 610.37 | F26: 599.73 | G26: 588.92 | H26: 631.82 | I26: 642.63 | J26: 653.27 | K26: 632 | L26: 610.55 | M26: 19.18
A27: 18 | B27: AMBUJACEM | C27: 215.8 | D27: 214.35 | E27: 212.00 | F27: 208.20 | G27: 205.85 | H27: 218.15 | I27: 220.50 | J27: 224.30 | K27: 216.7 | L27: 210.55 | M27: 20.95341
A28: 19 | B28: APOLLOHOSP | C28: 1364.65 | D28: 1368.22 | E28: 1347.43 | F28: 1330.22 | G28: 1309.43 | H28: 1385.43 | I28: 1406.22 | J28: 1423.43 | K28: 1389 | L28: 1351 | M28: 3.44053
A29: 20 | B29: APOLLOTYRE | C29: 175 | D29: 174.52 | E29: 173.08 | F29: 171.17 | G29: 169.73 | H29: 176.43 | I29: 177.87 | J29: 179.78 | K29: 175.95 | L29: 172.6 | M29: 26.05914
A30: 21 | B30: ASHOKLEY | C30: 79.35 | D30: 79.33 | E30: 78.17 | F30: 76.98 | G30: 75.82 | H30: 80.52 | I30: 81.68 | J30: 82.87 | K30: 80.5 | L30: 78.15 | M30: 194.31095
A31: 22 | B31: ASIANPAINT | C31: 1404.2 | D31: 1391.08 | E31: 1372.17 | F31: 1340.13 | G31: 1321.22 | H31: 1423.12 | I31: 1442.03 | J31: 1474.07 | K31: 1410 | L31: 1359.05 | M31: 12.79369
A32: 23 | B32: AUROPHARMA | C32: 570.15 | D32: 563.67 | E32: 552.53 | F32: 534.92 | G32: 523.78 | H32: 581.28 | I32: 592.42 | J32: 610.03 | K32: 574.8 | L32: 546.05 | M32: 30.91201
A33: 24 | B33: DMART | C33: 1417.55 | D33: 1404.18 | E33: 1383.37 | F33: 1349.18 | G33: 1328.37 | H33: 1438.37 | I33: 1459.18 | J33: 1493.37 | K33: 1425 | L33: 1370 | M33: 4.12489
A34: 25 | B34: AXISBANK | C34: 727.45 | D34: 728.65 | E34: 718.80 | F34: 710.15 | G34: 700.30 | H34: 737.30 | I34: 747.15 | J34: 755.80 | K34: 738.5 | L34: 720 | M34: 70.20071
A35: 26 | B35: BAJAJ-AUTO | C35: 2562.9 | D35: 2562.43 | E35: 2514.92 | F35: 2466.93 | G35: 2419.42 | H35: 2610.42 | I35: 2657.93 | J35: 2705.92 | K35: 2609.95 | L35: 2514.45 | M35: 4.07638
A36: 27 | B36: BAJFINANCE | C36: 3246.6 | D36: 3242.42 | E36: 3168.83 | F36: 3091.07 | G36: 3017.48 | H36: 3320.18 | I36: 3393.77 | J36: 3471.53 | K36: 3316 | L36: 3164.65 | M36: 36.92023
A37: 28 | B37: BAJAJFINSV | C37: 7162.45 | D37: 7262.42 | E37: 6980.83 | F37: 6799.22 | G37: 6517.63 | H37: 7444.03 | I37: 7725.62 | J37: 7907.23 | K37: 7544 | L37: 7080.8 | M37: 6.93477
A38: 29 | B38: BAJAJHLDNG | C38: 3431 | D38: 3446.28 | E38: 3380.62 | F38: 3330.23 | G38: 3264.57 | H38: 3496.67 | I38: 3562.33 | J38: 3612.72 | K38: 3511.95 | L38: 3395.9 | M38: 0.30928
A39: 30 | B39: BALKRISIND | C39: 732.6 | D39: 728.93 | E39: 722.67 | F39: 712.73 | G39: 706.47 | H39: 738.87 | I39: 745.13 | J39: 755.07 | K39: 735.2 | L39: 719 | M39: 2.74461
A40: 31 | B40: BANDHANBNK | C40: 501.3 | D40: 509.77 | E40: 489.53 | F40: 477.77 | G40: 457.53 | H40: 521.53 | I40: 541.77 | J40: 553.53 | K40: 530 | L40: 498 | M40: 7.00676
A41: 32 | B41: BANKBARODA | C41: 118.35 | D41: 117.85 | E41: 116.35 | F41: 114.35 | G41: 112.85 | H41: 119.85 | I41: 121.35 | J41: 123.35 | K41: 119.35 | L41: 115.85 | M41: 186.68714
A42: 33 | B42: BANKINDIA | C42: 80.65 | D42: 80.15 | E42: 79.30 | F42: 77.95 | G42: 77.10 | H42: 81.50 | I42: 82.35 | J42: 83.70 | K42: 81 | L42: 78.8 | M42: 73.50038
A43: 34 | B43: BATAINDIA | C43: 1280 | D43: 1278.00 | E43: 1264.00 | F43: 1248.00 | G43: 1234.00 | H43: 1294.00 | I43: 1308.00 | J43: 1324.00 | K43: 1292 | L43: 1262 | M43: 9.29567
A44: 35 | B44: BERGEPAINT | C44: 308.05 | D44: 308.33 | E44: 305.67 | F44: 303.28 | G44: 300.62 | H44: 310.72 | I44: 313.38 | J44: 315.77 | K44: 311 | L44: 305.95 | M44: 6.0607
A45: 36 | B45: BEL | C45: 100.5 | D45: 99.35 | E45: 96.95 | F45: 93.40 | G45: 91.00 | H45: 102.90 | I45: 105.30 | J45: 108.85 | K45: 101.75 | L45: 95.8 | M45: 137.20516
A46: 37 | B46: BHARATFORG | C46: 437.85 | D46: 436.72 | E46: 431.18 | F46: 424.52 | G46: 418.98 | H46: 443.38 | I46: 448.92 | J46: 455.58 | K46: 442.25 | L46: 430.05 | M46: 16.24792
A47: 38 | B47: BHEL | C47: 64.1 | D47: 63.78 | E47: 63.27 | F47: 62.43 | G47: 61.92 | H47: 64.62 | I47: 65.13 | J47: 65.97 | K47: 64.3 | L47: 62.95 | M47: 66.06532
A48: 39 | B48: BPCL | C48: 353.5 | D48: 349.53 | E48: 344.17 | F48: 334.83 | G48: 329.47 | H48: 358.87 | I48: 364.23 | J48: 373.57 | K48: 354.9 | L48: 340.2 | M48: 38.64744
A49: 40 | B49: BHARTIARTL | C49: 342.55 | D49: 340.55 | E49: 337.60 | F49: 332.65 | G49: 329.70 | H49: 345.50 | I49: 348.45 | J49: 353.40 | K49: 343.5 | L49: 335.6 | M49: 30.62655
A50: 41 | B50: INFRATEL | C50: 264.05 | D50: 263.63 | E50: 258.97 | F50: 253.88 | G50: 249.22 | H50: 268.72 | I50: 273.38 | J50: 278.47 | K50: 268.3 | L50: 258.55 | M50: 22.07103
A51: 42 | B51: BIOCON | C51: 246.5 | D51: 243.47 | E51: 239.63 | F51: 232.77 | G51: 228.93 | H51: 250.33 | I51: 254.17 | J51: 261.03 | K51: 247.3 | L51: 236.6 | M51: 41.51155
A52: 43 | B52: BBTC | C52: 879.8 | D52: 880.20 | E52: 860.70 | F52: 841.60 | G52: 822.10 | H52: 899.30 | I52: 918.80 | J52: 937.90 | K52: 899.7 | L52: 861.1 | M52: 0.47644
A53: 44 | B53: BOSCHLTD | C53: 15146.95 | D53: 15159.00 | E53: 15087.95 | F53: 15028.95 | G53: 14957.90 | H53: 15218.00 | I53: 15289.05 | J53: 15348.05 | K53: 15230.05 | L53: 15100 | M53: 0.14812
A54: 45 | B54: BRITANNIA | C54: 2734.5 | D54: 2741.93 | E54: 2710.57 | F54: 2686.63 | G54: 2655.27 | H54: 2765.87 | I54: 2797.23 | J54: 2821.17 | K54: 2773.3 | L54: 2718 | M54: 2.09576
A55: 46 | B55: CADILAHC | C55: 235.9 | D55: 232.78 | E55: 228.92 | F55: 221.93 | G55: 218.07 | H55: 239.77 | I55: 243.63 | J55: 250.62 | K55: 236.65 | L55: 225.8 | M55: 17.0716
A56: 47 | B56: CANBK | C56: 264.35 | D56: 264.63 | E56: 260.27 | F56: 256.18 | G56: 251.82 | H56: 268.72 | I56: 273.08 | J56: 277.17 | K56: 269 | L56: 260.55 | M56: 46.66931
A57: 48 | B57: CASTROLIND | C57: 128.85 | D57: 127.45 | E57: 125.50 | F57: 122.15 | G57: 120.20 | H57: 130.80 | I57: 132.75 | J57: 136.10 | K57: 129.4 | L57: 124.1 | M57: 12.58059
A58: 49 | B58: CHOLAFIN | C58: 254.95 | D58: 257.42 | E58: 251.03 | F58: 247.12 | G58: 240.73 | H58: 261.33 | I58: 267.72 | J58: 271.63 | K58: 263.8 | L58: 253.5 | M58: 12.64972
A59: 50 | B59: CIPLA | C59: 530.95 | D59: 532.38 | E59: 524.77 | F59: 518.58 | G59: 510.97 | H59: 538.57 | I59: 546.18 | J59: 552.37 | K59: 540 | L59: 526.2 | M59: 18.16845
A60: 51 | B60: COALINDIA | C60: 221.4 | D60: 220.30 | E60: 217.45 | F60: 213.50 | G60: 210.65 | H60: 224.25 | I60: 227.10 | J60: 231.05 | K60: 223.15 | L60: 216.35 | M60: 56.07789
A61: 52 | B61: COLPAL | C61: 1164.35 | D61: 1169.82 | E61: 1150.63 | F61: 1136.92 | G61: 1117.73 | H61: 1183.53 | I61: 1202.72 | J61: 1216.43 | K61: 1189 | L61: 1156.1 | M61: 4.03691
A62: 53 | B62: CONCOR | C62: 537.75 | D62: 535.47 | E62: 528.48 | F62: 519.22 | G62: 512.23 | H62: 544.73 | I62: 551.72 | J62: 560.98 | K62: 542.45 | L62: 526.2 | M62: 7.92612
A63: 54 | B63: COROMANDEL | C63: 379.5 | D63: 375.43 | E63: 369.17 | F63: 358.83 | G63: 352.57 | H63: 385.77 | I63: 392.03 | J63: 402.37 | K63: 381.7 | L63: 365.1 | M63: 1.0205
A64: 55 | B64: CROMPTON | C64: 225.5 | D64: 226.55 | E64: 222.15 | F64: 218.80 | G64: 214.40 | H64: 229.90 | I64: 234.30 | J64: 237.65 | K64: 230.95 | L64: 223.2 | M64: 4.71806
A65: 56 | B65: CUMMINSIND | C65: 726.15 | D65: 726.92 | E65: 719.43 | F65: 712.72 | G65: 705.23 | H65: 733.63 | I65: 741.12 | J65: 747.83 | K65: 734.4 | L65: 720.2 | M65: 1.76754
A66: 57 | B66: DLF | C66: 179.5 | D66: 179.28 | E66: 176.42 | F66: 173.33 | G66: 170.47 | H66: 182.37 | I66: 185.23 | J66: 188.32 | K66: 182.15 | L66: 176.2 | M66: 53.86468
A67: 58 | B67: DABUR | C67: 421.4 | D67: 422.70 | E67: 416.50 | F67: 411.60 | G67: 405.40 | H67: 427.60 | I67: 433.80 | J67: 438.70 | K67: 428.9 | L67: 417.8 | M67: 31.04361
A68: 59 | B68: DHFL | C68: 52.5 | D68: 53.07 | E68: 50.13 | F68: 47.77 | G68: 44.83 | H68: 55.43 | I68: 58.37 | J68: 60.73 | K68: 56 | L68: 50.7 | M68: 447.47551
A69: 60 | B69: DBL | C69: 419.8 | D69: 413.18 | E69: 402.72 | F69: 385.63 | G69: 375.17 | H69: 430.27 | I69: 440.73 | J69: 457.82 | K69: 423.65 | L69: 396.1 | M69: 3.04549
A70: 61 | B70: DISHTV | C70: 33.75 | D70: 33.00 | E70: 31.80 | F70: 29.85 | G70: 28.65 | H70: 34.95 | I70: 36.15 | J70: 38.10 | K70: 34.2 | L70: 31.05 | M70: 393.43337
A71: 62 | B71: DIVISLAB | C71: 1625.35 | D71: 1619.22 | E71: 1607.13 | F71: 1588.92 | G71: 1576.83 | H71: 1637.43 | I71: 1649.52 | J71: 1667.73 | K71: 1631.3 | L71: 1601 | M71: 2.48393
A72: 63 | B72: DRREDDY | C72: 2632.5 | D72: 2624.90 | E72: 2607.80 | F72: 2583.10 | G72: 2566.00 | H72: 2649.60 | I72: 2666.70 | J72: 2691.40 | K72: 2642 | L72: 2600.2 | M72: 3.49052
A73: 64 | B73: EDELWEISS | C73: 142.85 | D73: 145.15 | E73: 137.80 | F73: 132.75 | G73: 125.40 | H73: 150.20 | I73: 157.55 | J73: 162.60 | K73: 152.5 | L73: 140.1 | M73: 39.91027
A74: 65 | B74: EICHERMOT | C74: 17072 | D74: 17280.35 | E74: 16766.60 | F74: 16461.20 | G74: 15947.45 | H74: 17585.75 | I74: 18099.50 | J74: 18404.90 | K74: 17794.1 | L74: 16974.95 | M74: 2.33448
A75: 66 | B75: ENDURANCE | C75: 923.4 | D75: 927.98 | E75: 904.02 | F75: 884.63 | G75: 860.67 | H75: 947.37 | I75: 971.33 | J75: 990.72 | K75: 951.95 | L75: 908.6 | M75: 0.39138
A76: 67 | B76: ENGINERSIN | C76: 107.75 | D76: 107.22 | E76: 105.78 | F76: 103.82 | G76: 102.38 | H76: 109.18 | I76: 110.62 | J76: 112.58 | K76: 108.65 | L76: 105.25 | M76: 11.00032
A77: 68 | B77: ESCORTS | C77: 493.45 | D77: 495.65 | E77: 484.40 | F77: 475.35 | G77: 464.10 | H77: 504.70 | I77: 515.95 | J77: 525.00 | K77: 506.9 | L77: 486.6 | M77: 31.18889
A78: 69 | B78: EXIDEIND | C78: 191.65 | D78: 190.15 | E78: 186.70 | F78: 181.75 | G78: 178.30 | H78: 195.10 | I78: 198.55 | J78: 203.50 | K78: 193.6 | L78: 185.2 | M78: 22.5799
A79: 70 | B79: FEDERALBNK | C79: 95.6 | D79: 96.33 | E79: 93.87 | F79: 92.13 | G79: 89.67 | H79: 98.07 | I79: 100.53 | J79: 102.27 | K79: 98.8 | L79: 94.6 | M79: 191.64127
A80: 71 | B80: FCONSUMER | C80: 34.9 | D80: 34.98 | E80: 34.07 | F80: 33.23 | G80: 32.32 | H80: 35.82 | I80: 36.73 | J80: 37.57 | K80: 35.9 | L80: 34.15 | M80: 9.64223
A81: 72 | B81: FRETAIL | C81: 420.4 | D81: 420.35 | E81: 415.70 | F81: 411.00 | G81: 406.35 | H81: 425.05 | I81: 429.70 | J81: 434.40 | K81: 425 | L81: 415.65 | M81: 1.4791
A82: 73 | B82: GAIL | C82: 138 | D82: 137.20 | E82: 135.65 | F82: 133.30 | G82: 131.75 | H82: 139.55 | I82: 141.10 | J82: 143.45 | K82: 138.75 | L82: 134.85 | M82: 68.4699
A83: 74 | B83: GMRINFRA | C83: 14.75 | D83: 14.72 | E83: 14.58 | F83: 14.42 | G83: 14.28 | H83: 14.88 | I83: 15.02 | J83: 15.18 | K83: 14.85 | L83: 14.55 | M83: 76.92672
A84: 75 | B84: GICRE | C84: 221.3 | D84: 221.97 | E84: 216.48 | F84: 211.67 | G84: 206.18 | H84: 226.78 | I84: 232.27 | J84: 237.08 | K84: 227.45 | L84: 217.15 | M84: 0.69448
A85: 76 | B85: GSKCONS | C85: 7256.6 | D85: 7275.42 | E85: 7157.28 | F85: 7057.97 | G85: 6939.83 | H85: 7374.73 | I85: 7492.87 | J85: 7592.18 | K85: 7393.55 | L85: 7176.1 | M85: 0.108
A86: 77 | B86: GLENMARK | C86: 427.5 | D86: 426.97 | E86: 421.03 | F86: 414.57 | G86: 408.63 | H86: 433.43 | I86: 439.37 | J86: 445.83 | K86: 432.9 | L86: 420.5 | M86: 8.43733
A87: 78 | B87: GODREJAGRO | C87: 484.65 | D87: 483.00 | E87: 476.65 | F87: 468.65 | G87: 462.30 | H87: 491.00 | I87: 497.35 | J87: 505.35 | K87: 489.35 | L87: 475 | M87: 0.3526
A88: 79 | B88: GODREJCP | C88: 621.2 | D88: 621.72 | E88: 614.48 | F88: 607.77 | G88: 600.53 | H88: 628.43 | I88: 635.67 | J88: 642.38 | K88: 628.95 | L88: 615 | M88: 6.71516
A89: 80 | B89: GODREJIND | C89: 475.15 | D89: 474.27 | E89: 468.53 | F89: 461.92 | G89: 456.18 | H89: 480.88 | I89: 486.62 | J89: 493.23 | K89: 480 | L89: 467.65 | M89: 2.02023
A90: 81 | B90: GRAPHITE | C90: 263.35 | D90: 265.00 | E90: 253.50 | F90: 243.65 | G90: 232.15 | H90: 274.85 | I90: 286.35 | J90: 296.20 | K90: 276.5 | L90: 255.15 | M90: 20.65611
A91: 82 | B91: GRASIM | C91: 892.15 | D91: 883.47 | E91: 871.78 | F91: 851.42 | G91: 839.73 | H91: 903.83 | I91: 915.52 | J91: 935.88 | K91: 895.15 | L91: 863.1 | M91: 8.97469
A92: 83 | B92: GRUH | C92: 275.05 | D92: 277.35 | E92: 270.70 | F92: 266.35 | G92: 259.70 | H92: 281.70 | I92: 288.35 | J92: 292.70 | K92: 284 | L92: 273 | M92: 12.42944
A93: 84 | B93: GSPL | C93: 206.1 | D93: 206.70 | E93: 204.40 | F93: 202.70 | G93: 200.40 | H93: 208.40 | I93: 210.70 | J93: 212.40 | K93: 209 | L93: 205 | M93: 1.47334
A94: 85 | B94: HEG | C94: 949.85 | D94: 962.78 | E94: 908.57 | F94: 867.28 | G94: 813.07 | H94: 1004.07 | I94: 1058.28 | J94: 1099.57 | K94: 1017 | L94: 921.5 | M94: 12.63633
A95: 86 | B95: HCLTECH | C95: 1018.95 | D95: 1016.48 | E95: 1005.72 | F95: 992.48 | G95: 981.72 | H95: 1029.72 | I95: 1040.48 | J95: 1053.72 | K95: 1027.25 | L95: 1003.25 | M95: 9.51078
A96: 87 | B96: HDFCAMC | C96: 2204.7 | D96: 2226.32 | E96: 2158.63 | F96: 2112.57 | G96: 2044.88 | H96: 2272.38 | I96: 2340.07 | J96: 2386.13 | K96: 2294 | L96: 2180.25 | M96: 5.62321
A97: 88 | B97: HDFCBANK | C97: 2297.25 | D97: 2309.45 | E97: 2269.05 | F97: 2240.85 | G97: 2200.45 | H97: 2337.65 | I97: 2378.05 | J97: 2406.25 | K97: 2349.85 | L97: 2281.25 | M97: 55.42824
A98: 89 | B98: HDFCLIFE | C98: 490.65 | D98: 489.17 | E98: 480.53 | F98: 470.42 | G98: 461.78 | H98: 499.28 | I98: 507.92 | J98: 518.03 | K98: 497.8 | L98: 479.05 | M98: 20.24584
A99: 90 | B99: HAVELLS | C99: 722.7 | D99: 718.43 | E99: 710.82 | F99: 698.93 | G99: 691.32 | H99: 730.32 | I99: 737.93 | J99: 749.82 | K99: 726.05 | L99: 706.55 | M99: 6.87666
A100: 91 | B100: HEROMOTOCO | C100: 2403.7 | D100: 2406.12 | E100: 2358.23 | F100: 2312.77 | G100: 2264.88 | H100: 2451.58 | I100: 2499.47 | J100: 2544.93 | K100: 2454 | L100: 2360.65 | M100: 11.36002
A101: 92 | B101: HEXAWARE | C101: 357.7 | D101: 357.42 | E101: 355.13 | F101: 352.57 | G101: 350.28 | H101: 359.98 | I101: 362.27 | J101: 364.83 | K101: 359.7 | L101: 354.85 | M101: 3.10981
A102: 93 | B102: HINDALCO | C102: 202.4 | D102: 200.88 | E102: 196.32 | F102: 190.23 | G102: 185.67 | H102: 206.97 | I102: 211.53 | J102: 217.62 | K102: 205.45 | L102: 194.8 | M102: 91.47466
A103: 94 | B103: HINDPETRO | C103: 293.7 | D103: 291.25 | E103: 287.75 | F103: 281.80 | G103: 278.30 | H103: 297.20 | I103: 300.70 | J103: 306.65 | K103: 294.75 | L103: 285.3 | M103: 33.53213
A104: 95 | B104: HINDUNILVR | C104: 1680.7 | D104: 1688.15 | E104: 1651.60 | F104: 1622.50 | G104: 1585.95 | H104: 1717.25 | I104: 1753.80 | J104: 1782.90 | K104: 1724.7 | L104: 1659.05 | M104: 17.29722
A105: 96 | B105: HINDZINC | C105: 224.6 | D105: 223.53 | E105: 218.17 | F105: 211.73 | G105: 206.37 | H105: 229.97 | I105: 235.33 | J105: 241.77 | K105: 228.9 | L105: 217.1 | M105: 12.50238
A106: 97 | B106: HUDCO | C106: 35.15 | D106: 35.32 | E106: 34.63 | F106: 34.12 | G106: 33.43 | H106: 35.83 | I106: 36.52 | J106: 37.03 | K106: 36 | L106: 34.8 | M106: 14.43127
A107: 98 | B107: HDFC | C107: 2186.9 | D107: 2221.70 | E107: 2145.40 | F107: 2103.90 | G107: 2027.60 | H107: 2263.20 | I107: 2339.50 | J107: 2381.00 | K107: 2298 | L107: 2180.2 | M107: 30.07548
A108: 99 | B108: ICICIBANK | C108: 411.5 | D108: 409.57 | E108: 406.18 | F108: 400.87 | G108: 397.48 | H108: 414.88 | I108: 418.27 | J108: 423.58 | K108: 412.95 | L108: 404.25 | M108: 179.37246
A109: 100 | B109: ICICIGI | C109: 1054.85 | D109: 1061.08 | E109: 1039.82 | F109: 1024.78 | G109: 1003.52 | H109: 1076.12 | I109: 1097.38 | J109: 1112.42 | K109: 1082.35 | L109: 1046.05 | M109: 3.89659
A110: 101 | B110: ICICIPRULI | C110: 375.85 | D110: 377.10 | E110: 371.70 | F110: 367.55 | G110: 362.15 | H110: 381.25 | I110: 386.65 | J110: 390.80 | K110: 382.5 | L110: 372.95 | M110: 7.53286
A111: 102 | B111: IDBI | C111: 33.4 | D111: 33.50 | E111: 32.90 | F111: 32.40 | G111: 31.80 | H111: 34.00 | I111: 34.60 | J111: 35.10 | K111: 34.1 | L111: 33 | M111: 45.25932
A112: 103 | B112: IDFCFIRSTB | C112: 40.15 | D112: 40.02 | E112: 39.53 | F112: 38.92 | G112: 38.43 | H112: 40.63 | I112: 41.12 | J112: 41.73 | K112: 40.5 | L112: 39.4 | M112: 153.01508
A113: 104 | B113: ITC | C113: 264.4 | D113: 265.53 | E113: 262.87 | F113: 261.33 | G113: 258.67 | H113: 267.07 | I113: 269.73 | J113: 271.27 | K113: 268.2 | L113: 264 | M113: 135.1696
A114: 105 | B114: IBULHSGFIN | C114: 655.9 | D114: 645.43 | E114: 629.67 | F114: 603.43 | G114: 587.67 | H114: 671.67 | I114: 687.43 | J114: 713.67 | K114: 661.2 | L114: 619.2 | M114: 93.90791
A115: 106 | B115: IBVENTURES | C115: 277.7 | D115: 273.05 | E115: 266.30 | F115: 254.90 | G115: 248.15 | H115: 284.45 | I115: 291.20 | J115: 302.60 | K115: 279.8 | L115: 261.65 | M115: 7.18439
A116: 107 | B116: INDIANB | C116: 217.9 | D116: 218.27 | E116: 214.63 | F116: 211.37 | G116: 207.73 | H116: 221.53 | I116: 225.17 | J116: 228.43 | K116: 221.9 | L116: 215 | M116: 5.27471
A117: 108 | B117: INDHOTEL | C117: 145.35 | D117: 144.75 | E117: 143.75 | F117: 142.15 | G117: 141.15 | H117: 146.35 | I117: 147.35 | J117: 148.95 | K117: 145.75 | L117: 143.15 | M117: 2.51336
A118: 109 | B118: IOC | C118: 147.95 | D118: 148.07 | E118: 144.83 | F118: 141.72 | G118: 138.48 | H118: 151.18 | I118: 154.42 | J118: 157.53 | K118: 151.3 | L118: 144.95 | M118: 397.17229
A119: 110 | B119: IGL | C119: 316.15 | D119: 318.17 | E119: 313.03 | F119: 309.92 | G119: 304.78 | H119: 321.28 | I119: 326.42 | J119: 329.53 | K119: 323.3 | L119: 315.05 | M119: 11.02401
A120: 111 | B120: INDUSINDBK | C120: 1418.4 | D120: 1409.73 | E120: 1390.67 | F120: 1362.93 | G120: 1343.87 | H120: 1437.47 | I120: 1456.53 | J120: 1484.27 | K120: 1428.8 | L120: 1382 | M120: 45.78591
A121: 112 | B121: NAUKRI | C121: 2186.2 | D121: 2158.72 | E121: 2095.48 | F121: 2004.77 | G121: 1941.53 | H121: 2249.43 | I121: 2312.67 | J121: 2403.38 | K121: 2221.95 | L121: 2068 | M121: 1.92938
A122: 113 | B122: INFY | C122: 784.4 | D122: 786.15 | E122: 780.30 | F122: 776.20 | G122: 770.35 | H122: 790.25 | I122: 796.10 | J122: 800.20 | K122: 792 | L122: 782.05 | M122: 71.07151
A123: 114 | B123: INDIGO | C123: 1519.2 | D123: 1491.65 | E123: 1452.30 | F123: 1385.40 | G123: 1346.05 | H123: 1558.55 | I123: 1597.90 | J123: 1664.80 | K123: 1531 | L123: 1424.75 | M123: 78.05623
A124: 115 | B124: JSWENERGY | C124: 70.7 | D124: 71.20 | E124: 69.50 | F124: 68.30 | G124: 66.60 | H124: 72.40 | I124: 74.10 | J124: 75.30 | K124: 72.9 | L124: 70 | M124: 6.5765
A125: 116 | B125: JSWSTEEL | C125: 264.4 | D125: 262.07 | E125: 258.63 | F125: 252.87 | G125: 249.43 | H125: 267.83 | I125: 271.27 | J125: 277.03 | K125: 265.5 | L125: 256.3 | M125: 34.26665
A126: 117 | B126: JINDALSTEL | C126: 143.15 | D126: 141.45 | E126: 139.00 | F126: 134.85 | G126: 132.40 | H126: 145.60 | I126: 148.05 | J126: 152.20 | K126: 143.9 | L126: 137.3 | M126: 124.75641
A127: 118 | B127: JUBLFOOD | C127: 1199.9 | D127: 1202.68 | E127: 1188.42 | F127: 1176.93 | G127: 1162.67 | H127: 1214.17 | I127: 1228.43 | J127: 1239.92 | K127: 1216.95 | L127: 1191.2 | M127: 8.98963
A128: 119 | B128: JUBILANT | C128: 441.45 | D128: 441.37 | E128: 436.78 | F128: 432.12 | G128: 427.53 | H128: 446.03 | I128: 450.62 | J128: 455.28 | K128: 445.95 | L128: 436.7 | M128: 1.83166
A129: 120 | B129: KOTAKBANK | C129: 1454.3 | D129: 1464.47 | E129: 1431.98 | F129: 1409.67 | G129: 1377.18 | H129: 1486.78 | I129: 1519.27 | J129: 1541.58 | K129: 1496.95 | L129: 1442.15 | M129: 34.23157
A130: 121 | B130: L&TFH | C130: 108.05 | D130: 108.08 | E130: 105.47 | F130: 102.88 | G130: 100.27 | H130: 110.67 | I130: 113.28 | J130: 115.87 | K130: 110.7 | L130: 105.5 | M130: 166.80842
A131: 122 | B131: LTTS | C131: 1480.5 | D131: 1509.27 | E131: 1443.83 | F131: 1407.17 | G131: 1341.73 | H131: 1545.93 | I131: 1611.37 | J131: 1648.03 | K131: 1574.7 | L131: 1472.6 | M131: 2.16172
A132: 123 | B132: LICHSGFIN | C132: 512.45 | D132: 514.33 | E132: 505.37 | F132: 498.28 | G132: 489.32 | H132: 521.42 | I132: 530.38 | J132: 537.47 | K132: 523.3 | L132: 507.25 | M132: 25.44612
A133: 124 | B133: LTI | C133: 1478.7 | D133: 1471.48 | E133: 1443.02 | F133: 1407.33 | G133: 1378.87 | H133: 1507.17 | I133: 1535.63 | J133: 1571.32 | K133: 1499.95 | L133: 1435.8 | M133: 4.30488
A134: 125 | B134: LT | C134: 1403.7 | D134: 1405.57 | E134: 1392.13 | F134: 1380.57 | G134: 1367.13 | H134: 1417.13 | I134: 1430.57 | J134: 1442.13 | K134: 1419 | L134: 1394 | M134: 26.46126
A135: 126 | B135: LUPIN | C135: 756.5 | D135: 754.47 | E135: 743.33 | F135: 730.17 | G135: 719.03 | H135: 767.63 | I135: 778.77 | J135: 791.93 | K135: 765.6 | L135: 741.3 | M135: 7.81442
A136: 127 | B136: MRF | C136: 54144.1 | D136: 53921.33 | E136: 53476.82 | F136: 52809.53 | G136: 52365.02 | H136: 54588.62 | I136: 55033.13 | J136: 55700.42 | K136: 54365.85 | L136: 53254.05 | M136: 0.0372
A137: 128 | B137: MGL | C137: 764.25 | D137: 765.12 | E137: 753.28 | F137: 742.32 | G137: 730.48 | H137: 776.08 | I137: 787.92 | J137: 798.88 | K137: 776.95 | L137: 754.15 | M137: 3.05064
A138: 129 | B138: M&MFIN | C138: 358.25 | D138: 356.92 | E138: 352.43 | F138: 346.62 | G138: 342.13 | H138: 362.73 | I138: 367.22 | J138: 373.03 | K138: 361.4 | L138: 351.1 | M138: 14.84381
A139: 130 | B139: M&M | C139: 564.9 | D139: 567.17 | E139: 557.63 | F139: 550.37 | G139: 540.83 | H139: 574.43 | I139: 583.97 | J139: 591.23 | K139: 576.7 | L139: 559.9 | M139: 41.98301
A140: 131 | B140: MANAPPURAM | C140: 121.05 | D140: 121.10 | E140: 118.55 | F140: 116.05 | G140: 113.50 | H140: 123.60 | I140: 126.15 | J140: 128.65 | K140: 123.65 | L140: 118.6 | M140: 51.11241
A141: 132 | B141: MRPL | C141: 57.1 | D141: 56.87 | E141: 55.98 | F141: 54.87 | G141: 53.98 | H141: 57.98 | I141: 58.87 | J141: 59.98 | K141: 57.75 | L141: 55.75 | M141: 2.23599
A142: 133 | B142: MARICO | C142: 361.85 | D142: 363.47 | E142: 358.53 | F142: 355.22 | G142: 350.28 | H142: 366.78 | I142: 371.72 | J142: 375.03 | K142: 368.4 | L142: 360.15 | M142: 10.38927
A143: 134 | B143: MARUTI | C143: 5912.5 | D143: 5865.85 | E143: 5791.70 | F143: 5670.90 | G143: 5596.75 | H143: 5986.65 | I143: 6060.80 | J143: 6181.60 | K143: 5940 | L143: 5745.05 | M143: 8.9751
A144: 135 | B144: MFSL | C144: 414.5 | D144: 410.33 | E144: 404.67 | F144: 394.83 | G144: 389.17 | H144: 420.17 | I144: 425.83 | J144: 435.67 | K144: 416 | L144: 400.5 | M144: 2.77851
A145: 136 | B145: MINDTREE | C145: 681.95 | D145: 674.00 | E145: 660.00 | F145: 638.05 | G145: 624.05 | H145: 695.95 | I145: 709.95 | J145: 731.90 | K145: 688 | L145: 652.05 | M145: 25.88431
A146: 137 | B146: MOTHERSUMI | C146: 111.6 | D146: 110.28 | E146: 107.42 | F146: 103.23 | G146: 100.37 | H146: 114.47 | I146: 117.33 | J146: 121.52 | K146: 113.15 | L146: 106.1 | M146: 88.4793
A147: 138 | B147: MPHASIS | C147: 918.9 | D147: 919.30 | E147: 906.70 | F147: 894.50 | G147: 881.90 | H147: 931.50 | I147: 944.10 | J147: 956.30 | K147: 931.9 | L147: 907.1 | M147: 3.99758
A148: 139 | B148: MUTHOOTFIN | C148: 617 | D148: 613.30 | E148: 606.60 | F148: 596.20 | G148: 589.50 | H148: 623.70 | I148: 630.40 | J148: 640.80 | K148: 620 | L148: 602.9 | M148: 6.40679
A149: 140 | B149: NATCOPHARM | C149: 502.65 | D149: 506.18 | E149: 495.47 | F149: 488.28 | G149: 477.57 | H149: 513.37 | I149: 524.08 | J149: 531.27 | K149: 516.9 | L149: 499 | M149: 0.72705
A150: 141 | B150: NBCC | C150: 50.75 | D150: 50.43 | E150: 49.57 | F150: 48.38 | G150: 47.52 | H150: 51.62 | I150: 52.48 | J150: 53.67 | K150: 51.3 | L150: 49.25 | M150: 103.47267
A151: 142 | B151: NHPC | C151: 23.1 | D151: 23.27 | E151: 22.78 | F151: 22.47 | G151: 21.98 | H151: 23.58 | I151: 24.07 | J151: 24.38 | K151: 23.75 | L151: 22.95 | M151: 12.78029
A152: 143 | B152: NMDC | C152: 113.55 | D152: 113.47 | E152: 111.58 | F152: 109.62 | G152: 107.73 | H152: 115.43 | I152: 117.32 | J152: 119.28 | K152: 115.35 | L152: 111.5 | M152: 22.15508
A153: 144 | B153: NTPC | C153: 130.85 | D153: 130.38 | E153: 128.12 | F153: 125.38 | G153: 123.12 | H153: 133.12 | I153: 135.38 | J153: 138.12 | K153: 132.65 | L153: 127.65 | M153: 158.70663
A154: 145 | B154: NATIONALUM | C154: 45.8 | D154: 45.77 | E154: 45.33 | F154: 44.87 | G154: 44.43 | H154: 46.23 | I154: 46.67 | J154: 47.13 | K154: 46.2 | L154: 45.3 | M154: 72.98585
A155: 146 | B155: OBEROIRLTY | C155: 549.2 | D155: 549.78 | E155: 541.42 | F155: 533.63 | G155: 525.27 | H155: 557.57 | I155: 565.93 | J155: 573.72 | K155: 558.15 | L155: 542 | M155: 1.37714
A156: 147 | B156: ONGC | C156: 146.65 | D156: 144.90 | E156: 142.40 | F156: 138.15 | G156: 135.65 | H156: 149.15 | I156: 151.65 | J156: 155.90 | K156: 147.4 | L156: 140.65 | M156: 120.77069
A157: 148 | B157: OIL | C157: 160 | D157: 158.73 | E157: 156.52 | F157: 153.03 | G157: 150.82 | H157: 162.22 | I157: 164.43 | J157: 167.92 | K157: 160.95 | L157: 155.25 | M157: 8.90985
A158: 149 | B158: OFSS | C158: 3336 | D158: 3336.32 | E158: 3299.18 | F158: 3262.37 | G158: 3225.23 | H158: 3373.13 | I158: 3410.27 | J158: 3447.08 | K158: 3373.45 | L158: 3299.5 | M158: 0.1814
A159: 150 | B159: PIIND | C159: 1085.9 | D159: 1074.17 | E159: 1051.78 | F159: 1017.67 | G159: 995.28 | H159: 1108.28 | I159: 1130.67 | J159: 1164.78 | K159: 1096.55 | L159: 1040.05 | M159: 1.9491
A160: 151 | B160: PNBHOUSING | C160: 721.05 | D160: 726.32 | E160: 713.73 | F160: 706.42 | G160: 693.83 | H160: 733.63 | I160: 746.22 | J160: 753.53 | K160: 738.9 | L160: 719 | M160: 2.29229
A161: 152 | B161: PAGEIND | C161: 19451.4 | D161: 19509.75 | E161: 19088.05 | F161: 18724.70 | G161: 18303.00 | H161: 19873.10 | I161: 20294.80 | J161: 20658.15 | K161: 19931.45 | L161: 19146.4 | M161: 0.34285
A162: 153 | B162: PETRONET | C162: 241.7 | D162: 240.27 | E162: 238.03 | F162: 234.37 | G162: 232.13 | H162: 243.93 | I162: 246.17 | J162: 249.83 | K162: 242.5 | L162: 236.6 | M162: 39.28616
A163: 154 | B163: PFIZER | C163: 3176.8 | D163: 3155.60 | E163: 3121.20 | F163: 3065.60 | G163: 3031.20 | H163: 3211.20 | I163: 3245.60 | J163: 3301.20 | K163: 3190 | L163: 3100 | M163: 0.14734
A164: 155 | B164: PIDILITIND | C164: 1198.2 | D164: 1191.52 | E164: 1182.68 | F164: 1167.17 | G164: 1158.33 | H164: 1207.03 | I164: 1215.87 | J164: 1231.38 | K164: 1200.35 | L164: 1176 | M164: 2.38547
A165: 156 | B165: PEL | C165: 1903.25 | D165: 1897.20 | E165: 1861.85 | F165: 1820.45 | G165: 1785.10 | H165: 1938.60 | I165: 1973.95 | J165: 2015.35 | K165: 1932.55 | L165: 1855.8 | M165: 10.69164
A166: 157 | B166: PFC | C166: 120.9 | D166: 119.28 | E166: 116.62 | F166: 112.33 | G166: 109.67 | H166: 123.57 | I166: 126.23 | J166: 130.52 | K166: 121.95 | L166: 115 | M166: 65.83193
A167: 158 | B167: POWERGRID | C167: 204.1 | D167: 204.63 | E167: 202.07 | F167: 200.03 | G167: 197.47 | H167: 206.67 | I167: 209.23 | J167: 211.27 | K167: 207.2 | L167: 202.6 | M167: 50.97271
A168: 159 | B168: PRESTIGE | C168: 267.5 | D168: 270.07 | E168: 262.63 | F168: 257.77 | G168: 250.33 | H168: 274.93 | I168: 282.37 | J168: 287.23 | K168: 277.5 | L168: 265.2 | M168: 1.2413
A169: 160 | B169: PGHH | C169: 10506.7 | D169: 10498.22 | E169: 10366.48 | F169: 10226.27 | G169: 10094.53 | H169: 10638.43 | I169: 10770.17 | J169: 10910.38 | K169: 10629.95 | L169: 10358 | M169: 0.01853
A170: 161 | B170: PNB | C170: 72.5 | D170: 72.50 | E170: 71.45 | F170: 70.40 | G170: 69.35 | H170: 73.55 | I170: 74.60 | J170: 75.65 | K170: 73.55 | L170: 71.45 | M170: 165.00579
A171: 162 | B171: QUESS | C171: 446.75 | D171: 451.52 | E171: 439.03 | F171: 431.32 | G171: 418.83 | H171: 459.23 | I171: 471.72 | J171: 479.43 | K171: 464 | L171: 443.8 | M171: 2.30405
A172: 163 | B172: RBLBANK | C172: 478 | D172: 480.78 | E172: 466.27 | F172: 454.53 | G172: 440.02 | H172: 492.52 | I172: 507.03 | J172: 518.77 | K172: 495.3 | L172: 469.05 | M172: 137.55701
A173: 164 | B173: RECLTD | C173: 149.6 | D173: 147.50 | E173: 144.85 | F173: 140.10 | G173: 137.45 | H173: 152.25 | I173: 154.90 | J173: 159.65 | K173: 150.15 | L173: 142.75 | M173: 83.92223
A174: 165 | B174: RAJESHEXPO | C174: 684.95 | D174: 686.15 | E174: 683.55 | F174: 682.15 | G174: 679.55 | H174: 687.55 | I174: 690.15 | J174: 691.55 | K174: 688.75 | L174: 684.75 | M174: 2.58117
A175: 166 | B175: RELCAPITAL | C175: 50.9 | D175: 50.97 | E175: 49.43 | F175: 47.97 | G175: 46.43 | H175: 52.43 | I175: 53.97 | J175: 55.43 | K175: 52.5 | L175: 49.5 | M175: 151.47222
A176: 167 | B176: RELIANCE | C176: 1280.5 | D176: 1264.10 | E176: 1243.70 | F176: 1206.90 | G176: 1186.50 | H176: 1300.90 | I176: 1321.30 | J176: 1358.10 | K176: 1284.5 | L176: 1227.3 | M176: 133.00153
A177: 168 | B177: RELINFRA | C177: 43.15 | D177: 43.10 | E177: 41.30 | F177: 39.45 | G177: 37.65 | H177: 44.95 | I177: 46.75 | J177: 48.60 | K177: 44.9 | L177: 41.25 | M177: 220.11963
A178: 169 | B178: RPOWER | C178: 3.65 | D178: 3.62 | E178: 3.53 | F178: 3.42 | G178: 3.33 | H178: 3.73 | I178: 3.82 | J178: 3.93 | K178: 3.7 | L178: 3.5 | M178: 141.15937
A179: 170 | B179: SBILIFE | C179: 762.15 | D179: 753.88 | E179: 743.77 | F179: 725.38 | G179: 715.27 | H179: 772.27 | I179: 782.38 | J179: 800.77 | K179: 764 | L179: 735.5 | M179: 4.09528
A180: 171 | B180: SRF | C180: 2697.7 | D180: 2671.47 | E180: 2638.53 | F180: 2579.37 | G180: 2546.43 | H180: 2730.63 | I180: 2763.57 | J180: 2822.73 | K180: 2704.4 | L180: 2612.3 | M180: 3.29159
A181: 172 | B181: SHREECEM | C181: 20939.95 | D181: 20895.62 | E181: 20645.43 | F181: 20350.92 | G181: 20100.73 | H181: 21190.13 | I181: 21440.32 | J181: 21734.83 | K181: 21145.8 | L181: 20601.1 | M181: 0.17265
A182: 173 | B182: SRTRANSFIN | C182: 1038.25 | D182: 1046.57 | E182: 1023.73 | F182: 1009.22 | G182: 986.38 | H182: 1061.08 | I182: 1083.92 | J182: 1098.43 | K182: 1069.4 | L182: 1032.05 | M182: 6.90254
A183: 174 | B183: SIEMENS | C183: 1187.4 | D183: 1183.47 | E183: 1172.93 | F183: 1158.47 | G183: 1147.93 | H183: 1197.93 | I183: 1208.47 | J183: 1222.93 | K183: 1194 | L183: 1169 | M183: 2.69099
A184: 175 | B184: SBIN | C184: 350.85 | D184: 353.03 | E184: 346.52 | F184: 342.18 | G184: 335.67 | H184: 357.37 | I184: 363.88 | J184: 368.22 | K184: 359.55 | L184: 348.7 | M184: 196.82038
A185: 176 | B185: SAIL | C185: 46.25 | D185: 45.67 | E185: 44.88 | F185: 43.52 | G185: 42.73 | H185: 47.03 | I185: 47.82 | J185: 49.18 | K185: 46.45 | L185: 44.3 | M185: 186.79123
A186: 177 | B186: STRTECH | C186: 163.15 | D186: 163.70 | E186: 161.50 | F186: 159.85 | G186: 157.65 | H186: 165.35 | I186: 167.55 | J186: 169.20 | K186: 165.9 | L186: 162.05 | M186: 7.33721
A187: 178 | B187: SPARC | C187: 159.4 | D187: 156.47 | E187: 149.53 | F187: 139.67 | G187: 132.73 | H187: 166.33 | I187: 173.27 | J187: 183.13 | K187: 163.4 | L187: 146.6 | M187: 38.35758
A188: 179 | B188: SUNPHARMA | C188: 430.25 | D188: 430.85 | E188: 418.40 | F188: 406.55 | G188: 394.10 | H188: 442.70 | I188: 455.15 | J188: 467.00 | K188: 443.3 | L188: 419 | M188: 104.20113
A189: 180 | B189: SUNTV | C189: 473.75 | D189: 468.42 | E189: 460.78 | F189: 447.82 | G189: 440.18 | H189: 481.38 | I189: 489.02 | J189: 501.98 | K189: 476.05 | L189: 455.45 | M189: 11.79215
A190: 181 | B190: SYNGENE | C190: 326.75 | D190: 325.38 | E190: 315.82 | F190: 304.88 | G190: 295.32 | H190: 336.32 | I190: 345.88 | J190: 356.82 | K190: 334.95 | L190: 314.45 | M190: 1.95194
A191: 182 | B191: TVSMOTOR | C191: 379.95 | D191: 385.65 | E191: 371.30 | F191: 362.65 | G191: 348.30 | H191: 394.30 | I191: 408.65 | J191: 417.30 | K191: 400 | L191: 377 | M191: 45.02957
A192: 183 | B192: TATACHEM | C192: 598.35 | D192: 596.62 | E192: 591.73 | F192: 585.12 | G192: 580.23 | H192: 603.23 | I192: 608.12 | J192: 614.73 | K192: 601.5 | L192: 590 | M192: 2.67145
A193: 184 | B193: TCS | C193: 2109.9 | D193: 2098.72 | E193: 2079.98 | F193: 2050.07 | G193: 2031.33 | H193: 2128.63 | I193: 2147.37 | J193: 2177.28 | K193: 2117.45 | L193: 2068.8 | M193: 19.20167
A194: 185 | B194: TATAGLOBAL | C194: 251.6 | D194: 251.40 | E194: 247.30 | F194: 243.00 | G194: 238.90 | H194: 255.70 | I194: 259.80 | J194: 264.10 | K194: 255.5 | L194: 247.1 | M194: 17.40529
A195: 186 | B195: TATAMTRDVR | C195: 74.75 | D195: 74.78 | E195: 73.57 | F195: 72.38 | G195: 71.17 | H195: 75.97 | I195: 77.18 | J195: 78.37 | K195: 76 | L195: 73.6 | M195: 18.70705
A196: 187 | B196: TATAMOTORS | C196: 156.75 | D196: 157.10 | E196: 154.90 | F196: 153.05 | G196: 150.85 | H196: 158.95 | I196: 161.15 | J196: 163.00 | K196: 159.3 | L196: 155.25 | M196: 159.95349
A197: 188 | B197: TATAPOWER | C197: 67.1 | D197: 66.63 | E197: 65.97 | F197: 64.83 | G197: 64.17 | H197: 67.77 | I197: 68.43 | J197: 69.57 | K197: 67.3 | L197: 65.5 | M197: 30.31714
A198: 189 | B198: TATASTEEL | C198: 465.55 | D198: 461.35 | E198: 455.40 | F198: 445.25 | G198: 439.30 | H198: 471.50 | I198: 477.45 | J198: 487.60 | K198: 467.3 | L198: 451.2 | M198: 69.54452
A199: 190 | B199: TECHM | C199: 671.95 | D199: 673.65 | E199: 668.30 | F199: 664.65 | G199: 659.30 | H199: 677.30 | I199: 682.65 | J199: 686.30 | K199: 679 | L199: 670 | M199: 12.86218
A200: 191 | B200: NIACL | C200: 127.55 | D200: 127.28 | E200: 125.27 | F200: 122.98 | G200: 120.97 | H200: 129.57 | I200: 131.58 | J200: 133.87 | K200: 129.3 | L200: 125 | M200: 0.88387
A201: 192 | B201: RAMCOCEM | C201: 759.6 | D201: 761.60 | E201: 748.00 | F201: 736.40 | G201: 722.80 | H201: 773.20 | I201: 786.80 | J201: 798.40 | K201: 775.2 | L201: 750 | M201: 1.15898
A202: 193 | B202: TITAN | C202: 1085.55 | D202: 1079.88 | E202: 1067.77 | F202: 1049.98 | G202: 1037.87 | H202: 1097.67 | I202: 1109.78 | J202: 1127.57 | K202: 1092 | L202: 1062.1 | M202: 23.41863
A203: 194 | B203: TORNTPHARM | C203: 1500.85 | D203: 1500.17 | E203: 1473.18 | F203: 1445.52 | G203: 1418.53 | H203: 1527.83 | I203: 1554.82 | J203: 1582.48 | K203: 1527.15 | L203: 1472.5 | M203: 2.66811
A204: 195 | B204: TORNTPOWER | C204: 308.75 | D204: 307.30 | E204: 303.55 | F204: 298.35 | G204: 294.60 | H204: 312.50 | I204: 316.25 | J204: 321.45 | K204: 311.05 | L204: 302.1 | M204: 9.2424
A205: 196 | B205: UPL | C205: 638.85 | D205: 640.17 | E205: 633.33 | F205: 627.82 | G205: 620.98 | H205: 645.68 | I205: 652.52 | J205: 658.03 | K205: 647 | L205: 634.65 | M205: 22.61563
... 30 more rows

Sheet MidCap Intra
L5: Back To Main Page
A6: FOR INTRA DAY TRADING | K6: =Main!B10 -> 2019-07-23
A9: Sr.no | B9: Scrip | C9: CLOSE RATE | D9: Pivot Point | E9: Supports | H9: Resistances
C10: Point | E10: S1 | F10: S2 | G10: S3 | H10: R1 | I10: R2 | J10: R3 | K10: HIGH | L10: LOW | M10: Total Trade Quanity in Lakhs
A11: 1 | B11: 3MINDIA | C11: 21677.2 | D11: 21737.37 | E11: 21589.88 | F11: 21502.57 | G11: 21355.08 | H11: 21824.68 | I11: 21972.17 | J11: 22059.48 | K11: 21884.85 | L11: 21650.05 | M11: 0.06166
A12: 2 | B12: ABB | C12: 1403.9 | D12: 1400.55 | E12: 1381.70 | F12: 1359.50 | G12: 1340.65 | H12: 1422.75 | I12: 1441.60 | J12: 1463.80 | K12: 1419.4 | L12: 1378.35 | M12: 0.4543
A13: 3 | B13: ACC | C13: 1581.3 | D13: 1567.77 | E13: 1549.53 | F13: 1517.77 | G13: 1499.53 | H13: 1599.53 | I13: 1617.77 | J13: 1649.53 | K13: 1586 | L13: 1536 | M13: 14.00234
A14: 4 | B14: AIAENG | C14: 1759.4 | D14: 1743.67 | E14: 1727.28 | F14: 1695.17 | G14: 1678.78 | H14: 1775.78 | I14: 1792.17 | J14: 1824.28 | K14: 1760.05 | L14: 1711.55 | M14: 0.19942
A15: 5 | B15: APLAPOLLO | C15: 1493.2 | D15: 1489.63 | E15: 1460.47 | F15: 1427.73 | G15: 1398.57 | H15: 1522.37 | I15: 1551.53 | J15: 1584.27 | K15: 1518.8 | L15: 1456.9 | M15: 0.49101
A16: 6 | B16: AUBANK | C16: 656.15 | D16: 660.43 | E16: 646.87 | F16: 637.58 | G16: 624.02 | H16: 669.72 | I16: 683.28 | J16: 692.57 | K16: 674 | L16: 651.15 | M16: 1.5427
A17: 7 | B17: AAVAS | C17: 1458.8 | D17: 1460.92 | E17: 1421.93 | F17: 1385.07 | G17: 1346.08 | H17: 1497.78 | I17: 1536.77 | J17: 1573.63 | K17: 1499.9 | L17: 1424.05 | M17: 0.16284
A18: 8 | B18: ADANIGREEN | C18: 46.8 | D18: 46.32 | E18: 45.18 | F18: 43.57 | G18: 42.43 | H18: 47.93 | I18: 49.07 | J18: 50.68 | K18: 47.45 | L18: 44.7 | M18: 10.2222
A19: 9 | B19: ADANIPORTS | C19: 407.2 | D19: 404.40 | E19: 399.30 | F19: 391.40 | G19: 386.30 | H19: 412.30 | I19: 417.40 | J19: 425.30 | K19: 409.5 | L19: 396.5 | M19: 19.41825
A20: 10 | B20: ADANIPOWER | C20: 62.95 | D20: 62.38 | E20: 60.77 | F20: 58.58 | G20: 56.97 | H20: 64.57 | I20: 66.18 | J20: 68.37 | K20: 64 | L20: 60.2 | M20: 128.31653
A21: 11 | B21: ADANITRANS | C21: 214.95 | D21: 212.98 | E21: 209.97 | F21: 204.98 | G21: 201.97 | H21: 217.97 | I21: 220.98 | J21: 225.97 | K21: 216 | L21: 208 | M21: 0.5594
A22: 12 | B22: ABCAPITAL | C22: 88 | D22: 87.42 | E22: 86.58 | F22: 85.17 | G22: 84.33 | H22: 88.83 | I22: 89.67 | J22: 91.08 | K22: 88.25 | L22: 86 | M22: 10.28679
A23: 13 | B23: ABFRL | C23: 207.55 | D23: 206.13 | E23: 203.92 | F23: 200.28 | G23: 198.07 | H23: 209.77 | I23: 211.98 | J23: 215.62 | K23: 208.35 | L23: 202.5 | M23: 2.51802
A24: 14 | B24: ADVENZYMES | C24: 157.45 | D24: 157.52 | E24: 156.03 | F24: 154.62 | G24: 153.13 | H24: 158.93 | I24: 160.42 | J24: 161.83 | K24: 159 | L24: 156.1 | M24: 0.21517
A25: 15 | B25: AEGISCHEM | C25: 200.05 | D25: 201.40 | E25: 198.00 | F25: 195.95 | G25: 192.55 | H25: 203.45 | I25: 206.85 | J25: 208.90 | K25: 204.8 | L25: 199.35 | M25: 0.73524
A26: 16 | B26: AJANTPHARM | C26: 914.7 | D26: 916.68 | E26: 906.12 | F26: 897.53 | G26: 886.97 | H26: 925.27 | I26: 935.83 | J26: 944.42 | K26: 927.25 | L26: 908.1 | M26: 1.40385
A27: 17 | B27: AKZOINDIA | C27: 1730.6 | D27: 1728.17 | E27: 1721.33 | F27: 1712.07 | G27: 1705.23 | H27: 1737.43 | I27: 1744.27 | J27: 1753.53 | K27: 1735 | L27: 1718.9 | M27: 0.02648
A28: 18 | B28: APLLTD | C28: 514.6 | D28: 515.83 | E28: 507.27 | F28: 499.93 | G28: 491.37 | H28: 523.17 | I28: 531.73 | J28: 539.07 | K28: 524.4 | L28: 508.5 | M28: 0.17082
A29: 19 | B29: ALKEM | C29: 1797.9 | D29: 1781.78 | E29: 1757.57 | F29: 1717.23 | G29: 1693.02 | H29: 1822.12 | I29: 1846.33 | J29: 1886.67 | K29: 1806 | L29: 1741.45 | M29: 0.20202
A30: 20 | B30: ALBK | C30: 41.15 | D30: 41.08 | E30: 40.37 | F30: 39.58 | G30: 38.87 | H30: 41.87 | I30: 42.58 | J30: 43.37 | K30: 41.8 | L30: 40.3 | M30: 18.05135
A31: 21 | B31: ALLCARGO | C31: 97.6 | D31: 97.77 | E31: 95.53 | F31: 93.47 | G31: 91.23 | H31: 99.83 | I31: 102.07 | J31: 104.13 | K31: 100 | L31: 95.7 | M31: 0.82559
A32: 22 | B32: AMARAJABAT | C32: 621 | D32: 621.18 | E32: 610.37 | F32: 599.73 | G32: 588.92 | H32: 631.82 | I32: 642.63 | J32: 653.27 | K32: 632 | L32: 610.55 | M32: 19.18
A33: 23 | B33: AMBUJACEM | C33: 215.8 | D33: 214.35 | E33: 212.00 | F33: 208.20 | G33: 205.85 | H33: 218.15 | I33: 220.50 | J33: 224.30 | K33: 216.7 | L33: 210.55 | M33: 20.95341
A34: 24 | B34: ANDHRABANK | C34: 21.8 | D34: 21.95 | E34: 21.60 | F34: 21.40 | G34: 21.05 | H34: 22.15 | I34: 22.50 | J34: 22.70 | K34: 22.3 | L34: 21.75 | M34: 3.98297
A35: 25 | B35: APOLLOHOSP | C35: 1364.65 | D35: 1368.22 | E35: 1347.43 | F35: 1330.22 | G35: 1309.43 | H35: 1385.43 | I35: 1406.22 | J35: 1423.43 | K35: 1389 | L35: 1351 | M35: 3.44053
A36: 26 | B36: APOLLOTYRE | C36: 175 | D36: 174.52 | E36: 173.08 | F36: 171.17 | G36: 169.73 | H36: 176.43 | I36: 177.87 | J36: 179.78 | K36: 175.95 | L36: 172.6 | M36: 26.05914
A37: 27 | B37: ASHOKLEY | C37: 79.35 | D37: 79.33 | E37: 78.17 | F37: 76.98 | G37: 75.82 | H37: 80.52 | I37: 81.68 | J37: 82.87 | K37: 80.5 | L37: 78.15 | M37: 194.31095
A38: 28 | B38: ASHOKA | C38: 120 | D38: 119.87 | E38: 117.73 | F38: 115.47 | G38: 113.33 | H38: 122.13 | I38: 124.27 | J38: 126.53 | K38: 122 | L38: 117.6 | M38: 0.99698
A39: 29 | B39: ASIANPAINT | C39: 1404.2 | D39: 1391.08 | E39: 1372.17 | F39: 1340.13 | G39: 1321.22 | H39: 1423.12 | I39: 1442.03 | J39: 1474.07 | K39: 1410 | L39: 1359.05 | M39: 12.79369
A40: 30 | B40: ASTERDM | C40: 121.75 | D40: 122.92 | E40: 118.93 | F40: 116.12 | G40: 112.13 | H40: 125.73 | I40: 129.72 | J40: 132.53 | K40: 126.9 | L40: 120.1 | M40: 0.75683
A41: 31 | B41: ASTRAZEN | C41: 1851 | D41: 1864.87 | E41: 1820.83 | F41: 1790.67 | G41: 1746.63 | H41: 1895.03 | I41: 1939.07 | J41: 1969.23 | K41: 1908.9 | L41: 1834.7 | M41: 0.06279
A42: 32 | B42: ASTRAL | C42: 1240.45 | D42: 1244.98 | E42: 1222.02 | F42: 1203.58 | G42: 1180.62 | H42: 1263.42 | I42: 1286.38 | J42: 1304.82 | K42: 1267.95 | L42: 1226.55 | M42: 0.18669
A43: 33 | B43: ATUL | C43: 3603 | D43: 3601.05 | E43: 3531.95 | F43: 3460.90 | G43: 3391.80 | H43: 3672.10 | I43: 3741.20 | J43: 3812.25 | K43: 3670.15 | L43: 3530 | M43: 0.07438
A44: 34 | B44: AUROPHARMA | C44: 570.15 | D44: 563.67 | E44: 552.53 | F44: 534.92 | G44: 523.78 | H44: 581.28 | I44: 592.42 | J44: 610.03 | K44: 574.8 | L44: 546.05 | M44: 30.91201
A45: 35 | B45: AVANTIFEED | C45: 335.6 | D45: 334.83 | E45: 321.77 | F45: 307.93 | G45: 294.87 | H45: 348.67 | I45: 361.73 | J45: 375.57 | K45: 347.9 | L45: 321 | M45: 13.51334
A46: 36 | B46: DMART | C46: 1417.55 | D46: 1404.18 | E46: 1383.37 | F46: 1349.18 | G46: 1328.37 | H46: 1438.37 | I46: 1459.18 | J46: 1493.37 | K46: 1425 | L46: 1370 | M46: 4.12489
A47: 37 | B47: AXISBANK | C47: 727.45 | D47: 728.65 | E47: 718.80 | F47: 710.15 | G47: 700.30 | H47: 737.30 | I47: 747.15 | J47: 755.80 | K47: 738.5 | L47: 720 | M47: 70.20071
A48: 38 | B48: BASF | C48: 1082.65 | D48: 1093.90 | E48: 1067.75 | F48: 1052.85 | G48: 1026.70 | H48: 1108.80 | I48: 1134.95 | J48: 1149.85 | K48: 1120.05 | L48: 1079 | M48: 0.07382
A49: 39 | B49: BEML | C49: 892.95 | D49: 897.30 | E49: 882.65 | F49: 872.35 | G49: 857.70 | H49: 907.60 | I49: 922.25 | J49: 932.55 | K49: 911.95 | L49: 887 | M49: 5.13715
A50: 40 | B50: BSE | C50: 556.8 | D50: 561.47 | E50: 550.43 | F50: 544.07 | G50: 533.03 | H50: 567.83 | I50: 578.87 | J50: 585.23 | K50: 572.5 | L50: 555.1 | M50: 1.50914
A51: 41 | B51: BAJAJ-AUTO | C51: 2562.9 | D51: 2562.43 | E51: 2514.92 | F51: 2466.93 | G51: 2419.42 | H51: 2610.42 | I51: 2657.93 | J51: 2705.92 | K51: 2609.95 | L51: 2514.45 | M51: 4.07638
A52: 42 | B52: BAJAJCON | C52: 290.75 | D52: 293.53 | E52: 285.97 | F52: 281.18 | G52: 273.62 | H52: 298.32 | I52: 305.88 | J52: 310.67 | K52: 301.1 | L52: 288.75 | M52: 0.26259
A53: 43 | B53: BAJAJELEC | C53: 447.1 | D53: 446.45 | E53: 441.90 | F53: 436.70 | G53: 432.15 | H53: 451.65 | I53: 456.20 | J53: 461.40 | K53: 451 | L53: 441.25 | M53: 0.40498
A54: 44 | B54: BAJFINANCE | C54: 3246.6 | D54: 3242.42 | E54: 3168.83 | F54: 3091.07 | G54: 3017.48 | H54: 3320.18 | I54: 3393.77 | J54: 3471.53 | K54: 3316 | L54: 3164.65 | M54: 36.92023
A55: 45 | B55: BAJAJFINSV | C55: 7162.45 | D55: 7262.42 | E55: 6980.83 | F55: 6799.22 | G55: 6517.63 | H55: 7444.03 | I55: 7725.62 | J55: 7907.23 | K55: 7544 | L55: 7080.8 | M55: 6.93477
A56: 46 | B56: BAJAJHLDNG | C56: 3431 | D56: 3446.28 | E56: 3380.62 | F56: 3330.23 | G56: 3264.57 | H56: 3496.67 | I56: 3562.33 | J56: 3612.72 | K56: 3511.95 | L56: 3395.9 | M56: 0.30928
A57: 47 | B57: BALKRISIND | C57: 732.6 | D57: 728.93 | E57: 722.67 | F57: 712.73 | G57: 706.47 | H57: 738.87 | I57: 745.13 | J57: 755.07 | K57: 735.2 | L57: 719 | M57: 2.74461
A58: 48 | B58: BALMLAWRIE | C58: 174.05 | D58: 174.42 | E58: 172.63 | F58: 171.22 | G58: 169.43 | H58: 175.83 | I58: 177.62 | J58: 179.03 | K58: 176.2 | L58: 173 | M58: 0.35229
A59: 49 | B59: BALRAMCHIN | C59: 147.75 | D59: 148.08 | E59: 144.02 | F59: 140.28 | G59: 136.22 | H59: 151.82 | I59: 155.88 | J59: 159.62 | K59: 152.15 | L59: 144.35 | M59: 8.77933
A60: 50 | B60: BANDHANBNK | C60: 501.3 | D60: 509.77 | E60: 489.53 | F60: 477.77 | G60: 457.53 | H60: 521.53 | I60: 541.77 | J60: 553.53 | K60: 530 | L60: 498 | M60: 7.00676
A61: 51 | B61: BANKBARODA | C61: 118.35 | D61: 117.85 | E61: 116.35 | F61: 114.35 | G61: 112.85 | H61: 119.85 | I61: 121.35 | J61: 123.35 | K61: 119.35 | L61: 115.85 | M61: 186.68714
A62: 52 | B62: BANKINDIA | C62: 80.65 | D62: 80.15 | E62: 79.30 | F62: 77.95 | G62: 77.10 | H62: 81.50 | I62: 82.35 | J62: 83.70 | K62: 81 | L62: 78.8 | M62: 73.50038
A63: 53 | B63: MAHABANK | C63: 14.6 | D63: 14.58 | E63: 14.32 | F63: 14.03 | G63: 13.77 | H63: 14.87 | I63: 15.13 | J63: 15.42 | K63: 14.85 | L63: 14.3 | M63: 5.7001
A64: 54 | B64: BATAINDIA | C64: 1280 | D64: 1278.00 | E64: 1264.00 | F64: 1248.00 | G64: 1234.00 | H64: 1294.00 | I64: 1308.00 | J64: 1324.00 | K64: 1292 | L64: 1262 | M64: 9.29567
A65: 55 | B65: BERGEPAINT | C65: 308.05 | D65: 308.33 | E65: 305.67 | F65: 303.28 | G65: 300.62 | H65: 310.72 | I65: 313.38 | J65: 315.77 | K65: 311 | L65: 305.95 | M65: 6.0607
A66: 56 | B66: BDL | C66: 299.95 | D66: 301.07 | E66: 294.13 | F66: 288.32 | G66: 281.38 | H66: 306.88 | I66: 313.82 | J66: 319.63 | K66: 308 | L66: 295.25 | M66: 0.29385
A67: 57 | B67: BEL | C67: 100.5 | D67: 99.35 | E67: 96.95 | F67: 93.40 | G67: 91.00 | H67: 102.90 | I67: 105.30 | J67: 108.85 | K67: 101.75 | L67: 95.8 | M67: 137.20516
A68: 58 | B68: BHARATFORG | C68: 437.85 | D68: 436.72 | E68: 431.18 | F68: 424.52 | G68: 418.98 | H68: 443.38 | I68: 448.92 | J68: 455.58 | K68: 442.25 | L68: 430.05 | M68: 16.24792
A69: 59 | B69: BHEL | C69: 64.1 | D69: 63.78 | E69: 63.27 | F69: 62.43 | G69: 61.92 | H69: 64.62 | I69: 65.13 | J69: 65.97 | K69: 64.3 | L69: 62.95 | M69: 66.06532
A70: 60 | B70: BPCL | C70: 353.5 | D70: 349.53 | E70: 344.17 | F70: 334.83 | G70: 329.47 | H70: 358.87 | I70: 364.23 | J70: 373.57 | K70: 354.9 | L70: 340.2 | M70: 38.64744
A71: 61 | B71: BHARTIARTL | C71: 342.55 | D71: 340.55 | E71: 337.60 | F71: 332.65 | G71: 329.70 | H71: 345.50 | I71: 348.45 | J71: 353.40 | K71: 343.5 | L71: 335.6 | M71: 30.62655
A72: 62 | B72: INFRATEL | C72: 264.05 | D72: 263.63 | E72: 258.97 | F72: 253.88 | G72: 249.22 | H72: 268.72 | I72: 273.38 | J72: 278.47 | K72: 268.3 | L72: 258.55 | M72: 22.07103
A73: 63 | B73: BIOCON | C73: 246.5 | D73: 243.47 | E73: 239.63 | F73: 232.77 | G73: 228.93 | H73: 250.33 | I73: 254.17 | J73: 261.03 | K73: 247.3 | L73: 236.6 | M73: 41.51155
A74: 64 | B74: BIRLACORPN | C74: 582.6 | D74: 587.63 | E74: 576.17 | F74: 569.73 | G74: 558.27 | H74: 594.07 | I74: 605.53 | J74: 611.97 | K74: 599.1 | L74: 581.2 | M74: 0.25087
A75: 65 | B75: BLISSGVS | C75: 155.95 | D75: 156.20 | E75: 154.00 | F75: 152.05 | G75: 149.85 | H75: 158.15 | I75: 160.35 | J75: 162.30 | K75: 158.4 | L75: 154.25 | M75: 13.22039
A76: 66 | B76: BLUEDART | C76: 2388.55 | D76: 2391.28 | E76: 2379.27 | F76: 2369.98 | G76: 2357.97 | H76: 2400.57 | I76: 2412.58 | J76: 2421.87 | K76: 2403.3 | L76: 2382 | M76: 0.01187
A77: 67 | B77: BLUESTARCO | C77: 747.55 | D77: 738.52 | E77: 726.03 | F77: 704.52 | G77: 692.03 | H77: 760.03 | I77: 772.52 | J77: 794.03 | K77: 751 | L77: 717 | M77: 0.20948
A78: 68 | B78: BBTC | C78: 879.8 | D78: 880.20 | E78: 860.70 | F78: 841.60 | G78: 822.10 | H78: 899.30 | I78: 918.80 | J78: 937.90 | K78: 899.7 | L78: 861.1 | M78: 0.47644
A79: 69 | B79: BOMDYEING | C79: 91.35 | D79: 91.97 | E79: 90.03 | F79: 88.72 | G79: 86.78 | H79: 93.28 | I79: 95.22 | J79: 96.53 | K79: 93.9 | L79: 90.65 | M79: 6.96911
A80: 70 | B80: BOSCHLTD | C80: 15146.95 | D80: 15159.00 | E80: 15087.95 | F80: 15028.95 | G80: 14957.90 | H80: 15218.00 | I80: 15289.05 | J80: 15348.05 | K80: 15230.05 | L80: 15100 | M80: 0.14812
A81: 71 | B81: BRIGADE | C81: 272.4 | D81: 275.17 | E81: 265.33 | F81: 258.27 | G81: 248.43 | H81: 282.23 | I81: 292.07 | J81: 299.13 | K81: 285 | L81: 268.1 | M81: 0.95103
A82: 72 | B82: BRITANNIA | C82: 2734.5 | D82: 2741.93 | E82: 2710.57 | F82: 2686.63 | G82: 2655.27 | H82: 2765.87 | I82: 2797.23 | J82: 2821.17 | K82: 2773.3 | L82: 2718 | M82: 2.09576
A83: 73 | B83: CARERATING | C83: 834.2 | D83: 843.02 | E83: 823.08 | F83: 811.97 | G83: 792.03 | H83: 854.13 | I83: 874.07 | J83: 885.18 | K83: 862.95 | L83: 831.9 | M83: 0.22657
A84: 74 | B84: CCL | C84: 245.6 | D84: 244.78 | E84: 241.87 | F84: 238.13 | G84: 235.22 | H84: 248.52 | I84: 251.43 | J84: 255.17 | K84: 247.7 | L84: 241.05 | M84: 0.32477
A85: 75 | B85: CESC | C85: 756.8 | D85: 755.82 | E85: 743.23 | F85: 729.67 | G85: 717.08 | H85: 769.38 | I85: 781.97 | J85: 795.53 | K85: 768.4 | L85: 742.25 | M85: 1.79133
A86: 76 | B86: CGPOWER | C86: 21.6 | D86: 21.93 | E86: 20.97 | F86: 20.33 | G86: 19.37 | H86: 22.57 | I86: 23.53 | J86: 24.17 | K86: 22.9 | L86: 21.3 | M86: 28.17402
A87: 77 | B87: CRISIL | C87: 1373.65 | D87: 1368.00 | E87: 1345.65 | F87: 1317.65 | G87: 1295.30 | H87: 1396.00 | I87: 1418.35 | J87: 1446.35 | K87: 1390.35 | L87: 1340 | M87: 0.0552
A88: 78 | B88: CADILAHC | C88: 235.9 | D88: 232.78 | E88: 228.92 | F88: 221.93 | G88: 218.07 | H88: 239.77 | I88: 243.63 | J88: 250.62 | K88: 236.65 | L88: 225.8 | M88: 17.0716
A89: 79 | B89: CANFINHOME | C89: 375.55 | D89: 378.17 | E89: 370.13 | F89: 364.72 | G89: 356.68 | H89: 383.58 | I89: 391.62 | J89: 397.03 | K89: 386.2 | L89: 372.75 | M89: 4.52725
A90: 80 | B90: CANBK | C90: 264.35 | D90: 264.63 | E90: 260.27 | F90: 256.18 | G90: 251.82 | H90: 268.72 | I90: 273.08 | J90: 277.17 | K90: 269 | L90: 260.55 | M90: 46.66931
A91: 81 | B91: CAPLIPOINT | C91: 404.15 | D91: 408.28 | E91: 397.87 | F91: 391.58 | G91: 381.17 | H91: 414.57 | I91: 424.98 | J91: 431.27 | K91: 418.7 | L91: 402 | M91: 0.13981
A92: 82 | B92: CARBORUNIV | C92: 333.75 | D92: 329.42 | E92: 319.83 | F92: 305.92 | G92: 296.33 | H92: 343.33 | I92: 352.92 | J92: 366.83 | K92: 339 | L92: 315.5 | M92: 0.09755
A93: 83 | B93: CASTROLIND | C93: 128.85 | D93: 127.45 | E93: 125.50 | F93: 122.15 | G93: 120.20 | H93: 130.80 | I93: 132.75 | J93: 136.10 | K93: 129.4 | L93: 124.1 | M93: 12.58059
A94: 84 | B94: CEATLTD | C94: 855.9 | D94: 857.80 | E94: 848.60 | F94: 841.30 | G94: 832.10 | H94: 865.10 | I94: 874.30 | J94: 881.60 | K94: 867 | L94: 850.5 | M94: 1.12317
A95: 85 | B95: CENTRALBK | C95: 18.5 | D95: 18.65 | E95: 18.30 | F95: 18.10 | G95: 17.75 | H95: 18.85 | I95: 19.20 | J95: 19.40 | K95: 19 | L95: 18.45 | M95: 5.05488
A96: 86 | B96: CDSL | C96: 194.8 | D96: 196.28 | E96: 192.57 | F96: 190.33 | G96: 186.62 | H96: 198.52 | I96: 202.23 | J96: 204.47 | K96: 200 | L96: 194.05 | M96: 2.02144
A97: 87 | B97: CENTURYPLY | C97: 133.85 | D97: 130.80 | E97: 125.60 | F97: 117.35 | G97: 112.15 | H97: 139.05 | I97: 144.25 | J97: 152.50 | K97: 136 | L97: 122.55 | M97: 3.35131
A98: 88 | B98: CERA | C98: 2591.95 | D98: 2614.65 | E98: 2529.30 | F98: 2466.65 | G98: 2381.30 | H98: 2677.30 | I98: 2762.65 | J98: 2825.30 | K98: 2700 | L98: 2552 | M98: 0.08825
A99: 89 | B99: CHAMBLFERT | C99: 156.9 | D99: 158.47 | E99: 154.58 | F99: 152.27 | G99: 148.38 | H99: 160.78 | I99: 164.67 | J99: 166.98 | K99: 162.35 | L99: 156.15 | M99: 0.75276
A100: 90 | B100: CHENNPETRO | C100: 194.5 | D100: 192.73 | E100: 188.62 | F100: 182.73 | G100: 178.62 | H100: 198.62 | I100: 202.73 | J100: 208.62 | K100: 196.85 | L100: 186.85 | M100: 1.00793
A101: 91 | B101: CHOLAHLDNG | C101: 491.95 | D101: 489.08 | E101: 483.17 | F101: 474.38 | G101: 468.47 | H101: 497.87 | I101: 503.78 | J101: 512.57 | K101: 495 | L101: 480.3 | M101: 0.64908
A102: 92 | B102: CHOLAFIN | C102: 254.95 | D102: 257.42 | E102: 251.03 | F102: 247.12 | G102: 240.73 | H102: 261.33 | I102: 267.72 | J102: 271.63 | K102: 263.8 | L102: 253.5 | M102: 12.64972
A103: 93 | B103: CIPLA | C103: 530.95 | D103: 532.38 | E103: 524.77 | F103: 518.58 | G103: 510.97 | H103: 538.57 | I103: 546.18 | J103: 552.37 | K103: 540 | L103: 526.2 | M103: 18.16845
A104: 94 | B104: CUB | C104: 197.45 | D104: 198.98 | E104: 194.57 | F104: 191.68 | G104: 187.27 | H104: 201.87 | I104: 206.28 | J104: 209.17 | K104: 203.4 | L104: 196.1 | M104: 12.32137
A105: 95 | B105: COALINDIA | C105: 221.4 | D105: 220.30 | E105: 217.45 | F105: 213.50 | G105: 210.65 | H105: 224.25 | I105: 227.10 | J105: 231.05 | K105: 223.15 | L105: 216.35 | M105: 56.07789
A106: 96 | B106: COCHINSHIP | C106: 360.4 | D106: 359.47 | E106: 355.93 | F106: 351.47 | G106: 347.93 | H106: 363.93 | I106: 367.47 | J106: 371.93 | K106: 363 | L106: 355 | M106: 0.26736
A107: 97 | B107: COFFEEDAY | C107: 199.65 | D107: 197.38 | E107: 191.27 | F107: 182.88 | G107: 176.77 | H107: 205.77 | I107: 211.88 | J107: 220.27 | K107: 203.5 | L107: 189 | M107: 1.69936
A108: 98 | B108: COLPAL | C108: 1164.35 | D108: 1169.82 | E108: 1150.63 | F108: 1136.92 | G108: 1117.73 | H108: 1183.53 | I108: 1202.72 | J108: 1216.43 | K108: 1189 | L108: 1156.1 | M108: 4.03691
A109: 99 | B109: CONCOR | C109: 537.75 | D109: 535.47 | E109: 528.48 | F109: 519.22 | G109: 512.23 | H109: 544.73 | I109: 551.72 | J109: 560.98 | K109: 542.45 | L109: 526.2 | M109: 7.92612
A110: 100 | B110: COROMANDEL | C110: 379.5 | D110: 375.43 | E110: 369.17 | F110: 358.83 | G110: 352.57 | H110: 385.77 | I110: 392.03 | J110: 402.37 | K110: 381.7 | L110: 365.1 | M110: 1.0205
A111: 101 | B111: CORPBANK | C111: 25.15 | D111: 25.13 | E111: 24.42 | F111: 23.68 | G111: 22.97 | H111: 25.87 | I111: 26.58 | J111: 27.32 | K111: 25.85 | L111: 24.4 | M111: 0.79913
A112: 102 | B112: COX&KINGS | C112: 16.35 | D112: 16.35 | E112: 16.35 | F112: 16.35 | G112: 16.35 | H112: 16.35 | I112: 16.35 | J112: 16.35 | K112: 16.35 | L112: 16.35 | M112: 0.35012
A113: 103 | B113: CREDITACC | C113: 501.65 | D113: 499.48 | E113: 487.17 | F113: 472.68 | G113: 460.37 | H113: 513.97 | I113: 526.28 | J113: 540.77 | K113: 511.8 | L113: 485 | M113: 0.32755
A114: 104 | B114: CROMPTON | C114: 225.5 | D114: 226.55 | E114: 222.15 | F114: 218.80 | G114: 214.40 | H114: 229.90 | I114: 234.30 | J114: 237.65 | K114: 230.95 | L114: 223.2 | M114: 4.71806
A115: 105 | B115: CUMMINSIND | C115: 726.15 | D115: 726.92 | E115: 719.43 | F115: 712.72 | G115: 705.23 | H115: 733.63 | I115: 741.12 | J115: 747.83 | K115: 734.4 | L115: 720.2 | M115: 1.76754
A116: 106 | B116: CYIENT | C116: 460.5 | D116: 465.35 | E116: 440.15 | F116: 419.80 | G116: 394.60 | H116: 485.70 | I116: 510.90 | J116: 531.25 | K116: 490.55 | L116: 445 | M116: 13.22878
A117: 107 | B117: DBCORP | C117: 164.35 | D117: 164.72 | E117: 161.43 | F117: 158.52 | G117: 155.23 | H117: 167.63 | I117: 170.92 | J117: 173.83 | K117: 168 | L117: 161.8 | M117: 0.95603
A118: 108 | B118: DCBBANK | C118: 192.55 | D118: 191.37 | E118: 187.53 | F118: 182.52 | G118: 178.68 | H118: 196.38 | I118: 200.22 | J118: 205.23 | K118: 195.2 | L118: 186.35 | M118: 18.88416
A119: 109 | B119: DCMSHRIRAM | C119: 495.3 | D119: 497.03 | E119: 490.02 | F119: 484.73 | G119: 477.72 | H119: 502.32 | I119: 509.33 | J119: 514.62 | K119: 504.05 | L119: 491.75 | M119: 0.63548
A120: 110 | B120: DLF | C120: 179.5 | D120: 179.28 | E120: 176.42 | F120: 173.33 | G120: 170.47 | H120: 182.37 | I120: 185.23 | J120: 188.32 | K120: 182.15 | L120: 176.2 | M120: 53.86468
A121: 111 | B121: DABUR | C121: 421.4 | D121: 422.70 | E121: 416.50 | F121: 411.60 | G121: 405.40 | H121: 427.60 | I121: 433.80 | J121: 438.70 | K121: 428.9 | L121: 417.8 | M121: 31.04361
A122: 112 | B122: DEEPAKFERT | C122: 87.05 | D122: 87.47 | E122: 84.93 | F122: 82.82 | G122: 80.28 | H122: 89.58 | I122: 92.12 | J122: 94.23 | K122: 90 | L122: 85.35 | M122: 1.87845
A123: 113 | B123: DEEPAKNTR | C123: 291.65 | D123: 294.62 | E123: 287.23 | F123: 282.82 | G123: 275.43 | H123: 299.03 | I123: 306.42 | J123: 310.83 | K123: 302 | L123: 290.2 | M123: 1.99598
A124: 114 | B124: DELTACORP | C124: 154.55 | D124: 154.48 | E124: 152.07 | F124: 149.58 | G124: 147.17 | H124: 156.97 | I124: 159.38 | J124: 161.87 | K124: 156.9 | L124: 152 | M124: 7.07283
A125: 115 | B125: DHFL | C125: 52.5 | D125: 53.07 | E125: 50.13 | F125: 47.77 | G125: 44.83 | H125: 55.43 | I125: 58.37 | J125: 60.73 | K125: 56 | L125: 50.7 | M125: 447.47551
A126: 116 | B126: DBL | C126: 419.8 | D126: 413.18 | E126: 402.72 | F126: 385.63 | G126: 375.17 | H126: 430.27 | I126: 440.73 | J126: 457.82 | K126: 423.65 | L126: 396.1 | M126: 3.04549
A127: 117 | B127: DISHTV | C127: 33.75 | D127: 33.00 | E127: 31.80 | F127: 29.85 | G127: 28.65 | H127: 34.95 | I127: 36.15 | J127: 38.10 | K127: 34.2 | L127: 31.05 | M127: 393.43337
A128: 118 | B128: DCAL | C128: 208.2 | D128: 208.27 | E128: 201.63 | F128: 195.07 | G128: 188.43 | H128: 214.83 | I128: 221.47 | J128: 228.03 | K128: 214.9 | L128: 201.7 | M128: 0.9374
A129: 119 | B129: DIVISLAB | C129: 1625.35 | D129: 1619.22 | E129: 1607.13 | F129: 1588.92 | G129: 1576.83 | H129: 1637.43 | I129: 1649.52 | J129: 1667.73 | K129: 1631.3 | L129: 1601 | M129: 2.48393
A130: 120 | B130: DIXON | C130: 2198.8 | D130: 2190.25 | E130: 2170.60 | F130: 2142.40 | G130: 2122.75 | H130: 2218.45 | I130: 2238.10 | J130: 2266.30 | K130: 2209.9 | L130: 2162.05 | M130: 0.04016
A131: 121 | B131: LALPATHLAB | C131: 1094.8 | D131: 1086.45 | E131: 1063.45 | F131: 1032.10 | G131: 1009.10 | H131: 1117.80 | I131: 1140.80 | J131: 1172.15 | K131: 1109.45 | L131: 1055.1 | M131: 0.26118
A132: 122 | B132: DRREDDY | C132: 2632.5 | D132: 2624.90 | E132: 2607.80 | F132: 2583.10 | G132: 2566.00 | H132: 2649.60 | I132: 2666.70 | J132: 2691.40 | K132: 2642 | L132: 2600.2 | M132: 3.49052
A133: 123 | B133: EIDPARRY | C133: 160.2 | D133: 161.75 | E133: 157.05 | F133: 153.90 | G133: 149.20 | H133: 164.90 | I133: 169.60 | J133: 172.75 | K133: 166.45 | L133: 158.6 | M133: 0.70471
A134: 124 | B134: EIHOTEL | C134: 163.2 | D134: 164.63 | E134: 160.47 | F134: 157.73 | G134: 153.57 | H134: 167.37 | I134: 171.53 | J134: 174.27 | K134: 168.8 | L134: 161.9 | M134: 0.48865
A135: 125 | B135: EDELWEISS | C135: 142.85 | D135: 145.15 | E135: 137.80 | F135: 132.75 | G135: 125.40 | H135: 150.20 | I135: 157.55 | J135: 162.60 | K135: 152.5 | L135: 140.1 | M135: 39.91027
A136: 126 | B136: EICHERMOT | C136: 17072 | D136: 17280.35 | E136: 16766.60 | F136: 16461.20 | G136: 15947.45 | H136: 17585.75 | I136: 18099.50 | J136: 18404.90 | K136: 17794.1 | L136: 16974.95 | M136: 2.33448
A137: 127 | B137: ELGIEQUIP | C137: 261.85 | D137: 261.85 | E137: 259.70 | F137: 257.55 | G137: 255.40 | H137: 264.00 | I137: 266.15 | J137: 268.30 | K137: 264 | L137: 259.7 | M137: 0.29028
A138: 128 | B138: EMAMILTD | C138: 318.3 | D138: 319.03 | E138: 313.57 | F138: 308.83 | G138: 303.37 | H138: 323.77 | I138: 329.23 | J138: 333.97 | K138: 324.5 | L138: 314.3 | M138: 2.46356
A139: 129 | B139: ENDURANCE | C139: 923.4 | D139: 927.98 | E139: 904.02 | F139: 884.63 | G139: 860.67 | H139: 947.37 | I139: 971.33 | J139: 990.72 | K139: 951.95 | L139: 908.6 | M139: 0.39138
A140: 130 | B140: ENGINERSIN | C140: 107.75 | D140: 107.22 | E140: 105.78 | F140: 103.82 | G140: 102.38 | H140: 109.18 | I140: 110.62 | J140: 112.58 | K140: 108.65 | L140: 105.25 | M140: 11.00032
A141: 131 | B141: EQUITAS | C141: 116.85 | D141: 115.43 | E141: 113.62 | F141: 110.38 | G141: 108.57 | H141: 118.67 | I141: 120.48 | J141: 123.72 | K141: 117.25 | L141: 112.2 | M141: 25.4548
A142: 132 | B142: ERIS | C142: 420.6 | D142: 416.47 | E142: 404.13 | F142: 387.67 | G142: 375.33 | H142: 432.93 | I142: 445.27 | J142: 461.73 | K142: 428.8 | L142: 400 | M142: 0.52259
A143: 133 | B143: ESCORTS | C143: 493.45 | D143: 495.65 | E143: 484.40 | F143: 475.35 | G143: 464.10 | H143: 504.70 | I143: 515.95 | J143: 525.00 | K143: 506.9 | L143: 486.6 | M143: 31.18889
A144: 134 | B144: ESSELPACK | C144: 132.2 | D144: 131.52 | E144: 130.53 | F144: 128.87 | G144: 127.88 | H144: 133.18 | I144: 134.17 | J144: 135.83 | K144: 132.5 | L144: 129.85 | M144: 2.57278
A145: 135 | B145: EXIDEIND | C145: 191.65 | D145: 190.15 | E145: 186.70 | F145: 181.75 | G145: 178.30 | H145: 195.10 | I145: 198.55 | J145: 203.50 | K145: 193.6 | L145: 185.2 | M145: 22.5799
A146: 136 | B146: FDC | C146: 157.65 | D146: 155.88 | E146: 152.97 | F146: 148.28 | G146: 145.37 | H146: 160.57 | I146: 163.48 | J146: 168.17 | K146: 158.8 | L146: 151.2 | M146: 0.85983
A147: 137 | B147: FEDERALBNK | C147: 95.6 | D147: 96.33 | E147: 93.87 | F147: 92.13 | G147: 89.67 | H147: 98.07 | I147: 100.53 | J147: 102.27 | K147: 98.8 | L147: 94.6 | M147: 191.64127
A148: 138 | B148: FINEORG | C148: 1418.15 | D148: 1412.05 | E148: 1386.25 | F148: 1354.35 | G148: 1328.55 | H148: 1443.95 | I148: 1469.75 | J148: 1501.65 | K148: 1437.85 | L148: 1380.15 | M148: 0.03856
A149: 139 | B149: FINCABLES | C149: 386.45 | D149: 384.12 | E149: 379.23 | F149: 372.02 | G149: 367.13 | H149: 391.33 | I149: 396.22 | J149: 403.43 | K149: 389 | L149: 376.9 | M149: 0.25835
A150: 140 | B150: FINPIPE | C150: 513.95 | D150: 516.32 | E150: 505.63 | F150: 497.32 | G150: 486.63 | H150: 524.63 | I150: 535.32 | J150: 543.63 | K150: 527 | L150: 508 | M150: 2.14694
A151: 141 | B151: FSL | C151: 50.75 | D151: 51.03 | E151: 50.22 | F151: 49.68 | G151: 48.87 | H151: 51.57 | I151: 52.38 | J151: 52.92 | K151: 51.85 | L151: 50.5 | M151: 11.98841
A152: 142 | B152: FORTIS | C152: 129.3 | D152: 128.82 | E152: 128.03 | F152: 126.77 | G152: 125.98 | H152: 130.08 | I152: 130.87 | J152: 132.13 | K152: 129.6 | L152: 127.55 | M152: 3.91556
A153: 143 | B153: FCONSUMER | C153: 34.9 | D153: 34.98 | E153: 34.07 | F153: 33.23 | G153: 32.32 | H153: 35.82 | I153: 36.73 | J153: 37.57 | K153: 35.9 | L153: 34.15 | M153: 9.64223
A154: 144 | B154: FLFL | C154: 451.05 | D154: 447.87 | E154: 430.73 | F154: 410.42 | G154: 393.28 | H154: 468.18 | I154: 485.32 | J154: 505.63 | K154: 465 | L154: 427.55 | M154: 1.06195
A155: 145 | B155: FRETAIL | C155: 420.4 | D155: 420.35 | E155: 415.70 | F155: 411.00 | G155: 406.35 | H155: 425.05 | I155: 429.70 | J155: 434.40 | K155: 425 | L155: 415.65 | M155: 1.4791
A156: 146 | B156: GAIL | C156: 138 | D156: 137.20 | E156: 135.65 | F156: 133.30 | G156: 131.75 | H156: 139.55 | I156: 141.10 | J156: 143.45 | K156: 138.75 | L156: 134.85 | M156: 68.4699
A157: 147 | B157: GEPIL | C157: 795.55 | D157: 803.88 | E157: 784.17 | F157: 772.78 | G157: 753.07 | H157: 815.27 | I157: 834.98 | J157: 846.37 | K157: 823.6 | L157: 792.5 | M157: 0.08286
A158: 148 | B158: GET&D | C158: 212.95 | D158: 213.97 | E158: 210.98 | F158: 209.02 | G158: 206.03 | H158: 215.93 | I158: 218.92 | J158: 220.88 | K158: 216.95 | L158: 212 | M158: 0.10136
A159: 149 | B159: GHCL | C159: 206.25 | D159: 206.98 | E159: 204.22 | F159: 202.18 | G159: 199.42 | H159: 209.02 | I159: 211.78 | J159: 213.82 | K159: 209.75 | L159: 204.95 | M159: 0.52491
A160: 150 | B160: GMRINFRA | C160: 14.75 | D160: 14.72 | E160: 14.58 | F160: 14.42 | G160: 14.28 | H160: 14.88 | I160: 15.02 | J160: 15.18 | K160: 14.85 | L160: 14.55 | M160: 76.92672
A161: 151 | B161: GALAXYSURF | C161: 1214.95 | D161: 1198.13 | E161: 1171.32 | F161: 1127.68 | G161: 1100.87 | H161: 1241.77 | I161: 1268.58 | J161: 1312.22 | K161: 1224.95 | L161: 1154.5 | M161: 0.04927
A162: 152 | B162: GDL | C162: 114.2 | D162: 114.20 | E162: 113.10 | F162: 112.00 | G162: 110.90 | H162: 115.30 | I162: 116.40 | J162: 117.50 | K162: 115.3 | L162: 113.1 | M162: 0.35216
A163: 153 | B163: GAYAPROJ | C163: 135.95 | D163: 137.13 | E163: 134.12 | F163: 132.28 | G163: 129.27 | H163: 138.97 | I163: 141.98 | J163: 143.82 | K163: 140.15 | L163: 135.3 | M163: 0.87981
A164: 154 | B164: GICRE | C164: 221.3 | D164: 221.97 | E164: 216.48 | F164: 211.67 | G164: 206.18 | H164: 226.78 | I164: 232.27 | J164: 237.08 | K164: 227.45 | L164: 217.15 | M164: 0.69448
A165: 155 | B165: GILLETTE | C165: 7010.1 | D165: 6991.80 | E165: 6953.60 | F165: 6897.10 | G165: 6858.90 | H165: 7048.30 | I165: 7086.50 | J165: 7143.00 | K165: 7030 | L165: 6935.3 | M165: 0.01784
A166: 156 | B166: GSKCONS | C166: 7256.6 | D166: 7275.42 | E166: 7157.28 | F166: 7057.97 | G166: 6939.83 | H166: 7374.73 | I166: 7492.87 | J166: 7592.18 | K166: 7393.55 | L166: 7176.1 | M166: 0.108
A167: 157 | B167: GLAXO | C167: 1187.25 | D167: 1185.22 | E167: 1156.03 | F167: 1124.82 | G167: 1095.63 | H167: 1216.43 | I167: 1245.62 | J167: 1276.83 | K167: 1214.4 | L167: 1154 | M167: 0.73623
A168: 158 | B168: GLENMARK | C168: 427.5 | D168: 426.97 | E168: 421.03 | F168: 414.57 | G168: 408.63 | H168: 433.43 | I168: 439.37 | J168: 445.83 | K168: 432.9 | L168: 420.5 | M168: 8.43733
A169: 159 | B169: GODFRYPHLP | C169: 750.6 | D169: 754.63 | E169: 743.27 | F169: 735.93 | G169: 724.57 | H169: 761.97 | I169: 773.33 | J169: 780.67 | K169: 766 | L169: 747.3 | M169: 0.28172
A170: 160 | B170: GODREJAGRO | C170: 484.65 | D170: 483.00 | E170: 476.65 | F170: 468.65 | G170: 462.30 | H170: 491.00 | I170: 497.35 | J170: 505.35 | K170: 489.35 | L170: 475 | M170: 0.3526
A171: 161 | B171: GODREJCP | C171: 621.2 | D171: 621.72 | E171: 614.48 | F171: 607.77 | G171: 600.53 | H171: 628.43 | I171: 635.67 | J171: 642.38 | K171: 628.95 | L171: 615 | M171: 6.71516
A172: 162 | B172: GODREJIND | C172: 475.15 | D172: 474.27 | E172: 468.53 | F172: 461.92 | G172: 456.18 | H172: 480.88 | I172: 486.62 | J172: 493.23 | K172: 480 | L172: 467.65 | M172: 2.02023
A173: 163 | B173: GODREJPROP | C173: 946.65 | D173: 937.60 | E173: 906.30 | F173: 865.95 | G173: 834.65 | H173: 977.95 | I173: 1009.25 | J173: 1049.60 | K173: 968.9 | L173: 897.25 | M173: 4.96392
A174: 164 | B174: GRANULES | C174: 85.4 | D174: 86.43 | E174: 83.87 | F174: 82.33 | G174: 79.77 | H174: 87.97 | I174: 90.53 | J174: 92.07 | K174: 89 | L174: 84.9 | M174: 4.30549
A175: 165 | B175: GRAPHITE | C175: 263.35 | D175: 265.00 | E175: 253.50 | F175: 243.65 | G175: 232.15 | H175: 274.85 | I175: 286.35 | J175: 296.20 | K175: 276.5 | L175: 255.15 | M175: 20.65611
A176: 166 | B176: GRASIM | C176: 892.15 | D176: 883.47 | E176: 871.78 | F176: 851.42 | G176: 839.73 | H176: 903.83 | I176: 915.52 | J176: 935.88 | K176: 895.15 | L176: 863.1 | M176: 8.97469
A177: 167 | B177: GESHIP | C177: 250.15 | D177: 253.57 | E177: 245.68 | F177: 241.22 | G177: 233.33 | H177: 258.03 | I177: 265.92 | J177: 270.38 | K177: 261.45 | L177: 249.1 | M177: 0.29915
A178: 168 | B178: GREAVESCOT | C178: 140.85 | D178: 139.88 | E178: 138.07 | F178: 135.28 | G178: 133.47 | H178: 142.67 | I178: 144.48 | J178: 147.27 | K178: 141.7 | L178: 137.1 | M178: 2.80861
A179: 169 | B179: GRINDWELL | C179: 554.7 | D179: 558.85 | E179: 546.40 | F179: 538.10 | G179: 525.65 | H179: 567.15 | I179: 579.60 | J179: 587.90 | K179: 571.3 | L179: 550.55 | M179: 0.05868
A180: 170 | B180: GRUH | C180: 275.05 | D180: 277.35 | E180: 270.70 | F180: 266.35 | G180: 259.70 | H180: 281.70 | I180: 288.35 | J180: 292.70 | K180: 284 | L180: 273 | M180: 12.42944
A181: 171 | B181: GUJALKALI | C181: 452.1 | D181: 454.20 | E181: 444.95 | F181: 437.80 | G181: 428.55 | H181: 461.35 | I181: 470.60 | J181: 477.75 | K181: 463.45 | L181: 447.05 | M181: 0.23166
A182: 172 | B182: GUJFLUORO | C182: 897.4 | D182: 906.13 | E182: 882.77 | F182: 868.13 | G182: 844.77 | H182: 920.77 | I182: 944.13 | J182: 958.77 | K182: 929.5 | L182: 891.5 | M182: 0.43861
A183: 173 | B183: GUJGASLTD | C183: 163.8 | D183: 163.45 | E183: 160.95 | F183: 158.10 | G183: 155.60 | H183: 166.30 | I183: 168.80 | J183: 171.65 | K183: 165.95 | L183: 160.6 | M183: 13.05249
A184: 174 | B184: GMDCLTD | C184: 70.55 | D184: 70.65 | E184: 70.15 | F184: 69.75 | G184: 69.25 | H184: 71.05 | I184: 71.55 | J184: 71.95 | K184: 71.15 | L184: 70.25 | M184: 0.88293
A185: 175 | B185: GNFC | C185: 205.6 | D185: 207.78 | E185: 201.82 | F185: 198.03 | G185: 192.07 | H185: 211.57 | I185: 217.53 | J185: 221.32 | K185: 213.75 | L185: 204 | M185: 4.22977
A186: 176 | B186: GPPL | C186: 79.75 | D186: 79.83 | E186: 78.77 | F186: 77.78 | G186: 76.72 | H186: 80.82 | I186: 81.88 | J186: 82.87 | K186: 80.9 | L186: 78.85 | M186: 2.65865
A187: 177 | B187: GSFC | C187: 85.1 | D187: 85.50 | E187: 84.30 | F187: 83.50 | G187: 82.30 | H187: 86.30 | I187: 87.50 | J187: 88.30 | K187: 86.7 | L187: 84.7 | M187: 2.88976
A188: 178 | B188: GSPL | C188: 206.1 | D188: 206.70 | E188: 204.40 | F188: 202.70 | G188: 200.40 | H188: 208.40 | I188: 210.70 | J188: 212.40 | K188: 209 | L188: 205 | M188: 1.47334
A189: 179 | B189: GULFOILLUB | C189: 795.2 | D189: 792.05 | E189: 784.10 | F189: 773.00 | G189: 765.05 | H189: 803.15 | I189: 811.10 | J189: 822.20 | K189: 800 | L189: 780.95 | M189: 0.1447
A190: 180 | B190: HEG | C190: 949.85 | D190: 962.78 | E190: 908.57 | F190: 867.28 | G190: 813.07 | H190: 1004.07 | I190: 1058.28 | J190: 1099.57 | K190: 1017 | L190: 921.5 | M190: 12.63633
A191: 181 | B191: HCLTECH | C191: 1018.95 | D191: 1016.48 | E191: 1005.72 | F191: 992.48 | G191: 981.72 | H191: 1029.72 | I191: 1040.48 | J191: 1053.72 | K191: 1027.25 | L191: 1003.25 | M191: 9.51078
A192: 182 | B192: HDFCAMC | C192: 2204.7 | D192: 2226.32 | E192: 2158.63 | F192: 2112.57 | G192: 2044.88 | H192: 2272.38 | I192: 2340.07 | J192: 2386.13 | K192: 2294 | L192: 2180.25 | M192: 5.62321
A193: 183 | B193: HDFCBANK | C193: 2297.25 | D193: 2309.45 | E193: 2269.05 | F193: 2240.85 | G193: 2200.45 | H193: 2337.65 | I193: 2378.05 | J193: 2406.25 | K193: 2349.85 | L193: 2281.25 | M193: 55.42824
A194: 184 | B194: HDFCLIFE | C194: 490.65 | D194: 489.17 | E194: 480.53 | F194: 470.42 | G194: 461.78 | H194: 499.28 | I194: 507.92 | J194: 518.03 | K194: 497.8 | L194: 479.05 | M194: 20.24584
A195: 185 | B195: HATHWAY | C195: 21 | D195: 20.73 | E195: 20.02 | F195: 19.03 | G195: 18.32 | H195: 21.72 | I195: 22.43 | J195: 23.42 | K195: 21.45 | L195: 19.75 | M195: 0.87154
A196: 186 | B196: HATSUN | C196: 707.8 | D196: 716.27 | E196: 691.78 | F196: 675.77 | G196: 651.28 | H196: 732.28 | I196: 756.77 | J196: 772.78 | K196: 740.75 | L196: 700.25 | M196: 0.13534
A197: 187 | B197: HAVELLS | C197: 722.7 | D197: 718.43 | E197: 710.82 | F197: 698.93 | G197: 691.32 | H197: 730.32 | I197: 737.93 | J197: 749.82 | K197: 726.05 | L197: 706.55 | M197: 6.87666
A198: 188 | B198: HEIDELBERG | C198: 194.95 | D198: 196.53 | E198: 191.27 | F198: 187.58 | G198: 182.32 | H198: 200.22 | I198: 205.48 | J198: 209.17 | K198: 201.8 | L198: 192.85 | M198: 1.83699
A199: 189 | B199: HERITGFOOD | C199: 358.05 | D199: 360.03 | E199: 350.07 | F199: 342.08 | G199: 332.12 | H199: 368.02 | I199: 377.98 | J199: 385.97 | K199: 370 | L199: 352.05 | M199: 0.25145
A200: 190 | B200: HEROMOTOCO | C200: 2403.7 | D200: 2406.12 | E200: 2358.23 | F200: 2312.77 | G200: 2264.88 | H200: 2451.58 | I200: 2499.47 | J200: 2544.93 | K200: 2454 | L200: 2360.65 | M200: 11.36002
A201: 191 | B201: HEXAWARE | C201: 357.7 | D201: 357.42 | E201: 355.13 | F201: 352.57 | G201: 350.28 | H201: 359.98 | I201: 362.27 | J201: 364.83 | K201: 359.7 | L201: 354.85 | M201: 3.10981
A202: 192 | B202: HFCL | C202: 19.85 | D202: 19.92 | E202: 19.73 | F202: 19.62 | G202: 19.43 | H202: 20.03 | I202: 20.22 | J202: 20.33 | K202: 20.1 | L202: 19.8 | M202: 9.13473
A203: 193 | B203: HSCL | C203: 82.5 | D203: 83.90 | E203: 79.80 | F203: 77.10 | G203: 73.00 | H203: 86.60 | I203: 90.70 | J203: 93.40 | K203: 88 | L203: 81.2 | M203: 6.23622
A204: 194 | B204: HIMATSEIDE | C204: 144.5 | D204: 144.60 | E204: 141.20 | F204: 137.90 | G204: 134.50 | H204: 147.90 | I204: 151.30 | J204: 154.60 | K204: 148 | L204: 141.3 | M204: 0.56834
A205: 195 | B205: HINDALCO | C205: 202.4 | D205: 200.88 | E205: 196.32 | F205: 190.23 | G205: 185.67 | H205: 206.97 | I205: 211.53 | J205: 217.62 | K205: 205.45 | L205: 194.8 | M205: 91.47466
A206: 196 | B206: HAL | C206: 673.9 | D206: 674.63 | E206: 669.27 | F206: 664.63 | G206: 659.27 | H206: 679.27 | I206: 684.63 | J206: 689.27 | K206: 680 | L206: 670 | M206: 0.11767
... 320 more rows

Sheet Bulk Deals
E6: Back To Main Page
A7: Subject : | B7: BULK DEAL | D7: =Main!B10 -> 2019-07-23
A9: Date | B9: Scrip code | C9: Scrip Name | D9: Client Name | E9: Buy / Sell | F9: Quantity Traded | G9: Trade Price / Wt.Avg.trade price | H9: Exchange
A10: 2019-07-22 | B10: 537766 | C10: BCP | D10: ACHINTYA SECURITIES PVT. LTD. | E10: BUY | F10: 765,547 | G10: 44.32 | H10: BSE
A11: 2019-07-22 | B11: 537766 | C11: BCP | D11: ACHINTYA SECURITIES PVT. LTD. | E11: SELL | F11: 765,547 | G11: 44.36 | H11: BSE
A12: 2019-07-22 | B12: 504340 | C12: CONFINT | D12: SWARUPGUCHHAIT | E12: BUY | F12: 60,000 | G12: 0.78 | H12: BSE
A13: 2019-07-22 | B13: 504340 | C13: CONFINT | D13: ESQUIRE ENCLAVE PRIVATE LIMITED | E13: SELL | F13: 136,473 | G13: 0.78 | H13: BSE
A14: 2019-07-22 | B14: 504340 | C14: CONFINT | D14: MORYO INDUSTRIES LIMITED | E14: BUY | F14: 55,102 | G14: 0.77 | H14: BSE
A15: 2019-07-22 | B15: 539770 | C15: DARJEELING | D15: NIRAJ RAJNIKANT SHAH | E15: BUY | F15: 40,000 | G15: 94 | H15: BSE
A16: 2019-07-22 | B16: 539770 | C16: DARJEELING | D16: ANKUR SURESH MEHTA | E16: SELL | F16: 40,000 | G16: 94 | H16: BSE
A17: 2019-07-22 | B17: 542446 | C17: JONJUA | D17: USHA BAID | E17: BUY | F17: 30,000 | G17: 13.00 | H17: BSE
A18: 2019-07-22 | B18: 540937 | C18: MEDICO | D18: ARYAMAN BROKING LIMITED | E18: SELL | F18: 99,600 | G18: 85.71 | H18: BSE
A19: 2019-07-22 | B19: 540937 | C19: MEDICO | D19: EMRALD COMMERCIAL LIMITED | E19: BUY | F19: 99,600 | G19: 85.71 | H19: BSE
A20: 2019-07-22 | B20: 540416 | C20: OCTAWARE | D20: S K GROWTH FUND PVT LTD | E20: BUY | F20: 20,800 | G20: 98.5 | H20: BSE
A21: 2019-07-22 | B21: 540416 | C21: OCTAWARE | D21: ARYAMAN BROKING LIMITED | E21: SELL | F21: 20,800 | G21: 98.50 | H21: BSE
A22: 2019-07-22 | B22: 539760 | C22: RELICAB | D22: EMRALD COMMERCIAL LIMITED | E22: BUY | F22: 90,000 | G22: 48.80 | H22: BSE
A23: 2019-07-22 | B23: 539760 | C23: RELICAB | D23: SAJANKUMAR RAMESHWARLAL BAJAJ | E23: SELL | F23: 90,000 | G23: 48.8 | H23: BSE
A24: 2019-07-22 | B24: 539026 | C24: SSPNFIN | D24: DINANATH YADAV | E24: BUY | F24: 6,000 | G24: 45.15 | H24: BSE
A25: 2019-07-22 | B25: 539026 | C25: SSPNFIN | D25: DINANATH YADAV | E25: SELL | F25: 18,000 | G25: 42.4 | H25: BSE
A26: 2019-07-22 | B26: 539026 | C26: SSPNFIN | D26: DEVJEET CHAKRABORTY | E26: BUY | F26: 24,000 | G26: 43.80 | H26: BSE
A27: 2019-07-22 | B27: 541701 | C27: SUPERSHAKT | D27: ASIA INVESTMENT CORPORATION MAURITIUS LIMITED | E27: SELL | F27: 126,900 | G27: 406 | H27: BSE
A28: 2019-07-22 | B28: 541701 | C28: SUPERSHAKT | D28: CONNECOR INVESTMENT ENTERPRISE LIMITED . | E28: BUY | F28: 82,800 | G28: 406 | H28: BSE
A29: 2019-07-22 | B29: 541701 | C29: SUPERSHAKT | D29: LGOF GLOBAL OPPORTUNITIES LIMITED | E29: BUY | F29: 82,800 | G29: 406 | H29: BSE
A30: 2019-07-22 | B30: 541701 | C30: SUPERSHAKT | D30: LTS INVESTMENT FUND LTD | E30: SELL | F30: 38,700 | G30: 406 | H30: BSE
A31: 2019-07-22 | B31: 530045 | C31: TITANSEC | D31: S UDIT SECURITIES (P) LTD | E31: SELL | F31: 141,669 | G31: 3.48 | H31: BSE
A32: 2019-07-22 | B32: 539097 | C32: YOGYA | D32: MADHUKAR SHETH | E32: BUY | F32: 80,000 | G32: 27.1 | H32: BSE
A33: 2019-07-22 | B33: 539097 | C33: YOGYA | D33: MULCHAND KARANSHI MOTA | E33: SELL | F33: 64,000 | G33: 27.05 | H33: BSE
A34: 2019-07-22 | B34: ARVIND | C34: Arvind Limited | D34: TOWER RESEARCH CAPITAL MARKETS INDIA PRIVATE LIMITED | E34: BUY | F34: 1,342,994 | G34: 57.84 | H34: NSE
A35: 2019-07-22 | B35: DHFL | C35: Dewan Housing Fin Corp | D35: ALPHAGREP SECURITIES PRIVATE LIMITED | E35: BUY | F35: 2,145,309 | G35: 53.41 | H35: NSE
A36: 2019-07-22 | B36: DHFL | C36: Dewan Housing Fin Corp | D36: TOWER RESEARCH CAPITAL MARKETS INDIA PRIVATE LIMITED | E36: BUY | F36: 4,371,989 | G36: 53.47 | H36: NSE
A37: 2019-07-22 | B37: DHFL | C37: Dewan Housing Fin Corp | D37: DIVYA PORTFOLIO PRIVATE LIMITED | E37: BUY | F37: 1,729,236 | G37: 53.96 | H37: NSE
A38: 2019-07-22 | B38: DHFL | C38: Dewan Housing Fin Corp | D38: ADROIT FINANCIAL SERVICES PVT LTD | E38: BUY | F38: 1,662,114 | G38: 53.14 | H38: NSE
A39: 2019-07-22 | B39: JUSTDIAL | C39: Justdial Ltd. | D39: ALPHAGREP SECURITIES PRIVATE LIMITED | E39: BUY | F39: 366,241 | G39: 732.6 | H39: NSE
A40: 2019-07-22 | B40: JUSTDIAL | C40: Justdial Ltd. | D40: TOWER RESEARCH CAPITAL MARKETS INDIA PRIVATE LIMITED | E40: BUY | F40: 432,139 | G40: 733.35 | H40: NSE
A41: 2019-07-22 | B41: RELCAPITAL | C41: Reliance Capital Limited | D41: TOWER RESEARCH CAPITAL MARKETS INDIA PRIVATE LIMITED | E41: BUY | F41: 2,412,166 | G41: 50.82 | H41: NSE
A42: 2019-07-22 | B42: RELINFRA | C42: Reliance Infrastructu Ltd | D42: TOWER RESEARCH CAPITAL MARKETS INDIA PRIVATE LIMITED | E42: BUY | F42: 2,622,433 | G42: 42.5 | H42: NSE
A43: 2019-07-22 | B43: SHREEPUSHK | C43: Shre Push Chem & Fert Ltd | D43: GAUTAM GOPIKISHAN MAKHARIA | E43: BUY | F43: 225,500 | G43: 94.35 | H43: NSE
A44: 2019-07-22 | B44: SHREEPUSHK | C44: Shre Push Chem & Fert Ltd | D44: LADAM AFFORDABLE HOUSING LIMITED | E44: BUY | F44: 225,263 | G44: 94.28 | H44: NSE
A45: 2019-07-22 | B45: YESBANK | C45: Yes Bank Limited | D45: TOWER RESEARCH CAPITAL MARKETS INDIA PRIVATE LIMITED | E45: BUY | F45: 17,262,969 | G45: 88.17 | H45: NSE
A46: 2019-07-22 | B46: ARVIND | C46: Arvind Limited | D46: TOWER RESEARCH CAPITAL MARKETS INDIA PRIVATE LIMITED | E46: SELL | F46: 1342994 | G46: 57.78 | H46: NSE
A47: 2019-07-22 | B47: DHFL | C47: Dewan Housing Fin Corp | D47: DIVYA PORTFOLIO PRIVATE LIMITED | E47: SELL | F47: 1729236 | G47: 54.03 | H47: NSE
A48: 2019-07-22 | B48: DHFL | C48: Dewan Housing Fin Corp | D48: ALASKA PERMANENT FUND | E48: SELL | F48: 2982673 | G48: 53.06 | H48: NSE
A49: 2019-07-22 | B49: DHFL | C49: Dewan Housing Fin Corp | D49: ALPHAGREP SECURITIES PRIVATE LIMITED | E49: SELL | F49: 2145309 | G49: 53.43 | H49: NSE
A50: 2019-07-22 | B50: DHFL | C50: Dewan Housing Fin Corp | D50: ADROIT FINANCIAL SERVICES PVT LTD | E50: SELL | F50: 1645488 | G50: 53.23 | H50: NSE
A51: 2019-07-22 | B51: DHFL | C51: Dewan Housing Fin Corp | D51: TOWER RESEARCH CAPITAL MARKETS INDIA PRIVATE LIMITED | E51: SELL | F51: 4371989 | G51: 53.34 | H51: NSE
A52: 2019-07-22 | B52: GRSE | C52: Garden Reach Ship | D52: UTIASSETMANAGEMENTCOMPANYLIMITED | E52: SELL | F52: 671160 | G52: 129.74 | H52: NSE
A53: 2019-07-22 | B53: JUSTDIAL | C53: Justdial Ltd. | D53: TOWER RESEARCH CAPITAL MARKETS INDIA PRIVATE LIMITED | E53: SELL | F53: 432139 | G53: 734.61 | H53: NSE
A54: 2019-07-22 | B54: JUSTDIAL | C54: Justdial Ltd. | D54: ALPHAGREP SECURITIES PRIVATE LIMITED | E54: SELL | F54: 366241 | G54: 732.72 | H54: NSE
A55: 2019-07-22 | B55: REFEX | C55: Refex Industries Limited | D55: LAROIA MONA | E55: SELL | F55: 124966 | G55: 126.3 | H55: NSE
A56: 2019-07-22 | B56: RELCAPITAL | C56: Reliance Capital Limited | D56: TOWER RESEARCH CAPITAL MARKETS INDIA PRIVATE LIMITED | E56: SELL | F56: 2412166 | G56: 50.7 | H56: NSE
A57: 2019-07-22 | B57: RELINFRA | C57: Reliance Infrastructu Ltd | D57: TOWER RESEARCH CAPITAL MARKETS INDIA PRIVATE LIMITED | E57: SELL | F57: 2622433 | G57: 42.41 | H57: NSE
A58: 2019-07-22 | B58: SHREEPUSHK | C58: Shre Push Chem & Fert Ltd | D58: LADAM AFFORDABLE HOUSING LIMITED | E58: SELL | F58: 225263 | G58: 94.35 | H58: NSE
A59: 2019-07-22 | B59: SHREEPUSHK | C59: Shre Push Chem & Fert Ltd | D59: GAUTAM GOPIKISHAN MAKHARIA | E59: SELL | F59: 225500 | G59: 94.22 | H59: NSE
A60: 2019-07-22 | B60: VIKASMCORP | C60: Vikas Multicorp Limited | D60: VIKAS GARG | E60: SELL | F60: 3500000 | G60: 2.85 | H60: NSE
A61: 2019-07-22 | B61: YESBANK | C61: Yes Bank Limited | D61: TOWER RESEARCH CAPITAL MARKETS INDIA PRIVATE LIMITED | E61: SELL | F61: 17271899 | G61: 88.28 | H61: NSE

Sheet Call Tracker (Equity & F&O)
M5: Back To Main Page
A6: Retail Research Technical Calls & Fundamental Performance Report for the month of July-2019
M7: =Main!B10 -> 2019-07-23
B8: Positional Call
A9: Sr.no | B9: Date | D9: Company | E9: Rec | F9: Rec Price | G9: Stop Loss*** | H9: Call Closed At | I9: Target | J9: Remark | K9: Profit / Loss per Share | L9: Gain / Loss % | M9: Status | N9: Closed Date | O9: NSE Closed Price
A10: 1 | B10: 2019-05-27 | D10: TATAELXSI | E10: Buy | F10: 874 | G10: 818.7 | H10: 863 | I10: 970-990 | J10: Loss of Rs.11/- | K10: =H10-F10 -> -11 | L10: =K10/F10 -> -1.26% | M10: Unsuccessful | N10: 2019-07-16 | R10: R
A11: 2 | B11: 2019-05-28 | D11: BAJAJFINSV | E11: Sell | F11: 8175 | G11: 8625 | H11: 7925 | I11: 7300 | J11: Profit of Rs.250/- | K11: =F11-H11 -> 250 | L11: 3.06% | M11: Successful | N11: 2019-07-08 | R11: H
A12: 3 | B12: 2019-05-31 | D12: ITC | E12: Buy | F12: 286 | G12: 268.3 | H12: 265.5 | I12: 315-325 | J12: Loss of Rs.20.5/- | K12: =H12-F12 -> -20.5 | L12: =K12/F12 -> -7.17% | M12: Unsuccessful | N12: 2019-07-22 | R12: R
A13: 4 | B13: 2019-06-13 | D13: GODREJCP | E13: Buy | F13: 677.5 | G13: 644 | H13: 639.5 | I13: 740-750 | J13: Loss of Rs.38/- | K13: =H13-F13 -> -38 | L13: =K13/F13 -> -5.61% | M13: Unsuccessful | N13: 2019-07-10 | R13: H
A14: 5 | B14: 2019-06-17 | D14: SUNTV | E14: Buy | F14: 517 | G14: 476 | H14: 507 | I14: 575-585 | J14: Loss of Rs.10/- | K14: =H14-F14 -> -10 | L14: =K14/F14 -> -1.93% | M14: Unsuccessful | N14: 2019-07-08 | R14: R
A15: 6 | B15: 2019-06-21 | D15: AJANTPHARM | E15: Buy | F15: 955 | G15: 897.7 | H15: 894 | I15: 1060-1080 | J15: Loss of Rs.61/- | K15: =H15-F15 -> -61 | L15: =K15/F15 -> -6.39% | M15: Unsuccessful | N15: 2019-07-11 | R15: R
A16: 7 | B16: 2019-06-24 | D16: ESCORTS | E16: Buy | F16: 549.5 | G16: 518 | H16: 545.25 | I16: 600 | J16: Loss of Rs.4.25/- | K16: -4.25 | L16: -0.77% | M16: Neutral | N16: 2019-07-08 | R16: H
A17: 8 | B17: 2019-06-25 | D17: JUBLFOOD | E17: Buy | F17: 1260-1265 | G17: 1158.3 | I17: 1450 -1470 | J17: Open | O17: =VLOOKUP(D17,Sheet2!A4:M1643,6,0) -> 1199.9 | R17: R
A18: 9 | B18: 2019-07-04 | D18: TORNTPHARM | E18: Buy | F18: 1545 | G18: 1454 | H18: 1610 | I18: 1730-1750 | J18: Part Profit of Rs.65/- | K18: =H18-F18 -> 65 | L18: =K18/F18 -> 4.21% | M18: Successful | N18: 2019-07-16 | R18: R
A19: 10 | B19: 2019-07-10 | D19: TCS | E19: Buy | F19: 2105-2115 | G19: 1973 | I19: 2295-2345 | J19: Open | O19: =VLOOKUP(D19,Sheet2!A6:M1645,6,0) -> 2109.9 | R19: H
A20: 11 | B20: 2019-07-11 | D20: BAJAJ-AUTO | E20: Buy | F20: 2670 | G20: 2527 | H20: 2527 | I20: 1920-1950 | J20: Loss of Rs.143/- | K20: =H20-F20 -> -143 | L20: =K20/F20 -> -5.36% | M20: Unsuccessful | N20: 2019-07-22 | R20: R
A21: 12 | B21: 2019-07-11 | D21: BERGEPAINT | E21: Buy | F21: 304 | G21: 288 | H21: 316.5 | I21: 330-340 | J21: Part Profit of Rs.12.5/- | K21: =H21-F21 -> 12.5 | L21: =K21/F21 -> 4.11% | M21: Successful | N21: 2019-07-17 | R21: H
A22: 13 | B22: 2019-07-12 | D22: ABFRL | E22: Buy | F22: 201 | G22: 189.3 | H22: 208.75 | I22: 222-226 | J22: Profit of Rs.7.75/- | K22: =H22-F22 -> 7.75 | L22: =K22/F22 -> 3.86% | M22: Successful | N22: 2019-07-12 | R22: R
A23: 14 | B23: 2019-07-12 | D23: LT | E23: Buy | F23: 1470-1480 | G23: 1370 | I23: 1650-1700 | J23: Open | O23: =VLOOKUP(D23,Sheet2!A10:M1649,6,0) -> 1403.7 | R23: H
A24: 15 | B24: 2019-07-15 | D24: BIOCON | E24: Buy | F24: 251.5 | G24: 237 | H24: 262.25 | I24: 270 -280 | J24: Part Profit of Rs.10.75/- | K24: =H24-F24 -> 10.75 | L24: =K24/F24 -> 4.27% | M24: Successful | N24: 2019-07-17 | R24: H
A25: 16 | B25: 2019-07-16 | D25: ABFRL | E25: Buy | F25: 201-203 | G25: 189.3 | I25: 222-226 | J25: Open | O25: =VLOOKUP(D25,Sheet2!A12:M1651,6,0) -> 207.55 | R25: R
A26: 17 | B26: 2019-07-17 | D26: BANKINDIA | E26: Buy | F26: 84.5 | G26: 82 | H26: 80.5 | I26: 90 | J26: Loss of Rs.4/- | K26: =H26-F26 -> -4 | L26: =K26/F26 -> -4.73% | M26: Unsuccessful | N26: 2019-07-19 | R26: H
A27: 18 | B27: 2019-07-17 | D27: BHARTIARTL | E27: Buy | F27: 347-349 | G27: 322 | I27: 392 -396 | J27: Open | O27: =VLOOKUP(D27,Sheet2!A14:M1653,6,0) -> 342.55 | R27: R
A28: 19 | B28: 2019-07-18 | D28: NAVINFLUOR | E28: Buy | F28: 608-616 | G28: 570 | I28: 680 -700 | J28: Open | O28: =VLOOKUP(D28,Sheet2!A15:M1654,6,0) -> 590.6 | R28: H
A29: 20 | B29: 2019-07-19 | D29: ACC | E29: Buy | F29: 1615-1625 | G29: 1518 | I29: 1750-1800 | J29: Open | O29: =VLOOKUP(D29,Sheet2!A16:M1655,6,0) -> 1581.3 | R29: H
A30: 21 | B30: 2019-07-22 | D30: BAJFINANCE | E30: Buy | F30: 3280-3300 | G30: 3140 | I30: 3500-3600 | J30: Open | O30: =VLOOKUP(D30,Sheet2!A17:M1656,6,0) -> 3246.6 | R30: H
A31: 22 | B31: 2019-07-22 | D31: MOTHERSUMI | E31: Buy | F31: 109-111 | G31: 103 | I31: 121-123 | J31: Open | O31: =VLOOKUP(D31,Sheet2!A18:M1657,6,0) -> 111.6 | R31: R
A35: CLBS = Closing Basis *** | F35: Reinitiated $
A36: Dividend adjusted <> | F36: Revised stoploss #
A37: Part book {}
B39: Momentum Call
A40: Sr.no | B40: Date | D40: Company | E40: Rec | F40: Rec Price | G40: Stop Loss | H40: Call Closed At | I40: Target | J40: Remark | K40: Profit / Loss per Share/Lot | L40: Gain / Loss % | M40: Gain / Loss per Lot | N40: Lot | O40: Status | P40: Closed Date
A41: 1 | B41: 2019-06-26 | D41: INDUSINDBK | E41: Buy | F41: 1437.5 | G41: 1395 | H41: 1475.5 | I41: 1480-1500 | J41: Profit of Rs.38 /- | K41: =H41-F41 -> 38 | L41: =K41/F41 -> 2.64% | O41: Successful | P41: 2019-07-03 | R41: H
A42: 2 | B42: 2019-06-26 | D42: HEROMOTOCO | E42: Buy | F42: 2590 | G42: 2490 | H42: 2530 | I42: 2750-2800 | J42: Loss of Rs.9.5 /- | K42: =H42-F42 -> -60 | L42: -2.32% | O42: Unsuccessful | P42: 2019-07-05 | R42: H
A43: 3 | B43: 2019-06-27 | D43: ASIANPAINT JUL FUT | E43: Buy | F43: 1372 | G43: 1352 | H43: 1352 | I43: 1400 -1410 | J43: Loss of Rs.20 /- | K43: =H43-F43 -> -20 | M43: =K43*N43 -> -12000 | N43: 600 | O43: Unsuccessful | P43: 2019-07-02 | R43: N
A44: 4 | B44: 2019-06-27 | D44: TITAN JULY FUT | E44: Sell | F44: 1331 | G44: 1350 | H44: 1322 | I44: 1290 | J44: Profit of Rs.9 /- | K44: =F44-H44 -> 9 | M44: 6750 | N44: 750 | O44: Successful | P44: 2019-07-02 | R44: H
A45: 5 | B45: 2019-06-27 | D45: COLPAL JUL FUT | E45: Buy | F45: 1137 | G45: 1120 | H45: 1149 | I45: 1170 | J45: Profit of Rs.12 /- | K45: =H45-F45 -> 12 | M45: 8400 | N45: 700 | O45: Successful | P45: 2019-07-02 | R45: N
A46: 6 | B46: 2019-06-28 | D46: CIPLA JULY FUT | E46: Buy | F46: 556 | G46: 545 | H46: 545 | I46: 575-580 | J46: Loss of Rs.11 /- | K46: =H46-F46 -> -11 | M46: -11000 | N46: 1000 | O46: Unsuccessful | P46: 2019-07-08 | R46: H
A47: 7 | B47: 2019-06-28 | D47: NIITTECH JUL FUT | E47: Sell | F47: 1326.5 | G47: 1345 | H47: 1318 | I47: 1290 | J47: Profit of Rs.8.5 /- | K47: =F47-H47 -> 8.5 | M47: 6375 | N47: 750 | O47: Successful | P47: 2019-07-05 | R47: R
A48: 8 | B48: 2019-06-28 | D48: POWERGRID JUL FUT | E48: Buy | F48: 206.25 | G48: 203 | H48: 208.5 | I48: 213 | J48: Profit of Rs.2.25 /- | K48: =H48-F48 -> 2.25 | M48: 9000 | N48: 4000 | O48: Successful | P48: 2019-07-01 | R48: N
A49: 9 | B49: 2019-06-28 | D49: LT JUL FUT | E49: Buy | F49: 1549 | G49: 1519 | H49: 1568 | I49: 1600 | J49: Profit of Rs.19 /- | K49: =H49-F49 -> 19 | M49: 7125 | N49: 375 | O49: Successful | P49: 2019-07-03 | R49: N
A50: 10 | B50: 2019-07-01 | D50: BATAINDIA JUL FUT | E50: Sell | F50: 1435 | G50: 1458.7 | H50: 1458.7 | I50: 1400 | J50: Loss of Rs.23.7 /- | K50: =F50-H50 -> -23.7 | M50: -13035 | N50: 550 | O50: Unsuccessful | P50: 2019-07-03 | R50: R
A51: 11 | B51: 2019-07-01 | D51: CADILAHC JUL FUT | E51: Buy | F51: 242.5 | G51: 235 | H51: 235 | I51: 260 | J51: Loss of Rs.7.5 /- | K51: =H51-F51 -> -7.5 | M51: -12000 | N51: 1600 | O51: Unsuccessful | P51: 2019-07-02 | R51: H
A52: 12 | B52: 2019-07-01 | D52: MCDOWELL-N | E52: Sell | F52: 592.5 | G52: 610 | H52: 580 | I52: 565-560 | J52: Profit of Rs.12.5 /- | K52: =F52-H52 -> 12.5 | L52: =K52/F52 -> 2.11% | O52: Successful | P52: 2019-07-03 | R52: H
A53: 13 | B53: 2019-07-02 | D53: HDFC JULY FUT | E53: Sell | F53: 2239 | G53: 2262 | H53: 2259 | I53: 2200 | J53: Loss of Rs.20/- | K53: =F53-H53 -> -20 | M53: =K53*N53 -> -10000 | N53: 500 | O53: Unsuccessful | P53: 2019-07-02 | R53: H
A54: 14 | B54: 2019-07-02 | D54: BHARTIARTL JUL FUT | E54: Buy | F54: 351 | G54: 344.3 | H54: 355.5 | I54: 362-365 | J54: Profit of Rs.4.5 /- | K54: =H54-F54 -> 4.5 | M54: =K54*N54 -> 8329.5 | N54: 1851 | O54: Successful | P54: 2019-07-02 | R54: R
A55: 15 | B55: 2019-07-02 | D55: TVSMOTOR JUL FUT | E55: Sell | F55: 429 | G55: 441 | H55: 429 | I55: 410 | J55: Neutral | K55: =H55-F55 -> 0 | M55: =K55*N55 -> 0 | N55: 1100 | O55: Neutral | P55: 2019-07-05 | R55: N
A56: 16 | B56: 2019-07-02 | D56: RECLTD | E56: Sell | F56: 163.5 | G56: 168.2 | H56: 166.5 | I56: 156-154 | J56: Loss of Rs.3/- | K56: =F56-H56 -> -3 | L56: =K56/F56 -> -1.83% | O56: Unsuccessful | P56: 2019-07-03 | R56: R
A57: 17 | B57: 2019-07-02 | D57: TITAN JUL FUT | E57: Sell | F57: 1333.5 | G57: 1353 | H57: 1324.5 | I57: 1300-1290 | J57: Profit of Rs.9 /- | K57: =F57-H57 -> 9 | M57: =K57*N57 -> 6750 | N57: 750 | O57: Successful | P57: 2019-07-03 | R57: H
A58: 18 | B58: 2019-07-02 | D58: RAYMOND JUL FUT | E58: Buy | F58: 745 | G58: 730 | H58: 754.5 | I58: 765-770 | J58: Profit of Rs.9.5 /- | K58: =H58-F58 -> 9.5 | M58: =K58*N58 -> 7600 | N58: 800 | O58: Successful | P58: 2019-07-03 | R58: N
A59: 19 | B59: 2019-07-03 | D59: IGL | E59: Buy | F59: 307.5 | G59: 298 | H59: 298 | I59: 325-339 | J59: Loss of Rs.9.5 /- | K59: =H59-F59 -> -9.5 | L59: =K59/F59 -> -3.09% | O59: Unsuccessful | P59: 2019-07-05 | R59: H
A60: 20 | B60: 2019-07-03 | D60: SUNPHARMA | E60: Buy | F60: 395.5 | G60: 379 | H60: 385.5 | I60: 420-425 | J60: Loss of Rs.10 /- | K60: =H60-F60 -> -10 | L60: =K60/F60 -> -2.53% | O60: Unsuccessful | P60: 2019-07-05 | R60: H
A61: 21 | B61: 2019-07-03 | D61: BANKBARODA | E61: Buy | F61: 121.5 | G61: 118 | H61: 124.1 | I61: 128 | J61: Profit of Rs.2.6 /- | K61: =H61-F61 -> 2.6 | L61: =K61/F61 -> 2.14% | O61: Successful | P61: 2019-07-03 | R61: H
A62: 22 | B62: 2019-07-03 | D62: M&MFIN JUL FUT | E62: Buy | F62: 387.5 | G62: 379 | H62: 394 | I62: 408 | J62: Profit of Rs.6.5 /- | K62: =H62-F62 -> 6.5 | M62: =K62*N62 -> 8125 | N62: 1250 | O62: Successful | P62: 2019-07-04 | R62: H
A63: 23 | B63: 2019-07-04 | D63: UPL JUL FUT | E63: Sell | F63: 667 | G63: 681 | H63: 681 | I63: 645 | J63: Loss of Rs.14/- | K63: =F63-H63 -> -14 | M63: =K63*N63 -> -12600 | N63: 900 | O63: Unsuccessful | P63: 2019-07-04 | R63: R
A64: 24 | B64: 2019-07-04 | D64: INDUSINDBK JUL FUT | E64: Buy | F64: 1497.5 | G64: 1467 | H64: 1517.5 | I64: 1550-1560 | J64: Profit of Rs.20 /- | K64: =H64-F64 -> 20 | M64: =K64*N64 -> 8000 | N64: 400 | O64: Successful | P64: 2019-07-05 | R64: N
A65: 25 | B65: 2019-07-05 | D65: BERGEPAINT | E65: Buy | F65: 314 | G65: 304 | H65: 304 | I65: 330-333 | J65: Loss of Rs.10/- | K65: =H65-F65 -> -10 | L65: =K65/F65 -> -3.18% | O65: Unsuccessful | P65: 2019-07-08 | R65: H
A66: 26 | B66: 2019-07-05 | D66: WIPRO JULY FUT | E66: Sell | F66: 278 | G66: 282 | H66: 274.75 | I66: 270 | J66: Profit of Rs.3.25/- | K66: =F66-H66 -> 3.25 | M66: =K66*N66 -> 10400 | N66: 3200 | O66: Successful | P66: 2019-07-05 | R66: H
A67: 27 | B67: 2019-07-05 | D67: MUTHOOTFIN JUL FUT | E67: Buy | F67: 635 | G67: 625 | H67: 629 | I67: 655 | J67: Loss of Rs.6 /- | K67: =H67-F67 -> -6 | M67: -9000 | N67: 1500 | O67: Unsuccessful | P67: 2019-07-05 | R67: N
A68: 28 | B68: 2019-07-05 | D68: EXIDEIND JUL FUT | E68: Buy | F68: 204 | G68: 199.5 | H68: 199.5 | I68: 215 | J68: Loss of Rs.4.5 /- | K68: -4.5 | M68: -10800 | N68: 2400 | O68: Unsuccessful | P68: 2019-07-08 | R68: N
A69: 29 | B69: 2019-07-05 | D69: TVSMOTOR JUL FUT | E69: Buy | F69: 429 | G69: 417.3 | H69: 417.3 | I69: 450 | J69: Loss of Rs.11.7/- | K69: -11.7 | M69: -12870 | N69: 1100 | O69: Unsuccessful | P69: 2019-07-08 | R69: R
A70: 30 | B70: 2019-07-08 | D70: CANBK JUL FUT | E70: Buy | F70: 289 | G70: 284 | H70: 284 | I70: 300 | J70: Loss of Rs.5 /- | K70: -5 | M70: -10000 | N70: 2000 | O70: Unsuccessful | P70: 2019-07-08 | R70: H
A71: 31 | B71: 2019-07-08 | D71: KOTAKBANK JUL FUT | E71: Buy | F71: 1500 | G71: 1470 | H71: 1470 | I71: 1550-1560 | J71: Loss of Rs.30 /- | K71: -30 | M71: -12000 | N71: 400 | O71: Unsuccessful | P71: 2019-07-09 | R71: H
A72: 32 | B72: 2019-07-09 | D72: RELIANCE | E72: Buy | F72: 1255 | G72: 1218 | H72: 1276 | I72: 1320-1330 | J72: Profit of Rs.21/- | K72: 21 | L72: =K72/F72 -> 1.67% | O72: Successful | P72: 2019-07-09 | R72: H
A73: 33 | B73: 2019-07-09 | D73: NIFTY JUL FUT | E73: Buy | F73: 11525 | G73: 11470 | H73: 11575 | I73: 11600 | J73: Profit of Rs.50/- | K73: 50 | M73: =K73*N73 -> 3750 | N73: 75 | O73: Successful | P73: 2019-07-09 | R73: R
A74: 34 | B74: 2019-07-09 | D74: M&MFIN | E74: Buy | F74: 390.5 | G74: 378 | H74: 379 | I74: 410-415 | J74: Loss of Rs.11.50/- | K74: =H74-F74 -> -11.5 | L74: =K74/F74 -> -2.94% | O74: Unsuccessful | P74: 2019-07-11 | R74: H
A75: 35 | B75: 2019-07-09 | D75: RBLBANK JUL FUT | E75: Buy | F75: 628 | G75: 618 | H75: 635 | I75: 645-650 | J75: Profit of Rs.7/- | K75: =H75-F75 -> 7 | M75: =K75*N75 -> 8400 | N75: 1200 | O75: Successful | P75: 2019-07-10 | R75: N
A76: 36 | B76: 2019-07-09 | D76: BANKNIFTY JUL FUT | E76: Buy | F76: 30560 | G76: 30440 | H76: 30670 | I76: 30750-30800 | J76: Profit of Rs.110/- | K76: =H76-F76 -> 110 | M76: =K76*N76 -> 2200 | N76: 20 | O76: Successful | P76: 2019-07-09 | R76: R
A77: 37 | B77: 2019-07-10 | D77: AMARAJABAT JUL FUT | E77: Buy | F77: 637 | G77: 620 | H77: 646.5 | I77: 670 | J77: Profit of Rs.9.50/- | K77: =H77-F77 -> 9.5 | M77: =K77*N77 -> 6650 | N77: 700 | O77: Successful | P77: 2019-07-11 | R77: N
A78: 38 | B78: 2019-07-10 | D78: CIPLA | E78: Buy | F78: 550 | G78: 535 | H78: 562 | I78: 575-580 | J78: Profit of Rs.12/- | K78: =H78-F78 -> 12 | L78: =K78/F78 -> 2.18% | O78: Successful | P78: 2019-07-12 | R78: H
A79: 39 | B79: 2019-07-10 | D79: BANKINDIA | E79: Buy | F79: 85.4 | G79: 83.5 | H79: 87.1 | I79: 90-92 | J79: Profit of Rs.1.70/- | K79: =H79-F79 -> 1.7 | L79: 1.99% | O79: Successful | P79: 2019-07-11 | R79: H
A80: 40 | B80: 2019-07-10 | D80: COLPAL JUL FUT | E80: Buy | F80: 1156.5 | G80: 1139 | H80: 1140 | I80: 1180-1190 | J80: Loss of Rs.16.50 /- | K80: =H80-F80 -> -16.5 | M80: =K80*N80 -> -11550 | N80: 700 | O80: Unsuccessful | P80: 2019-07-11 | R80: N
A81: 41 | B81: 2019-07-10 | D81: APOLLOHOSP | E81: Buy | F81: 1312.5 | G81: 1277 | H81: 1348.5 | I81: 1370-1380 | J81: Profit of Rs.36- | K81: 36 | L81: 2.74% | O81: Successful | P81: 2019-07-12 | R81: R
A82: 42 | B82: 2019-07-10 | D82: NIFTY JUL FUT | E82: Buy | F82: 11492.5 | G82: 11445 | H82: 11555 | I82: 11570-11590 | J82: Profit of Rs.62.50/- | K82: =H82-F82 -> 62.5 | M82: =K82*N82 -> 4687.5 | N82: 75 | O82: Successful | P82: 2019-07-11 | R82: R
A83: 43 | B83: 2019-07-11 | D83: HINDUNILVR | E83: Buy | F83: 1710 | G83: 1645 | H83: 1736 | I83: 1800 | J83: Profit of Rs.26/- | K83: =H83-F83 -> 26 | L83: =K83/F83 -> 1.52% | O83: Successful | P83: 2019-07-11 | R83: H
A84: 44 | B84: 2019-07-11 | D84: EXIDEIND | E84: Buy | F84: 201.5 | G84: 195 | H84: 204.75 | I84: 210-212 | J84: Profit of Rs.3.25/- | K84: 3.25 | L84: 1.61% | O84: Successful | P84: 2019-07-11 | R84: H
A85: 45 | B85: 2019-07-12 | D85: BATAINDIA JUL FUT | E85: Buy | F85: 1337.5 | G85: 1315 | H85: 1353 | I85: 1375 | J85: Profit of Rs.15.5/- | K85: 15.5 | M85: =K85*N85 -> 8525 | N85: 550 | O85: Successful | P85: 2019-07-12 | R85: N
A86: 46 | B86: 2019-07-12 | D86: POWERGRID JUL FUT | E86: Buy | F86: 206.75 | G86: 203.75 | H86: 208.75 | I86: 212 -213 | J86: Profit of Rs.2/- | K86: 2 | M86: =K86*N86 -> 8000 | N86: 4000 | O86: Successful | P86: 2019-07-16 | R86: N
A87: 47 | B87: 2019-07-12 | D87: RBLBANK JUL FUT | E87: Buy | F87: 637 | G87: 627 | H87: 627 | I87: 660 | J87: Loss of Rs.10 /- | K87: -10 | M87: =K87*N87 -> -12000 | N87: 1200 | O87: Unsuccessful | P87: 2019-07-15 | R87: N
A88: 48 | B88: 2019-07-15 | D88: TVSMOTORS | E88: Buy | F88: 430.5 | G88: 417 | H88: 417 | I88: 450 | J88: Loss of Rs.13.5 /- | K88: =H88-F88 -> -13.5 | L88: =K88/F88 -> -3.14% | O88: Unsuccessful | P88: 2019-07-18 | R88: H
A89: 49 | B89: 2019-07-15 | D89: NIFTY JUL FUT | E89: Buy | F89: 11525 | G89: 11470 | H89: 11565 | I89: 11600 | J89: Profit of Rs.40/- | K89: =H89-F89 -> 40 | M89: =K89*N89 -> 3000 | N89: 75 | O89: Successful | P89: 2019-07-15 | R89: R
A90: 50 | B90: 2019-07-15 | D90: APOLLOHOSP | E90: Sell | F90: 1399 | G90: 1430 | H90: 1382 | I90: 1360-1350 | J90: Profit of Rs.17/- | K90: =F90-H90 -> 17 | L90: =K90/F90 -> 1.22% | O90: Successful | P90: 2019-07-15 | R90: H
A91: 51 | B91: 2019-07-15 | D91: AMBUJACEM JUL FUT | E91: Sell | F91: 219.5 | G91: 225.3 | H91: 216.25 | I91: 212-210 | J91: Profit of Rs.3.25/- | K91: =F91-H91 -> 3.25 | M91: =K91*N91 -> 8125 | N91: 2500 | O91: Successful | P91: 2019-07-18 | R91: R
A92: 52 | B92: 2019-07-16 | D92: NTPC JUL FUT | E92: Sell | F92: 128.5 | G92: 131.5 | H92: 131 | I92: 123-122 | J92: Loss of Rs.2.5 /- | K92: =F92-H92 -> -2.5 | M92: -12000 | N92: 4800 | O92: Unsuccessful | P92: 2019-07-17 | R92: N
A93: 53 | B93: 2019-07-16 | D93: M&M JUL FUT | E93: Buy | F93: 616 | G93: 605 | H93: 605 | I93: 640 | J93: Loss of Rs.11 /- | K93: =H93-F93 -> -11 | M93: -11000 | N93: 1000 | O93: Unsuccessful | P93: 2019-07-18 | R93: H
A94: 54 | B94: 2019-07-16 | D94: ACC JUL FUT | E94: Sell | F94: 1597 | G94: 1625 | H94: 1580.5 | I94: 1550 | J94: Profit of Rs.16.5/- | K94: =F94-H94 -> 16.5 | M94: 6600 | N94: 400 | O94: Successful | P94: 2019-07-18 | R94: H
A95: 55 | B95: 2019-07-16 | D95: INDUSINDBK JUL FUT | E95: Buy | F95: 1485.5 | G95: 1457 | H95: 1505.5 | I95: 1540 -1550 | J95: Profit of Rs.20/- | K95: =H95-F95 -> 20 | M95: 8000 | N95: 400 | O95: Successful | P95: 2019-07-17 | R95: N
A96: 56 | B96: 2019-07-16 | D96: NIFTY JUL FUT | E96: Sell | F96: 11655 | G96: 11740 | H96: 11635 | I96: 11500 | J96: Profit of Rs.20/- | K96: =F96-H96 -> 20 | M96: 1500 | N96: 75 | O96: Successful | P96: 2019-07-18 | R96: R
A97: 57 | B97: 2019-07-17 | D97: CIPLA | E97: Buy | F97: 549 | G97: 535 | H97: 557.5 | I97: 575-580 | J97: Profit of Rs.8.5/- | K97: =H97-F97 -> 8.5 | L97: =K97/F97 -> 1.55% | O97: Successful | P97: 2019-07-17 | R97: H
A98: 58 | B98: 2019-07-17 | D98: AXISBANK | E98: Buy | F98: 758.5 | G98: 738 | H98: 734 | I98: 790-800 | J98: Loss of Rs.24.5 /- | K98: -24.5 | L98: -3.23% | O98: Unsuccessful | P98: 2019-07-19 | R98: H
A99: 59 | B99: 2019-07-17 | D99: IGL | E99: Sell | F99: 319.5 | G99: 328 | H99: 318 | I99: 310 -305 | J99: Profit of Rs.1.5/- | K99: =F99-H99 -> 1.5 | L99: 0.47% | O99: Neutral | P99: 2019-07-22 | R99: H
A100: 60 | B100: 2019-07-17 | D100: RAYMOND JUL FUT | E100: Buy | F100: 701 | G100: 686 | H100: 686 | I100: 730 | J100: Loss of Rs.15 /- | K100: =H100-F100 -> -15 | M100: =K100*N100 -> -12000 | N100: 800 | O100: Unsuccessful | P100: 2019-07-19 | R100: N
A101: 61 | B101: 2019-07-18 | D101: LICHSGFIN | E101: Buy | F101: 541.5 | G101: 524.3 | H101: 524.3 | I101: 570-575 | J101: Loss of Rs.17.2 /- | K101: -17.2 | L101: =K101/F101 -> -3.18% | O101: Unsuccessful | P101: 2019-07-19 | R101: R
A102: 62 | B102: 2019-07-18 | D102: APOLLOHOSP JUL FUT | E102: Buy | F102: 1393 | G102: 1367 | H102: 1373 | I102: 1430-1440 | J102: Loss of Rs.20 /- | K102: =H102-F102 -> -20 | M102: =K102*N102 -> -10000 | N102: 500 | O102: Unsuccessful | P102: 2019-07-19 | R102: N
A103: 63 | B103: 2019-07-18 | D103: POWERGRID JUL FUT | E103: Buy | F103: 206.25 | G103: 203.25 | H103: 208.25 | I103: 212-213 | J103: Profit of Rs.2/- | K103: =H103-F103 -> 2 | M103: =K103*N103 -> 8000 | N103: 4000 | O103: Successful | P103: 2019-07-19 | R103: N
A104: 64 | B104: 2019-07-19 | D104: MCDOWELL-N | E104: Sell | F104: 602 | G104: 618 | H104: 591 | I104: 570 | J104: Profit of Rs.11/- | K104: =F104-H104 -> 11 | L104: =K104/F104 -> 1.83% | O104: Successful | P104: 2019-07-19 | R104: R
A105: 65 | B105: 2019-07-19 | D105: AMBUJACEM JUL FUT | E105: Buy | F105: 219.5 | G105: 214 | H105: 215 | I105: 230 | J105: Loss of Rs.4.5 /- | K105: =H105-F105 -> -4.5 | M105: =K105*N105 -> -11250 | N105: 2500 | O105: Unsuccessful | P105: 2019-07-19 | R105: N
A106: 66 | B106: 2019-07-19 | D106: NIFTY JUL FUT | E106: Buy | F106: 11532.5 | G106: 11487 | H106: 11487 | I106: 11600 | J106: Loss of Rs.45.5 /- | K106: =H106-F106 -> -45.5 | M106: =K106*N106 -> -3412.5 | N106: 75 | O106: Unsuccessful | P106: 2019-07-19 | R106: R
A107: 67 | B107: 2019-07-22 | D107: VEDL JUL FUT | E107: Sell | F107: 165 | G107: 169 | H107: 168.5 | I107: 155 | J107: Loss of Rs.3.5 /- | K107: 3.5 | M107: =K107*N107 -> 10500 | N107: 3000 | O107: Unsuccessful | P107: 2019-07-22 | R107: N
A108: 68 | B108: 2019-07-22 | D108: AXISBANK | E108: Buy | F108: 730-734 | G108: 715 | I108: 755-765 | J108: Open | R108: H
A109: 69 | B109: 2019-07-22 | D109: BANKINDIA | E109: Buy | F109: 80-81 | G109: 78 | I109: 84-85 | J109: Open | R109: H
A110: 70 | B110: 2019-07-22 | D110: RAYMOND JUL FUT | E110: Buy | F110: 680-682 | G110: 666 | I110: 700 | J110: Open | R110: R
A111: 71 | B111: 2019-07-22 | D111: POWERGRID JUL FUT | E111: Buy | F111: 204-204.50 | G111: 201.25 | I111: 211 | J111: Open | R111: N
A116: CLBS = Closing Basis ***
A117: Dividend adjusted <> | F117: Reinitiated $
F118: Revised stoploss #
A120: Master Trade High Risk
A121: Sr.no | B121: Date | D121: Company | E121: Rec | F121: Rec Price | G121: Stop Loss | H121: Call Closed At | I121: Target | J121: Remark | K121: Profit / Loss per share | L121: Gain / Loss per Lot | M121: Lot | N121: Status | O121: Closed Date
A122: 1 | B122: 2019-07-01 | D122: GAIL JUL FUT | E122: Buy | F122: 310.5 | G122: 298 | H122: 314.25 | I122: 325 | J122: Profit of Rs.3 /- | K122: =H122-F122 -> 3.75 | L122: =3*M122 -> 8001 | M122: 2667 | N122: Successful | O122: 2019-07-01 | R122: H
D123: GAIL 320 CE | E123: Sell | F123: 6 | H123: 6.75 | K123: =F123-H123 -> -0.75
A124: 2 | B124: 2019-07-03 | D124: BIOCON JUL FUT | E124: Buy | F124: 252 | G124: 243 | H124: 244 | I124: 265-268 | J124: Loss of Rs.8 /- | K124: =H124-F124 -> -8 | L124: =K124*M124 -> -14400 | M124: 1800 | N124: Unsuccessful | O124: 2019-07-05 | R124: R
A125: 3 | B125: 2019-07-03 | D125: GAIL JUL FUT | E125: Buy | F125: 153.25 | G125: 148.5 | H125: 148.5 | I125: 162.5 | J125: Loss of Rs.2.75 /- | K125: =H125-F125 -> -4.75 | L125: =-2.75*M125 -> -14668.5 | M125: 5334 | N125: Unsuccessful | O125: 2019-07-09 | R125: H
D126: GAIL 315 CE | E126: Sell | F126: 3 | H126: 1 | K126: =F126-H126 -> 2
A127: 4 | B127: 2019-07-12 | D127: HINDUNILVR JUL FUT | E127: Buy | F127: 1727.5 | G127: 1680 | H127: 1758 | I127: 1800 | J127: Profit of Rs.26.5 /- | K127: =H127-F127 -> 30.5 | L127: =26.5*M127 -> 7950 | M127: 300 | N127: Successful | O127: 2019-07-17 | R127: H
D128: HINDUNILVR 1760 CE | E128: Sell | F128: 21 | H128: 25 | K128: =F128-H128 -> -4
A129: 5 | B129: 2019-07-12 | D129: BRITANNIA JUL FUT | E129: Buy | F129: 2755 | G129: 2685 | H129: 2797.5 | I129: 2900 | J129: Profit of Rs.42.5/- | K129: =H129-F129 -> 42.5 | L129: =K129*M129 -> 8500 | M129: 200 | N129: Successful | O129: 2019-07-12 | R129: R
A130: 6 | B130: 2019-07-16 | D130: BRITANNIA JUL FUT | E130: Buy | F130: 2750 | G130: 2675 | H130: 2797.5 | I130: 2900 | J130: Profit of Rs.47.5/- | K130: =H130-F130 -> 47.5 | L130: =K130*M130 -> 9500 | M130: 200 | N130: Successful | O130: 2019-07-17 | R130: R
A136: Master Trade Medium Risk
A137: Sr.no | B137: Date | D137: Company | E137: Rec | F137: Rec Price | G137: Stop Loss | H137: Call Closed At | I137: Target | J137: Remark | K137: Profit/ Loss per lot | L137: Gain / Loss per Lot | M137: Lot | N137: Status | O137: Closed Date
A138: 1 | B138: 2019-06-28 | D138: NIFTY 11950 CE 4-JULY | E138: Buy | F138: 39.5 | G138: 18 | H138: 18 | I138: 70-80 | J138: Loss of Rs.21.5 /- | K138: =H138-F138 -> -21.5 | L138: =K138*M138 -> -1612.5 | M138: 75 | N138: Unsuccessful | O138: 2019-07-02 | R138: H
A139: 2 | B139: 2019-07-04 | D139: NIFTY 4-Jul 11950 PE | E139: Buy | F139: 16 | H139: 27 | I139: 45 | J139: Profit of Rs.11 /- | K139: 11 | L139: 825 | M139: 75 | N139: Successful | O139: 2019-07-04 | R139: R
A140: 3 | B140: 2019-07-05 | D140: NIFTY 11-Jul 11850 PE | E140: Buy | F140: 45 | H140: 60 | I140: 100 | J140: Profit of Rs.15 /- | K140: 15 | L140: 1125 | M140: 75 | N140: Successful | O140: 2019-07-05 | R140: H
A141: 4 | B141: 2019-07-05 | D141: NIFTY 11-Jul 11850 PE | E141: Buy | F141: 49 | H141: 64.5 | I141: 100 | J141: Profit of Rs.15.5 /- | K141: 15.5 | L141: 1162.5 | M141: 75 | N141: Successful | O141: 2019-07-05 | R141: H
A142: 5 | B142: 2019-07-05 | D142: NIFTY 11-Jul 11850 PE | E142: Buy | F142: 45 | H142: 59 | I142: 100 | J142: Profit of Rs.14 /- | K142: 14 | L142: 1050 | M142: 75 | N142: Successful | O142: 2019-07-05 | R142: H
A143: 6 | B143: 2019-07-08 | D143: NIFTY 11-Jul 11750 CE | E143: Buy | F143: 29.31 | H143: 12 | I143: 60-80 | J143: Loss of Rs.17.31/- | K143: -17.31 | L143: -1298.25 | M143: 75 | N143: Unsuccessful | O143: 2019-07-08 | R143: H
A144: 7 | B144: 2019-07-09 | D144: NIFTY 11550 CE 11-JULY | E144: Buy | F144: 42.5 | G144: 18 | H144: 55.5 | I144: 80-90 | J144: Profit of Rs.13 /- | K144: 13 | L144: 975 | M144: 75 | N144: Successful | O144: 2019-07-09 | R144: H
A145: 8 | B145: 2019-07-09 | D145: COALINDIA 240 CE JULY | E145: Buy | F145: 3.25 | G145: 1.8 | H145: 1.9 | I145: 6-6.5 | J145: Loss of Rs.1.35/- | K145: -1.35 | L145: -2970 | M145: 2200 | N145: Unsuccessful | O145: 2019-07-09 | R145: H
A146: 9 | B146: 2019-07-09 | D146: NIFTY 11550 CE 11-JULY | E146: Buy | F146: 38.5 | G146: 13 | H146: 49 | I146: 80-90 | J146: Profit of Rs.10.5 /- | K146: =H146-F146 -> 10.5 | L146: =K146*M146 -> 787.5 | M146: 75 | N146: Successful | O146: 2019-07-09 | R146: H
A147: 10 | B147: 2019-07-09 | D147: NIFTY 11550 CE 11-JULY | E147: Buy | F147: 31.5 | G147: 10 | H147: 48 | I147: 70 | J147: Profit of Rs.16.5/- | K147: =H147-F147 -> 16.5 | L147: =K147*M147 -> 1237.5 | M147: 75 | N147: Successful | O147: 2019-07-09 | R147: H
A148: 11 | B148: 2019-07-10 | D148: NIFTY 11600 CE 18-JULY | E148: Buy | F148: 61 | G148: 37 | H148: 37 | I148: 100 | J148: Loss of Rs.24/- | K148: =H148-F148 -> -24 | L148: =K148*M148 -> -1800 | M148: 75 | N148: Unsuccessful | O148: 2019-07-10 | R148: H
A149: 12 | B149: 2019-07-12 | D149: NIFTY 11550 PE 18-JULY | E149: Buy | F149: 31.5 | G149: 15 | H149: 41 | I149: 55 -60 | J149: Profit of Rs.9.5/- | K149: 9.5 | L149: 712.5 | M149: 75 | N149: Successful | O149: 2019-07-12 | R149: H
A150: 13 | B150: 2019-07-16 | D150: NIFTY 11600 PE 18-JULY | E150: Buy | F150: 30.5 | G150: 17 | H150: 20 | I150: 55 -60 | J150: Loss of Rs.10.5/- | K150: -10.5 | L150: -787.5 | M150: 75 | N150: Unsuccessful | O150: 2019-07-16 | R150: H
A151: 14 | B151: 2019-07-17 | D151: BANKNIFTY 30700 PE 18 JUL | E151: Buy | F151: 82.5 | H151: 122.5 | I151: 200 | J151: Profit of Rs.40/- | K151: 40 | L151: 800 | M151: 20 | N151: Successful | O151: 2019-07-17 | R151: R
A152: 15 | B152: 2019-07-18 | D152: HDFCBANK 2420 CE JULY | E152: Buy | F152: 29 | G152: 10 | H152: 8.5 | I152: 60 | J152: Loss of Rs.20.5/- | K152: -20.5 | L152: -5125 | M152: 250 | N152: Unsuccessful | O152: 2019-07-22 | R152: H
A153: 16 | B153: 2019-07-18 | D153: NIFTY 11700 PE 18 JUL | E153: Buy | F153: 37.5 | G153: 80 | H153: 55 | J153: Profit of Rs.17.5/- | K153: 17.5 | L153: 1312.5 | M153: 75 | N153: Successful | O153: 2019-07-18 | R153: R
A154: 17 | B154: 2019-07-18 | D154: DABUR 420 PE JUL | E154: Buy | F154: 3.55 | H154: 5.05 | I154: 6.-8 | J154: Profit of Rs.1.5/- | K154: 1.5 | L154: 1875 | M154: 1250 | N154: Successful | O154: 2019-07-18 | R154: H
A155: 18 | B155: 2019-07-19 | D155: BANKNIFTY 30700 CE JUL | E155: Buy | F155: 95-105 | I155: 250 | J155: Open | R155: H
A156: 19 | B156: 2019-07-22 | D156: YESBANK JUL 90 PE | E156: Buy | F156: 2.1 | H156: 3.8 | I156: 7 | J156: Profit of Rs.1.7/- | K156: =H156-F156 -> 1.7 | L156: =K156*M156 -> 3740 | M156: 2200 | N156: Successful | O156: 2019-07-22 | R156: R
A162: Techno -Funda (positional)
A163: Sr.no | B163: Date | D163: Company | E163: Rec | F163: Rec Price | G163: Stop Loss*** | H163: Call Closed At | I163: Target | J163: Remark | K163: Profit / Loss per Share | L163: Gain / Loss % | M163: Status | N163: Closed Date | O163: NSE Closed Price
A164: 1 | B164: 2019-04-04 | D164: FINPIPE | E164: Buy | F164: 474.5 | G164: 435 | H164: 524 | I164: 560 | J164: Profit of Rs.49.5 /- | K164: =H164-F164 -> 49.5 | L164: =K164/F164 -> 10.43% | M164: Successful | N164: 2019-07-01 | R164: H
A165: 2 | B165: 2019-05-24 | D165: APOLLOTYRE | E165: Buy | F165: 187.5 | G165: 178.7 | H165: 201.5 | I165: 220-230 | J165: Part Profit of Rs.14/- | K165: =H165-F165 -> 14 | L165: 7.47% | M165: Successful | N165: 2019-06-04 | R165: R
A168: CLBS = Closing Basis *** | F168: Reinitiated $
A169: Dividend adjusted <> | F169: Revised stoploss #
B174: Investment Idea
A175: Sr.no | B175: Date | D175: Company | E175: Rec | F175: Rec Price | G175: Point of Review | H175: Close Rate | I175: Target | J175: Remark | K175: Profit / Loss per Share | L175: Gain / Loss % | M175: Status | N175: Closed Date
A176: 1 | B176: 2013-11-01 | D176: L&T Finance Holding | E176: Accu | F176: 82.00 | G176: - | H176: 100 | I176: 100.00 | J176: Target Achieved | K176: =H176-F176 -> 18.00 | L176: =K176/F176 -> 21.95% | M176: Successful | N176: 2016-10-14
A177: 2 | B177: 2014-06-04 | D177: Finolex Inds | E177: Buy | F177: 257.00 | G177: - | H177: 300 | I177: 300.00 | J177: Target Achieved | K177: =H177-F177 -> 43.00 | L177: 16.73% | M177: Successful | N177: 2014-07-02
A178: 3 | B178: 2014-07-08 | D178: JK Cement | E178: Buy | F178: 393.00 | G178: - | H178: 468 | I178: 468.00 | J178: Target Achieved | K178: =H178-F178 -> 75.00 | L178: 19.08% | M178: Successful | N178: 2014-08-12
A179: 4 | B179: 2014-08-06 | D179: Finolex Cables | E179: Buy | F179: 205.00 | G179: - | H179: 275 | I179: 250.00 | J179: Target Achieved | K179: 70.00 | L179: 34.15% | M179: Successful | N179: 2014-11-19
A180: 5 | B180: 2014-09-04 | D180: Exide Inds | E180: Buy | F180: 162.00 | G180: - | H180: 190 | I180: 190.00 | J180: Target Achieved | K180: 28.00 | L180: 17.28% | M180: Successful | N180: 2015-01-02
A181: 6 | B181: 2014-09-04 | D181: Deepak Nitrite | E181: Buy | F181: 75.00 | G181: - | H181: 91.5 | I181: 95-100 | J181: Profit of Rs.16.50/- | K181: 16.50 | L181: 22.00% | M181: Successful | N181: 2014-11-11
A182: 7 | B182: 2014-10-01 | D182: Mercks | E182: Buy | F182: 850.00 | G182: - | H182: 982.5 | I182: 1050.00 | J182: Profit of Rs.132.50/- | K182: 132.50 | L182: 15.59% | M182: Successful | N182: 2015-02-04
A183: 8 | B183: 2014-10-01 | D183: Grindwell Norton | E183: Buy | F183: 475.00 | G183: - | H183: 515 | I183: 600.00 | J183: Profit of Rs.40/- | K183: 40.00 | L183: 8.42% | M183: Successful | N183: 2014-10-27
A184: 9 | B184: 2014-10-01 | D184: Snowman Logistics | E184: Buy | F184: 86.00 | G184: - | H184: 99 | I184: 140.00 | J184: Profit of Rs.13.00/- | K184: 13.00 | L184: 15.12% | M184: Successful | N184: 2014-10-27
A185: 10 | B185: 2014-10-14 | D185: Birla Corp | E185: Buy | F185: 496.60 | G185: - | H185: 621 | I185: 580.00 | J185: Target Achieved | K185: 124.40 | L185: 25.05% | M185: Successful | N185: 2016-08-23
A186: 11 | B186: 2014-10-14 | D186: Ultratech Cem | E186: Buy | F186: 2481.90 | G186: - | H186: 2840 | I186: 2870.00 | J186: Profit of Rs.358.10/- | K186: 358.10 | L186: 14.43% | M186: Successful | N186: 2015-01-13
A187: 12 | B187: 2014-10-16 | D187: Sintex Inds | E187: Buy | F187: 84.50 | G187: - | H187: 93 | I187: 110.00 | J187: Profit of Rs.8.50/- | K187: 8.50 | L187: 10.06% | M187: Successful | N187: 2014-10-27
A188: 13 | B188: 2014-10-16 | D188: HSIL | E188: Buy | F188: 401.00 | G188: - | H188: 428 | I188: 450.00 | J188: Profit of Rs.27.00/- | K188: 27.00 | L188: 6.73% | M188: Successful | N188: 2015-01-16
A189: 14 | B189: 2014-10-16 | D189: Eveready Inds | E189: Buy | F189: 101.00 | G189: - | H189: 112 | I189: 120.00 | J189: Profit of Rs.11.00/- | K189: 11.00 | L189: 10.89% | M189: Successful | N189: 2014-10-27
A190: 15 | B190: 2014-11-11 | D190: Pennar Inds | E190: Buy | F190: 59.00 | G190: - | H190: 76 | I190: 76.00 | J190: Target Achieved | K190: 17.00 | L190: 28.81% | M190: Successful | N190: 2017-10-24
A191: 16 | B191: 2014-11-11 | D191: Snowman Logistics | E191: Buy | F191: 99.00 | G191: - | H191: 120 | I191: 120.00 | J191: Profit of Rs.21/- | K191: 21.00 | L191: 21.21% | M191: Successful | N191: 2014-11-17
A192: 17 | B192: 2014-11-13 | D192: Dharamsi Morarji Chem | E192: Buy | F192: 22.00 | G192: - | H192: 33.55 | I192: 32.00 | J192: Profit of Rs 11.55/- | K192: 11.55 | L192: 52.50% | M192: Successful | N192: 2015-07-03
A193: 18 | B193: 2014-12-03 | D193: Tatachem | E193: Buy | F193: 440.00 | G193: - | H193: 520 | I193: 520.00 | J193: Profit of Rs 80.00/- | K193: 80.00 | L193: 18.18% | M193: Successful | N193: 2015-07-23
A194: 19 | B194: 2014-12-03 | D194: Advanta | E194: Buy | F194: 360.00 | G194: - | H194: 427 | I194: 425.00 | J194: Profit of Rs.67.00/- | K194: 67.00 | L194: 18.61% | M194: Successful | N194: 2015-02-23
A195: 20 | B195: 2015-01-08 | D195: GDL | E195: Buy | F195: 360.00 | G195: - | H195: 455 | I195: 420.00 | J195: Profit of Rs.95.00/- | K195: 95.00 | L195: 26.39% | M195: Successful | N195: 2015-01-20
A196: 21 | B196: 2015-01-08 | D196: NRB Bearing | E196: Buy | F196: 130.00 | H196: 175.5 | I196: 165.00 | J196: Profit of Rs 45.50/- | K196: 45.50 | L196: 35.00% | M196: Successful | N196: 2017-12-19
A197: 22 | B197: 2015-02-05 | D197: GSFC | E197: Accu | F197: 98.00 | H197: 120 | I197: 120.00 | J197: Target Achieved | K197: 22.00 | L197: 22.45% | M197: Successful | N197: 2017-01-18
A198: 23 | B198: 2015-02-05 | D198: Sundrmfast | E198: Accu | F198: 196.00 | H198: 262 | I198: 255.00 | J198: Target Achieved | K198: 66.00 | L198: 33.67% | M198: Successful | N198: 2016-08-17
A199: 24 | B199: 2015-03-04 | D199: GPPL | E199: Accu | F199: 235 | H199: 77.00 | I199: 280-285 | J199: Loss of Rs.158/- | K199: =H199-F199 -> -158.00 | L199: -67.23% | M199: Unsuccessful | N199: 2019-02-26
A200: 25 | B200: 2015-03-04 | D200: ORIENTCEM | E200: Accu | F200: 185.00 | H200: 224 | I200: 220-225 | J200: Target Achieved | K200: 39.00 | L200: =K200/F200 -> 21.08% | M200: Successful | N200: 2016-10-04
A201: 26 | B201: 2015-03-27 | D201: PFS | E201: Accu | F201: 49.5 | H201: 15.85 | I201: 67.00 | J201: Loss of Rs.33.65/- | K201: =H201-F201 -> -33.65 | L201: =K201/F201 -> -68% | M201: Unsuccessful | N201: 2019-06-11
A202: 27 | B202: 2015-03-30 | D202: Walchandnagar Ind Ltd | E202: Accu | F202: 183.50 | H202: 219 | I202: 218.00 | J202: Profit of Rs.35.50/- | K202: 35.50 | L202: =K202/F202 -> 19.35% | M202: Successful | N202: 2015-04-09
A203: 28 | B203: 2015-04-20 | D203: Kalpataru Power Transmission Ltd | E203: Accu | F203: =(227+237)/2 -> 232.00 | H203: 298 | I203: 298.00 | J203: Target Achieved | K203: 66.00 | L203: 28.45% | M203: Successful | N203: 2017-03-29
A204: 29 | B204: 2015-05-04 | D204: Mastek Ltd | E204: Buy | F204: 385.00 | H204: =212.5+331 -> 543.5 | I204: 510.00 | J204: Profit of Rs 158.50/- | K204: 158.50 | L204: 41.17% | M204: Successful | N204: 2015-08-19
A205: 30 | B205: 2015-05-04 | D205: Suprajit Eng | E205: Buy | F205: 115.50 | H205: 146 | I205: 142.00 | J205: Profit of Rs 30.50/- | K205: 30.50 | L205: 26.41% | M205: Successful | N205: 2015-07-17
A206: 31 | B206: 2015-05-27 | D206: TCI | E206: Buy | F206: 237.50 | H206: 279.5 | I206: 278.00 | J206: Target Achieved | K206: 42.00 | L206: 17.68% | M206: Successful | N206: 2015-08-06
A207: 32 | B207: 2015-06-19 | D207: HSIL | E207: Accu | F207: 340.00 | H207: 448 | I207: 448.00 | J207: Target Achieved | K207: 108.00 | L207: 31.76% | M207: Successful | N207: 2017-10-10
A208: 33 | B208: 2015-07-06 | D208: Capital First | E208: Accu | F208: 390.00 | H208: 460 | I208: 460.00 | J208: Target Achieved | K208: 70.00 | L208: 17.95% | M208: Successful | N208: 2016-04-18
A209: 34 | B209: 2015-07-10 | D209: Dolphin OffShore | E209: Accu | F209: 122.5 | H209: 61.00 | I209: 172.00 | J209: Loss of Rs.61.50/- | K209: -61.50 | L209: -50.20% | M209: Unsuccessful | N209: 2018-08-21
A210: 35 | B210: 2015-08-03 | D210: Allcargo logistics | E210: Accu | F210: 297.50 | H210: 350 | I210: 360.00 | J210: Profit of Rs 52.50/- | K210: 52.50 | L210: 17.65% | M210: Successful | N210: 2015-08-16
A211: 36 | B211: 2015-08-03 | D211: Camline Fine | E211: Accu | F211: 115.50 | H211: 149 | I211: 140.00 | J211: Profit of Rs 33.50/- | K211: 33.50 | L211: 29.00% | M211: Successful | N211: 2017-01-05
A212: 37 | B212: 2015-09-04 | D212: TCI | E212: Accu | F212: 226.00 | H212: 292 | I212: 292.00 | J212: Target Achieved | K212: 66.00 | L212: 29.20% | M212: Successful | N212: 2015-10-09
A213: 38 | B213: 2015-09-07 | D213: Kalpataru Power Transmission Ltd | E213: Accu | F213: 232.50 | H213: 312.5 | I213: 310.00 | J213: Target Achieved | K213: 80.00 | L213: 34.41% | M213: Successful | N213: 2017-03-29
A214: 39 | B214: 2015-09-21 | D214: LLOYD ELECTRIC & ENG LTD | E214: Accu | F214: 196.50 | H214: 238 | I214: 238.00 | J214: Target Achieved | K214: 41.50 | L214: 21.12% | M214: Successful | N214: 2015-10-14
A215: 40 | B215: 2015-09-24 | D215: L&T Finance Holding | E215: Accu | F215: 65.00 | H215: 82 | I215: 82.00 | J215: Target Achieved | K215: 17.00 | L215: 26.15% | M215: Successful | N215: 2016-07-27
A216: 41 | B216: 2015-10-14 | D216: KEC International ltd | E216: Accu | F216: 144.00 | H216: 182.5 | I216: 181.00 | J216: Target Achieved | K216: 38.50 | L216: 26.74% | M216: Successful | N216: 2017-03-23
A217: 42 | B217: 2015-10-14 | D217: Gruh Finance | E217: Accu | F217: 264.00 | H217: 311 | I217: 311.00 | J217: Target Achieved | K217: 47.00 | L217: 17.80% | M217: Successful | N217: 2016-08-22
A218: 43 | B218: 2015-11-10 | D218: Pidilitind | E218: Buy | F218: 549.50 | H218: 630 | I218: 630.00 | J218: Target Achieved | K218: 80.50 | L218: 14.65% | M218: Successful | N218: 2016-02-19
A219: 44 | B219: 2015-12-04 | D219: Zensar Technology | E219: Accu | F219: 1027.50 | H219: 1315 | I219: 1250.00 | J219: Target Achieved | K219: =H219-F219 -> 287.50 | L219: 27.98% | M219: Successful | N219: 2018-05-24
A220: 45 | B220: 2015-12-29 | D220: Vinati Organics Ltd | E220: Accu | F220: 465.00 | H220: 540 | I220: 540.00 | J220: Target Achieved | K220: 75.00 | L220: 16.13% | M220: Successful | N220: 2016-06-09
A221: 46 | B221: 2016-01-11 | D221: GSFC | E221: Buy | F221: 81.00 | H221: 110 | I221: 110.00 | J221: Target Achieved | K221: 29.00 | L221: 35.80% | M221: Successful | N221: 2017-01-10
A222: 47 | B222: 2016-01-13 | D222: SSWL | E222: Buy | F222: 417.50 | H222: 547 | I222: 535.00 | J222: Target Achieved | K222: 129.50 | L222: 31.02% | M222: Successful | N222: 2016-07-27
A223: 48 | B223: 2016-02-08 | D223: Persistent System Ltd | E223: Accu | F223: 650.00 | H223: 800 | I223: 800.00 | J223: Target Achieved | K223: 150.00 | L223: 23.08% | M223: Successful | N223: 2018-02-23
A224: 49 | B224: 2016-03-04 | D224: UPL | E224: Accu | F224: 437.50 | H224: 504.5 | I224: 522.00 | J224: Profit of Rs.67/- | K224: 67.00 | L224: 15.31% | M224: Successful | N224: 2016-04-20
A225: 50 | B225: 2016-03-09 | D225: Ashoka Buildcon Ltd | E225: Accu | F225: 189.50 | H225: 218 | I225: 218.00 | J225: Target Achieved | K225: 28.50 | L225: 15.04% | M225: Successful | N225: 2017-10-26
A226: 51 | B226: 2016-04-11 | D226: PTC INDIA FIN SERV LTD | E226: Accu | F226: 36.5 | H226: 15.85 | I226: 60.00 | J226: Loss of Rs.20.65/- | K226: -20.65 | L226: -56.58% | M226: Unsuccessful | N226: 2019-06-11
A227: 52 | B227: 2016-04-12 | D227: CAMLINFINE $ | E227: Accu | F227: 93.00 | H227: 149 | I227: 140.00 | J227: Profit of Rs 56/- | K227: 56.00 | L227: 60.22% | M227: Successful | N227: 2017-01-05
A228: 53 | B228: 2016-04-12 | D228: Greaves Cotton Ltd. | E228: Accu | F228: 130.00 | H228: 150 | I228: 150-155 | J228: Target Achieved | K228: 20.00 | L228: 15.38% | M228: Successful | N228: 2016-07-13
A229: 54 | B229: 2016-05-02 | D229: KEC International ltd $ | E229: Accu | F229: 127.50 | H229: 148 | I229: 148-150 | J229: Target Achieved | K229: 20.50 | L229: 16.08% | M229: Successful | N229: 2016-07-13
... 94 more rows

Sheet Sheet2 (hidden)
A1: SYMBOL | B1: SERIES | C1: OPEN | D1: HIGH | E1: LOW | F1: CLOSE | G1: LAST | H1: PREVCLOSE | I1: TOTTRDQTY | J1: TOTTRDVAL | K1: TIMESTAMP | L1: TOTALTRADES | M1: ISIN | N1: ISIN
A2: 20MICRONS | B2: EQ | C2: 36.45 | D2: 36.45 | E2: 33.55 | F2: 34.85 | G2: 35 | H2: 35.4 | I2: 16890 | J2: 591203.8 | K2: 2019-07-22 | L2: 170 | M2: INE144J01027
A3: 21STCENMGM | B3: EQ | C3: 16.85 | D3: 16.85 | E3: 16.25 | F3: 16.25 | G3: 16.25 | H3: 16.55 | I3: 54 | J3: 878.7 | K3: 2019-07-22 | L3: 4 | M3: INE253B01015
A4: 3IINFOTECH | B4: EQ | C4: 2.65 | D4: 2.65 | E4: 2.55 | F4: 2.65 | G4: 2.65 | H4: 2.6 | I4: 756616 | J4: 1967137.5 | K4: 2019-07-22 | L4: 404 | M4: INE748C01020
A5: 3MINDIA | B5: EQ | C5: 21884.85 | D5: 21884.85 | E5: 21650.05 | F5: 21677.2 | G5: 21660 | H5: 21884.85 | I5: 6166 | J5: 133942626.2 | K5: 2019-07-22 | L5: 405 | M5: INE470A01017
A6: 3PLAND | B6: EQ | C6: 7.45 | D6: 8 | E6: 7.45 | F6: 7.95 | G6: 7.95 | H6: 7.8 | I6: 1677 | J6: 12873.5 | K6: 2019-07-22 | L6: 18 | M6: INE105C01023
A7: 5PAISA | B7: EQ | C7: 196.9 | D7: 196.9 | E7: 196.9 | F7: 196.9 | G7: 196.9 | H7: 207.25 | I7: 2440 | J7: 480436 | K7: 2019-07-22 | L7: 81 | M7: INE618L01018
A8: 63MOONS | B8: EQ | C8: 96.7 | D8: 96.7 | E8: 92.1 | F8: 92.3 | G8: 92.1 | H8: 96.9 | I8: 51559 | J8: 4815945.25 | K8: 2019-07-22 | L8: 906 | M8: INE111B01023
A9: 8KMILES | B9: EQ | C9: 73.65 | D9: 73.65 | E9: 73.65 | F9: 73.65 | G9: 73.65 | H9: 77.5 | I9: 10337 | J9: 761320.05 | K9: 2019-07-22 | L9: 187 | M9: INE650K01021
A10: A2ZINFRA | B10: EQ | C10: 9.8 | D10: 10 | E10: 9.25 | F10: 9.4 | G10: 9.4 | H10: 9.9 | I10: 163495 | J10: 1561127.2 | K10: 2019-07-22 | L10: 493 | M10: INE619I01012
A11: AARTIDRUGS | B11: EQ | C11: 484.2 | D11: 494.25 | E11: 481.65 | F11: 484.8 | G11: 485.25 | H11: 486.2 | I11: 10023 | J11: 4873541.6 | K11: 2019-07-22 | L11: 871 | M11: INE767A01016
A12: AARTIIND | B12: EQ | C12: 1660.65 | D12: 1666.4 | E12: 1592.05 | F12: 1629.75 | G12: 1629 | H12: 1638.7 | I12: 86850 | J12: 141032535.6 | K12: 2019-07-22 | L12: 4649 | M12: INE769A01020
A13: AARVEEDEN | B13: EQ | C13: 16.75 | D13: 18.85 | E13: 15.3 | F13: 16.6 | G13: 16.9 | H13: 16.9 | I13: 16844 | J13: 275764.75 | K13: 2019-07-22 | L13: 192 | M13: INE273D01019
A14: AAVAS | B14: EQ | C14: 1482 | D14: 1499.9 | E14: 1424.05 | F14: 1458.8 | G14: 1453 | H14: 1493.05 | I14: 16284 | J14: 23888234.3 | K14: 2019-07-22 | L14: 2475 | M14: INE216P01012
A15: ABAN | B15: EQ | C15: 34.05 | D15: 34.4 | E15: 32.65 | F15: 32.7 | G15: 32.75 | H15: 34.35 | I15: 85366 | J15: 2819891.6 | K15: 2019-07-22 | L15: 1016 | M15: INE421A01028
A16: ABB | B16: EQ | C16: 1419.4 | D16: 1419.4 | E16: 1378.35 | F16: 1403.9 | G16: 1405 | H16: 1415.1 | I16: 45430 | J16: 63398368.3 | K16: 2019-07-22 | L16: 3503 | M16: INE117A01022
A17: ABBOTINDIA | B17: EQ | C17: 8680 | D17: 8697.85 | E17: 8501 | F17: 8545.25 | G17: 8550 | H17: 8572.8 | I17: 5625 | J17: 48581904.55 | K17: 2019-07-22 | L17: 1835 | M17: INE358A01014
A18: ABCAPITAL | B18: EQ | C18: 87.05 | D18: 88.25 | E18: 86 | F18: 88 | G18: 88 | H18: 87.2 | I18: 1028679 | J18: 89788936.2 | K18: 2019-07-22 | L18: 8305 | M18: INE674K01013
A19: ABFRL | B19: EQ | C19: 204 | D19: 208.35 | E19: 202.5 | F19: 207.55 | G19: 204.25 | H19: 205.85 | I19: 251802 | J19: 51781886.8 | K19: 2019-07-22 | L19: 4234 | M19: INE647O01011
A20: ABSLNN50ET | B20: EQ | C20: 264.26 | D20: 267.23 | E20: 264.26 | F20: 267.23 | G20: 267.23 | H20: 265.24 | I20: 5 | J20: 1333.18 | K20: 2019-07-22 | L20: 2 | M20: INF209KB1B87
A21: ACC | B21: EQ | C21: 1550 | D21: 1586 | E21: 1536 | F21: 1581.3 | G21: 1580.5 | H21: 1543.65 | I21: 1400234 | J21: 2191045931 | K21: 2019-07-22 | L21: 72539 | M21: INE012A01025
A22: ACCELYA | B22: EQ | C22: 804.6 | D22: 820 | E22: 788 | F22: 813.75 | G22: 817 | H22: 804.65 | I22: 3867 | J22: 3106799.35 | K22: 2019-07-22 | L22: 480 | M22: INE793A01012
A23: ACE | B23: EQ | C23: 79.5 | D23: 79.8 | E23: 76.75 | F23: 77 | G23: 77 | H23: 79.9 | I23: 106116 | J23: 8201219.55 | K23: 2019-07-22 | L23: 2349 | M23: INE731H01025
A24: ADANIENT | B24: EQ | C24: 130.75 | D24: 134.2 | E24: 128.7 | F24: 131.65 | G24: 131.6 | H24: 131.4 | I24: 5467444 | J24: 719324405.2 | K24: 2019-07-22 | L24: 27681 | M24: INE423A01024
A25: ADANIGAS | B25: EQ | C25: 162.4 | D25: 167.6 | E25: 158.9 | F25: 164.6 | G25: 165.55 | H25: 164.25 | I25: 438196 | J25: 72004729.9 | K25: 2019-07-22 | L25: 6072 | M25: INE399L01023
A26: ADANIGREEN | B26: EQ | C26: 45.5 | D26: 47.45 | E26: 44.7 | F26: 46.8 | G26: 47 | H26: 45.8 | I26: 1022220 | J26: 47495303.9 | K26: 2019-07-22 | L26: 4604 | M26: INE364U01010
A27: ADANIPORTS | B27: EQ | C27: 403.8 | D27: 409.5 | E27: 396.5 | F27: 407.2 | G27: 406.05 | H27: 405.5 | I27: 1941825 | J27: 785383863.6 | K27: 2019-07-22 | L27: 34482 | M27: INE742F01042
A28: ADANIPOWER | B28: EQ | C28: 61.1 | D28: 64 | E28: 60.2 | F28: 62.95 | G28: 63.6 | H28: 60.95 | I28: 12831653 | J28: 798626276.5 | K28: 2019-07-22 | L28: 29091 | M28: INE814H01011
A29: ADANITRANS | B29: EQ | C29: 209.8 | D29: 216 | E29: 208 | F29: 214.95 | G29: 214.2 | H29: 210.35 | I29: 55940 | J29: 11939226.8 | K29: 2019-07-22 | L29: 1427 | M29: INE931S01010
A30: ADFFOODS | B30: EQ | C30: 266 | D30: 266 | E30: 256 | F30: 257.35 | G30: 256 | H30: 266.7 | I30: 13467 | J30: 3490838.2 | K30: 2019-07-22 | L30: 476 | M30: INE982B01019
A31: ADHUNIK | B31: EQ | C31: 1.1 | D31: 1.15 | E31: 1.05 | F31: 1.1 | G31: 1.1 | H31: 1.1 | I31: 52043 | J31: 56312.65 | K31: 2019-07-22 | L31: 34 | M31: INE400H01019
A32: ADHUNIKIND | B32: EQ | C32: 88.9 | D32: 94.8 | E32: 88.3 | F32: 93.75 | G32: 93 | H32: 86.75 | I32: 36440 | J32: 3353834.75 | K32: 2019-07-22 | L32: 555 | M32: INE452L01012
A33: ADLABS | B33: EQ | C33: 4.45 | D33: 4.5 | E33: 4.25 | F33: 4.3 | G33: 4.25 | H33: 4.45 | I33: 49148 | J33: 210516.1 | K33: 2019-07-22 | L33: 138 | M33: INE172N01012
A34: ADORWELD | B34: EQ | C34: 311.9 | D34: 311.9 | E34: 302.55 | F34: 306.55 | G34: 306.1 | H34: 311.9 | I34: 3899 | J34: 1191750.75 | K34: 2019-07-22 | L34: 264 | M34: INE045A01017
A35: ADROITINFO | B35: EQ | C35: 8.9 | D35: 9.75 | E35: 8.9 | F35: 9.5 | G35: 9.3 | H35: 9.35 | I35: 1137 | J35: 10587.55 | K35: 2019-07-22 | L35: 19 | M35: INE737B01033
A36: ADSL | B36: EQ | C36: 12.75 | D36: 13.5 | E36: 12.5 | F36: 13.1 | G36: 13.15 | H36: 13.15 | I36: 17364 | J36: 226291.05 | K36: 2019-07-22 | L36: 77 | M36: INE102I01027
A37: ADVANIHOTR | B37: EQ | C37: 57.85 | D37: 57.85 | E37: 55.05 | F37: 56.65 | G37: 57.75 | H37: 55.9 | I37: 9193 | J37: 515463.5 | K37: 2019-07-22 | L37: 51 | M37: INE199C01026
A38: ADVENZYMES | B38: EQ | C38: 159 | D38: 159 | E38: 156.1 | F38: 157.45 | G38: 158.9 | H38: 159.4 | I38: 21517 | J38: 3378818.05 | K38: 2019-07-22 | L38: 564 | M38: INE837H01020
A39: AEGISCHEM | B39: EQ | C39: 204.8 | D39: 204.8 | E39: 199.35 | F39: 200.05 | G39: 200.5 | H39: 202.85 | I39: 73524 | J39: 14752609 | K39: 2019-07-22 | L39: 4881 | M39: INE208C01025
A40: AGARIND | B40: EQ | C40: 119.05 | D40: 119.05 | E40: 115.15 | F40: 117.65 | G40: 118.7 | H40: 119.55 | I40: 5469 | J40: 639586.95 | K40: 2019-07-22 | L40: 100 | M40: INE204E01012
A41: AGCNET | B41: EQ | C41: 100.4 | D41: 104 | E41: 94 | F41: 95.5 | G41: 95.75 | H41: 102 | I41: 4036 | J41: 392694.5 | K41: 2019-07-22 | L41: 113 | M41: INE676A01019
A42: AGLSL | B42: EQ | C42: 49 | D42: 51.05 | E42: 49 | F42: 50.25 | G42: 51 | H42: 51.05 | I42: 387 | J42: 19275.9 | K42: 2019-07-22 | L42: 24 | M42: INE517U01013
A43: AGRITECH | B43: EQ | C43: 51.15 | D43: 54.85 | E43: 49.05 | F43: 51.3 | G43: 51.05 | H43: 51.65 | I43: 22458 | J43: 1137264.2 | K43: 2019-07-22 | L43: 460 | M43: INE449G01018
A44: AGROPHOS | B44: BE | C44: 88.35 | D44: 93.45 | E44: 88.35 | F44: 90.25 | G44: 88.5 | H44: 92.95 | I44: 71465 | J44: 6640637.9 | K44: 2019-07-22 | L44: 77 | M44: INE740V01019
A45: AHLEAST | B45: EQ | C45: 175.25 | D45: 177 | E45: 168.5 | F45: 170.1 | G45: 169.05 | H45: 180.05 | I45: 54687 | J45: 9454458.1 | K45: 2019-07-22 | L45: 159 | M45: INE926K01017
A46: AHLUCONT | B46: EQ | C46: 311.75 | D46: 315.85 | E46: 302.15 | F46: 306.25 | G46: 302.15 | H46: 314.15 | I46: 17004 | J46: 5269662.15 | K46: 2019-07-22 | L46: 1043 | M46: INE758C01029
A47: AHLWEST | B47: EQ | C47: 310 | D47: 319 | E47: 295 | F47: 299 | G47: 301.95 | H47: 314.1 | I47: 46 | J47: 13804.05 | K47: 2019-07-22 | L47: 32 | M47: INE915K01010
A48: AIAENG | B48: EQ | C48: 1740.1 | D48: 1760.05 | E48: 1711.55 | F48: 1759.4 | G48: 1760 | H48: 1755.2 | I48: 19942 | J48: 35069915.95 | K48: 2019-07-22 | L48: 3258 | M48: INE212H01026
A49: AIONJSW | B49: EQ | C49: 18 | D49: 18.5 | E49: 17.8 | F49: 17.85 | G49: 17.9 | H49: 18.35 | I49: 13735 | J49: 246413.9 | K49: 2019-07-22 | L49: 113 | M49: INE743C01021
A50: AIRAN | B50: EQ | C50: 21.5 | D50: 21.5 | E50: 20.55 | F50: 20.9 | G50: 20.95 | H50: 21.25 | I50: 30079 | J50: 631621.55 | K50: 2019-07-22 | L50: 50 | M50: INE645W01026
A51: AJANTPHARM | B51: EQ | C51: 920.05 | D51: 927.25 | E51: 908.1 | F51: 914.7 | G51: 911 | H51: 933.3 | I51: 140385 | J51: 128638425.4 | K51: 2019-07-22 | L51: 12379 | M51: INE031B01049
A52: AJMERA | B52: EQ | C52: 137.3 | D52: 139.75 | E52: 133.45 | F52: 136.5 | G52: 137 | H52: 140.3 | I52: 40468 | J52: 5522837.45 | K52: 2019-07-22 | L52: 1575 | M52: INE298G01027
A53: AKSHARCHEM | B53: EQ | C53: 237.6 | D53: 249 | E53: 235 | F53: 237.45 | G53: 236.5 | H53: 246.7 | I53: 2629 | J53: 629153.65 | K53: 2019-07-22 | L53: 187 | M53: INE542B01011
A54: AKSHOPTFBR | B54: EQ | C54: 10.25 | D54: 10.25 | E54: 8.95 | F54: 9.25 | G54: 9.25 | H54: 9.9 | I54: 786878 | J54: 7343773.05 | K54: 2019-07-22 | L54: 1615 | M54: INE523B01011
A55: AKZOINDIA | B55: EQ | C55: 1734.95 | D55: 1735 | E55: 1718.9 | F55: 1730.6 | G55: 1735 | H55: 1727.65 | I55: 2648 | J55: 4564771.8 | K55: 2019-07-22 | L55: 321 | M55: INE133A01011
A56: ALANKIT | B56: EQ | C56: 27.4 | D56: 27.4 | E56: 25.6 | F56: 26.05 | G56: 26 | H56: 26.8 | I56: 433440 | J56: 11440102 | K56: 2019-07-22 | L56: 3524 | M56: INE914E01040
A57: ALBERTDAVD | B57: EQ | C57: 368.5 | D57: 375.7 | E57: 355.1 | F57: 367.85 | G57: 367 | H57: 376.8 | I57: 803 | J57: 296793.95 | K57: 2019-07-22 | L57: 70 | M57: INE155C01010
A58: ALBK | B58: EQ | C58: 41 | D58: 41.8 | E58: 40.3 | F58: 41.15 | G58: 40.8 | H58: 41 | I58: 1805135 | J58: 74201552.3 | K58: 2019-07-22 | L58: 6070 | M58: INE428A01015
A59: ALCHEM | B59: BE | C59: 1.1 | D59: 1.15 | E59: 1.1 | F59: 1.1 | G59: 1.1 | H59: 1.1 | I59: 741 | J59: 830.1 | K59: 2019-07-22 | L59: 5 | M59: INE964B01033
A60: ALEMBICLTD | B60: EQ | C60: 42.85 | D60: 43.2 | E60: 41.95 | F60: 42.95 | G60: 43.1 | H60: 42.5 | I60: 258836 | J60: 11027910.5 | K60: 2019-07-22 | L60: 1493 | M60: INE426A01027
A61: ALICON | B61: EQ | C61: 530 | D61: 530 | E61: 500.5 | F61: 506.95 | G61: 501 | H61: 515.85 | I61: 845 | J61: 427451.3 | K61: 2019-07-22 | L61: 115 | M61: INE062D01024
A62: ALKALI | B62: EQ | C62: 37.7 | D62: 38.85 | E62: 36.25 | F62: 36.65 | G62: 36.3 | H62: 37.7 | I62: 3046 | J62: 112059.7 | K62: 2019-07-22 | L62: 121 | M62: INE773I01017
A63: ALKEM | B63: EQ | C63: 1786.45 | D63: 1806 | E63: 1741.45 | F63: 1797.9 | G63: 1806 | H63: 1798.45 | I63: 20202 | J63: 36031348.2 | K63: 2019-07-22 | L63: 5382 | M63: INE540L01014
A64: ALKYLAMINE | B64: EQ | C64: 786.1 | D64: 811.95 | E64: 778 | F64: 791.4 | G64: 793 | H64: 793.7 | I64: 4429 | J64: 3493901.25 | K64: 2019-07-22 | L64: 240 | M64: INE150B01021
A65: ALLCARGO | B65: EQ | C65: 100 | D65: 100 | E65: 95.7 | F65: 97.6 | G65: 98.5 | H65: 99.6 | I65: 82559 | J65: 8019250.1 | K65: 2019-07-22 | L65: 1087 | M65: INE418H01029
A66: ALLSEC | B66: EQ | C66: 314.95 | D66: 315 | E66: 296.55 | F66: 304.6 | G66: 301.25 | H66: 309.25 | I66: 3382 | J66: 1031434.75 | K66: 2019-07-22 | L66: 173 | M66: INE835G01018
A67: ALMONDZ | B67: EQ | C67: 16.2 | D67: 16.2 | E67: 15.4 | F67: 15.4 | G67: 15.4 | H67: 16.2 | I67: 2547 | J67: 39501.6 | K67: 2019-07-22 | L67: 30 | M67: INE326B01027
A68: ALOKTEXT | B68: EQ | C68: 3.05 | D68: 3.05 | E68: 2.85 | F68: 2.9 | G68: 2.85 | H68: 3 | I68: 2566766 | J68: 7466958.75 | K68: 2019-07-22 | L68: 914 | M68: INE270A01011
A69: ALPA | B69: EQ | C69: 20.9 | D69: 23.05 | E69: 20.25 | F69: 22.4 | G69: 22 | H69: 19.7 | I69: 380549 | J69: 8406324.9 | K69: 2019-07-22 | L69: 3273 | M69: INE385I01010
A70: ALPHAGEO | B70: EQ | C70: 349.9 | D70: 353.5 | E70: 327.05 | F70: 336.25 | G70: 335.25 | H70: 353.15 | I70: 7335 | J70: 2493006.2 | K70: 2019-07-22 | L70: 817 | M70: INE137C01018
A71: ALPSINDUS | B71: BE | C71: 0.8 | D71: 0.8 | E71: 0.75 | F71: 0.75 | G71: 0.75 | H71: 0.8 | I71: 3329 | J71: 2503 | K71: 2019-07-22 | L71: 8 | M71: INE093B01015
A72: AMARAJABAT | B72: EQ | C72: 632 | D72: 632 | E72: 610.55 | F72: 621 | G72: 620 | H72: 610.65 | I72: 1918000 | J72: 1186601327 | K72: 2019-07-22 | L72: 36041 | M72: INE885A01032
A73: AMBER | B73: EQ | C73: 818 | D73: 825 | E73: 780.2 | F73: 809.95 | G73: 806.3 | H73: 833.15 | I73: 10782 | J73: 8690236.7 | K73: 2019-07-22 | L73: 982 | M73: INE371P01015
A74: AMBIKCO | B74: EQ | C74: 980.5 | D74: 988 | E74: 955 | F74: 960.15 | G74: 956 | H74: 990.45 | I74: 4141 | J74: 3999426.55 | K74: 2019-07-22 | L74: 548 | M74: INE540G01014
A75: AMBUJACEM | B75: EQ | C75: 213.5 | D75: 216.7 | E75: 210.55 | F75: 215.8 | G75: 215.05 | H75: 214 | I75: 2095341 | J75: 449359779.4 | K75: 2019-07-22 | L75: 20083 | M75: INE079A01024
A76: AMDIND | B76: EQ | C76: 14.8 | D76: 16 | E76: 14.8 | F76: 15.25 | G76: 15.5 | H76: 15.9 | I76: 2617 | J76: 39602.65 | K76: 2019-07-22 | L76: 52 | M76: INE005I01014
A77: AMJLAND | B77: EQ | C77: 16.55 | D77: 16.85 | E77: 15.75 | F77: 16.25 | G77: 16.7 | H77: 17.2 | I77: 14875 | J77: 242622.25 | K77: 2019-07-22 | L77: 96 | M77: INE606A01024
A78: AMRUTANJAN | B78: EQ | C78: 299.55 | D78: 303 | E78: 290.05 | F78: 300.8 | G78: 299.05 | H78: 297.5 | I78: 14717 | J78: 4361054.75 | K78: 2019-07-22 | L78: 812 | M78: INE098F01031
A79: ANANTRAJ | B79: EQ | C79: 29.4 | D79: 29.4 | E79: 28 | F79: 28.7 | G79: 28.95 | H79: 29.3 | I79: 206288 | J79: 5892081.2 | K79: 2019-07-22 | L79: 752 | M79: INE242C01024
A80: ANDHRABANK | B80: EQ | C80: 22.2 | D80: 22.3 | E80: 21.75 | F80: 21.8 | G80: 21.75 | H80: 22.1 | I80: 398297 | J80: 8703663.4 | K80: 2019-07-22 | L80: 1311 | M80: INE434A01013
A81: ANDHRACEMT | B81: EQ | C81: 3.35 | D81: 3.35 | E81: 3.35 | F81: 3.35 | G81: 3.35 | H81: 3.5 | I81: 82416 | J81: 276093.6 | K81: 2019-07-22 | L81: 71 | M81: INE666E01012
A82: ANDHRSUGAR | B82: EQ | C82: 293 | D82: 293 | E82: 284.85 | F82: 286.6 | G82: 285.55 | H82: 293 | I82: 15787 | J82: 4557630.75 | K82: 2019-07-22 | L82: 683 | M82: INE715B01013
A83: ANIKINDS | B83: EQ | C83: 8.7 | D83: 8.9 | E83: 8.5 | F83: 8.6 | G83: 8.6 | H83: 8.65 | I83: 8930 | J83: 76765.2 | K83: 2019-07-22 | L83: 51 | M83: INE087B01017
A84: ANKITMETAL | B84: BE | C84: 0.5 | D84: 0.55 | E84: 0.5 | F84: 0.55 | G84: 0.55 | H84: 0.5 | I84: 23052 | J84: 12476 | K84: 2019-07-22 | L84: 25 | M84: INE106I01010
A85: ANSALAPI | B85: EQ | C85: 5.05 | D85: 5.1 | E85: 4.7 | F85: 4.85 | G85: 4.8 | H85: 4.9 | I85: 134657 | J85: 664748.15 | K85: 2019-07-22 | L85: 243 | M85: INE436A01026
A86: ANSALHSG | B86: EQ | C86: 5 | D86: 5.1 | E86: 4.65 | F86: 4.9 | G86: 4.9 | H86: 4.95 | I86: 51140 | J86: 252414.75 | K86: 2019-07-22 | L86: 218 | M86: INE880B01015
A87: ANTGRAPHIC | B87: BE | C87: 0.9 | D87: 0.9 | E87: 0.85 | F87: 0.9 | G87: 0.9 | H87: 0.9 | I87: 35068 | J87: 30229.6 | K87: 2019-07-22 | L87: 19 | M87: INE414B01021
A88: ANUP | B88: EQ | C88: 470 | D88: 486 | E88: 447.2 | F88: 482.6 | G88: 486 | H88: 475.7 | I88: 8947 | J88: 4228101.65 | K88: 2019-07-22 | L88: 594 | M88: INE294Z01018
A89: APARINDS | B89: EQ | C89: 539 | D89: 539 | E89: 520 | F89: 523.7 | G89: 523 | H89: 527.6 | I89: 3271 | J89: 1723506.1 | K89: 2019-07-22 | L89: 540 | M89: INE372A01015
A90: APCL | B90: EQ | C90: 152.35 | D90: 156 | E90: 150 | F90: 150 | G90: 150 | H90: 152.35 | I90: 1338 | J90: 202383.1 | K90: 2019-07-22 | L90: 67 | M90: INE071F01012
A91: APCOTEXIND | B91: EQ | C91: 194.35 | D91: 195.95 | E91: 174.1 | F91: 179.25 | G91: 178 | H91: 194.05 | I91: 21820 | J91: 3990779.65 | K91: 2019-07-22 | L91: 906 | M91: INE116A01032
A92: APEX | B92: EQ | C92: 236.1 | D92: 249 | E92: 234.4 | F92: 247 | G92: 247.15 | H92: 236.1 | I92: 94831 | J92: 23020394.75 | K92: 2019-07-22 | L92: 3897 | M92: INE346W01013
A93: APLAPOLLO | B93: EQ | C93: 1486.45 | D93: 1518.8 | E93: 1456.9 | F93: 1493.2 | G93: 1500 | H93: 1499.55 | I93: 49101 | J93: 72372023.65 | K93: 2019-07-22 | L93: 1315 | M93: INE702C01019
A94: APLLTD | B94: EQ | C94: 520.5 | D94: 524.4 | E94: 508.5 | F94: 514.6 | G94: 524.4 | H94: 520.65 | I94: 17082 | J94: 8787864.8 | K94: 2019-07-22 | L94: 1546 | M94: INE901L01018
A95: APOLLO | B95: EQ | C95: 99.3 | D95: 102.75 | E95: 94.1 | F95: 94.95 | G95: 95 | H95: 99.2 | I95: 32847 | J95: 3187216.65 | K95: 2019-07-22 | L95: 835 | M95: INE713T01010
A96: APOLLOHOSP | B96: EQ | C96: 1373.65 | D96: 1389 | E96: 1351 | F96: 1364.65 | G96: 1361.4 | H96: 1373.45 | I96: 344053 | J96: 470582830 | K96: 2019-07-22 | L96: 24834 | M96: INE437A01024
A97: APOLLOTYRE | B97: EQ | C97: 175 | D97: 175.95 | E97: 172.6 | F97: 175 | G97: 174.7 | H97: 174.8 | I97: 2605914 | J97: 454888857.6 | K97: 2019-07-22 | L97: 15508 | M97: INE438A01022
A98: APOLSINHOT | B98: EQ | C98: 874.05 | D98: 920 | E98: 832.4 | F98: 902.15 | G98: 909.85 | H98: 871.6 | I98: 2142 | J98: 1872029.7 | K98: 2019-07-22 | L98: 129 | M98: INE451F01024
A99: APTECHT | B99: EQ | C99: 120 | D99: 120 | E99: 116.2 | F99: 117.85 | G99: 117.6 | H99: 121.8 | I99: 96340 | J99: 11377805.9 | K99: 2019-07-22 | L99: 2091 | M99: INE266F01018
A100: ARCHIDPLY | B100: EQ | C100: 28.85 | D100: 29.3 | E100: 28 | F100: 28.5 | G100: 28.75 | H100: 29 | I100: 2827 | J100: 80525.7 | K100: 2019-07-22 | L100: 114 | M100: INE877I01016
A101: ARCHIES | B101: EQ | C101: 19.35 | D101: 19.35 | E101: 15.9 | F101: 17.15 | G101: 17.35 | H101: 19.35 | I101: 172682 | J101: 2948778.25 | K101: 2019-07-22 | L101: 1003 | M101: INE731A01020
A102: ARCOTECH | B102: EQ | C102: 2.6 | D102: 2.7 | E102: 2.55 | F102: 2.65 | G102: 2.65 | H102: 2.65 | I102: 56242 | J102: 144830.85 | K102: 2019-07-22 | L102: 65 | M102: INE574I01035
A103: ARIES | B103: EQ | C103: 53.9 | D103: 53.9 | E103: 50.05 | F103: 51.45 | G103: 51.4 | H103: 51.8 | I103: 22144 | J103: 1140526.3 | K103: 2019-07-22 | L103: 330 | M103: INE298I01015
A104: ARIHANT | B104: EQ | C104: 20.95 | D104: 22.95 | E104: 20.05 | F104: 20.9 | G104: 20.9 | H104: 21.5 | I104: 1330 | J104: 28530.6 | K104: 2019-07-22 | L104: 18 | M104: INE413D01011
A105: ARIHANTSUP | B105: EQ | C105: 36.3 | D105: 38.65 | E105: 36.3 | F105: 36.8 | G105: 36.6 | H105: 37.85 | I105: 29425 | J105: 1116738.3 | K105: 2019-07-22 | L105: 161 | M105: INE643K01018
A106: ARMANFIN | B106: EQ | C106: 392.1 | D106: 410.1 | E106: 392.1 | F106: 399.95 | G106: 400 | H106: 391.05 | I106: 3090 | J106: 1226597.95 | K106: 2019-07-22 | L106: 89 | M106: INE109C01017
A107: AROGRANITE | B107: EQ | C107: 40.9 | D107: 41.9 | E107: 36 | F107: 38.55 | G107: 37.75 | H107: 40.2 | I107: 17325 | J107: 659309.35 | K107: 2019-07-22 | L107: 316 | M107: INE210C01013
A108: ARROWGREEN | B108: BE | C108: 56.1 | D108: 59.9 | E108: 56 | F108: 56.3 | G108: 56.2 | H108: 58.9 | I108: 8225 | J108: 465763.85 | K108: 2019-07-22 | L108: 92 | M108: INE570D01018
A109: ARROWTEX | B109: EQ | C109: 10.85 | D109: 12.2 | E109: 10.25 | F109: 11.95 | G109: 12 | H109: 10.95 | I109: 8926 | J109: 103629.9 | K109: 2019-07-22 | L109: 90 | M109: INE933J01015
A110: ARSHIYA | B110: EQ | C110: 17.5 | D110: 18.3 | E110: 16.4 | F110: 17.5 | G110: 17.4 | H110: 17.6 | I110: 8116 | J110: 141524.45 | K110: 2019-07-22 | L110: 56 | M110: INE968D01022
A111: ARSSINFRA | B111: EQ | C111: 34 | D111: 34 | E111: 30.95 | F111: 31.6 | G111: 31.05 | H111: 32.55 | I111: 30099 | J111: 945317.5 | K111: 2019-07-22 | L111: 214 | M111: INE267I01010
A112: ARVIND | B112: EQ | C112: 57.65 | D112: 60.25 | E112: 55.65 | F112: 59.3 | G112: 59.75 | H112: 57.4 | I112: 6411959 | J112: 371480628 | K112: 2019-07-22 | L112: 15445 | M112: INE034A01011
A113: ARVINDFASN | B113: EQ | C113: 645 | D113: 655.2 | E113: 640.05 | F113: 651.8 | G113: 651.8 | H113: 649.95 | I113: 24136 | J113: 15708057.7 | K113: 2019-07-22 | L113: 1857 | M113: INE955V01021
A114: ARVSMART | B114: EQ | C114: 91.3 | D114: 94 | E114: 86.1 | F114: 93.25 | G114: 93.8 | H114: 92.85 | I114: 32337 | J114: 2907436.9 | K114: 2019-07-22 | L114: 736 | M114: INE034S01021
A115: ASAHIINDIA | B115: EQ | C115: 199.7 | D115: 204.55 | E115: 198.9 | F115: 202.95 | G115: 202.25 | H115: 200.25 | I115: 14811 | J115: 2969977.35 | K115: 2019-07-22 | L115: 287 | M115: INE439A01020
A116: ASAHISONG | B116: EQ | C116: 128 | D116: 130.9 | E116: 125 | F116: 129.5 | G116: 129.7 | H116: 131 | I116: 1906 | J116: 243794.4 | K116: 2019-07-22 | L116: 128 | M116: INE228I01012
A117: ASAL | B117: EQ | C117: 39.25 | D117: 41.5 | E117: 39.2 | F117: 39.35 | G117: 39.5 | H117: 40 | I117: 4715 | J117: 188677.2 | K117: 2019-07-22 | L117: 60 | M117: INE900C01027
A118: ASHAPURMIN | B118: EQ | C118: 19.2 | D118: 19.85 | E118: 19 | F118: 19.85 | G118: 19.85 | H118: 18.95 | I118: 112906 | J118: 2226249.5 | K118: 2019-07-22 | L118: 170 | M118: INE348A01023
A119: ASHIANA | B119: EQ | C119: 115 | D119: 116 | E119: 114 | F119: 114.95 | G119: 115.5 | H119: 114.85 | I119: 32228 | J119: 3694702.1 | K119: 2019-07-22 | L119: 609 | M119: INE365D01021
A120: ASHIMASYN | B120: EQ | C120: 8.75 | D120: 9.2 | E120: 8 | F120: 8.65 | G120: 8.7 | H120: 8.9 | I120: 35732 | J120: 302015.8 | K120: 2019-07-22 | L120: 261 | M120: INE440A01010
A121: ASHOKA | B121: EQ | C121: 120.5 | D121: 122 | E121: 117.6 | F121: 120 | G121: 120.05 | H121: 122.4 | I121: 99698 | J121: 11910834.65 | K121: 2019-07-22 | L121: 2833 | M121: INE442H01029
A122: ASHOKLEY | B122: EQ | C122: 79.85 | D122: 80.5 | E122: 78.15 | F122: 79.35 | G122: 79.55 | H122: 79.35 | I122: 19431095 | J122: 1544237036 | K122: 2019-07-22 | L122: 60074 | M122: INE208A01029
A123: ASIANHOTNR | B123: EQ | C123: 118 | D123: 122.85 | E123: 118 | F123: 120.15 | G123: 122.55 | H123: 120.2 | I123: 1502 | J123: 180623.3 | K123: 2019-07-22 | L123: 226 | M123: INE363A01022
A124: ASIANPAINT | B124: EQ | C124: 1367.8 | D124: 1410 | E124: 1359.05 | F124: 1404.2 | G124: 1401.15 | H124: 1369.1 | I124: 1279369 | J124: 1783416447 | K124: 2019-07-22 | L124: 50354 | M124: INE021A01026
A125: ASIANTILES | B125: EQ | C125: 228 | D125: 228 | E125: 219.05 | F125: 221.85 | G125: 223.5 | H125: 222.5 | I125: 53850 | J125: 11929900.55 | K125: 2019-07-22 | L125: 2501 | M125: INE022I01019
A126: ASPINWALL | B126: EQ | C126: 145 | D126: 145 | E126: 140 | F126: 144 | G126: 144 | H126: 144.8 | I126: 843 | J126: 121387.1 | K126: 2019-07-22 | L126: 25 | M126: INE991I01015
A127: ASSAMCO | B127: BE | C127: 1.2 | D127: 1.25 | E127: 1.15 | F127: 1.2 | G127: 1.2 | H127: 1.2 | I127: 70025 | J127: 84543.85 | K127: 2019-07-22 | L127: 61 | M127: INE442A01024
A128: ASTEC | B128: EQ | C128: 317 | D128: 325 | E128: 315.5 | F128: 316.6 | G128: 317 | H128: 324.5 | I128: 8514 | J128: 2703199 | K128: 2019-07-22 | L128: 534 | M128: INE563J01010
A129: ASTERDM | B129: EQ | C129: 126.8 | D129: 126.9 | E129: 120.1 | F129: 121.75 | G129: 122.5 | H129: 126.45 | I129: 75683 | J129: 9227616.15 | K129: 2019-07-22 | L129: 1072 | M129: INE914M01019
A130: ASTRAL | B130: EQ | C130: 1255 | D130: 1267.95 | E130: 1226.55 | F130: 1240.45 | G130: 1230.05 | H130: 1278.15 | I130: 18669 | J130: 23161438.95 | K130: 2019-07-22 | L130: 2178 | M130: INE006I01046
A131: ASTRAMICRO | B131: EQ | C131: 77.05 | D131: 79.8 | E131: 76.5 | F131: 79 | G131: 79.75 | H131: 77.9 | I131: 153719 | J131: 11976278.55 | K131: 2019-07-22 | L131: 1677 | M131: INE386C01029
A132: ASTRAZEN | B132: EQ | C132: 1891.45 | D132: 1908.9 | E132: 1834.7 | F132: 1851 | G132: 1848.8 | H132: 1891.45 | I132: 6279 | J132: 11654629.7 | K132: 2019-07-22 | L132: 1101 | M132: INE203A01020
A133: ASTRON | B133: EQ | C133: 98.7 | D133: 100.2 | E133: 90.2 | F133: 92.4 | G133: 90.25 | H133: 101.3 | I133: 254208 | J133: 24800882.65 | K133: 2019-07-22 | L133: 2397 | M133: INE646X01014
A134: ATFL | B134: EQ | C134: 479.55 | D134: 500.35 | E134: 475.25 | F134: 494.8 | G134: 493.3 | H134: 482.3 | I134: 9747 | J134: 4780277.35 | K134: 2019-07-22 | L134: 519 | M134: INE209A01019
A135: ATLANTA | B135: EQ | C135: 8.4 | D135: 8.55 | E135: 8.15 | F135: 8.2 | G135: 8.35 | H135: 8.55 | I135: 25338 | J135: 208818.9 | K135: 2019-07-22 | L135: 150 | M135: INE285H01022
A136: ATLASCYCLE | B136: BE | C136: 42.8 | D136: 44 | E136: 40.1 | F136: 41.2 | G136: 41.35 | H136: 42 | I136: 2245 | J136: 92583.6 | K136: 2019-07-22 | L136: 45 | M136: INE446A01025
A137: ATNINTER | B137: BE | C137: 0.25 | D137: 0.25 | E137: 0.2 | F137: 0.25 | G137: 0.25 | H137: 0.2 | I137: 3181 | J137: 729.75 | K137: 2019-07-22 | L137: 14 | M137: INE803A01027
A138: ATUL | B138: EQ | C138: 3650 | D138: 3670.15 | E138: 3530 | F138: 3603 | G138: 3580 | H138: 3670.2 | I138: 7438 | J138: 26830260.45 | K138: 2019-07-22 | L138: 2022 | M138: INE100A01010
A139: ATULAUTO | B139: EQ | C139: 260 | D139: 267.2 | E139: 260 | F139: 260.4 | G139: 260 | H139: 262.7 | I139: 10756 | J139: 2814993.55 | K139: 2019-07-22 | L139: 509 | M139: INE951D01028
A140: AUBANK | B140: EQ | C140: 660.2 | D140: 674 | E140: 651.15 | F140: 656.15 | G140: 659 | H140: 659.35 | I140: 154270 | J140: 102122923.5 | K140: 2019-07-22 | L140: 11402 | M140: INE949L01017
A141: AURIONPRO | B141: EQ | C141: 102.95 | D141: 108.5 | E141: 100.95 | F141: 102.65 | G141: 102 | H141: 102.4 | I141: 22597 | J141: 2375802.05 | K141: 2019-07-22 | L141: 254 | M141: INE132H01018
A142: AUROPHARMA | B142: EQ | C142: 552.4 | D142: 574.8 | E142: 546.05 | F142: 570.15 | G142: 571.5 | H142: 552.4 | I142: 3091201 | J142: 1749575590 | K142: 2019-07-22 | L142: 55368 | M142: INE406A01037
A143: AUSOMENT | B143: EQ | C143: 35.5 | D143: 35.5 | E143: 33.9 | F143: 33.95 | G143: 33.95 | H143: 33.85 | I143: 1956 | J143: 66510.15 | K143: 2019-07-22 | L143: 53 | M143: INE218C01016
A144: AUTOAXLES | B144: EQ | C144: 868.6 | D144: 877.45 | E144: 841.3 | F144: 859.55 | G144: 862 | H144: 884.45 | I144: 11783 | J144: 10118119.75 | K144: 2019-07-22 | L144: 922 | M144: INE449A01011
A145: AUTOIND | B145: EQ | C145: 46 | D145: 46.4 | E145: 44.9 | F145: 44.95 | G145: 44.9 | H145: 46.85 | I145: 7556 | J145: 341395.7 | K145: 2019-07-22 | L145: 103 | M145: INE718H01014
A146: AVADHSUGAR | B146: EQ | C146: 260 | D146: 274.9 | E146: 256 | F146: 263.1 | G146: 264.95 | H146: 262.65 | I146: 79219 | J146: 20943123.7 | K146: 2019-07-22 | L146: 2341 | M146: INE349W01017
A147: AVANTIFEED | B147: EQ | C147: 322.7 | D147: 347.9 | E147: 321 | F147: 335.6 | G147: 334.25 | H147: 313.85 | I147: 1351334 | J147: 452859003.6 | K147: 2019-07-22 | L147: 32680 | M147: INE871C01038
A148: AVTNPL | B148: EQ | C148: 22.1 | D148: 22.7 | E148: 21.95 | F148: 22.05 | G148: 22 | H148: 22.35 | I148: 11167 | J148: 246716.35 | K148: 2019-07-22 | L148: 129 | M148: INE488D01021
A149: AXISBANK | B149: EQ | C149: 730 | D149: 738.5 | E149: 720 | F149: 727.45 | G149: 727.1 | H149: 729.25 | I149: 7020071 | J149: 5116503681 | K149: 2019-07-22 | L149: 159615 | M149: INE238A01034
A150: AXISCADES | B150: EQ | C150: 67 | D150: 70 | E150: 62.55 | F150: 66.3 | G150: 67.35 | H150: 67.55 | I150: 337905 | J150: 22245584 | K150: 2019-07-22 | L150: 3923 | M150: INE555B01013
A151: AXISGOLD | B151: EQ | C151: 3094 | D151: 3094.5 | E151: 3062 | F151: 3066.65 | G151: 3069.9 | H151: 3075.9 | I151: 361 | J151: 1113623.6 | K151: 2019-07-22 | L151: 69 | M151: INF846K01347
A152: AXISNIFTY | B152: EQ | C152: 1176.36 | D152: 1176.36 | E152: 1158.92 | F152: 1169.1 | G152: 1168.21 | H152: 1176.35 | I152: 103 | J152: 120149.86 | K152: 2019-07-22 | L152: 29 | M152: INF846K01ZL0
A153: AYMSYNTEX | B153: EQ | C153: 32.65 | D153: 34.8 | E153: 29.15 | F153: 30 | G153: 30.45 | H153: 32.95 | I153: 45085 | J153: 1380785.55 | K153: 2019-07-22 | L153: 408 | M153: INE193B01039
A154: BAFNAPHARM | B154: BE | C154: 6.1 | D154: 6.2 | E154: 6.1 | F154: 6.1 | G154: 6.1 | H154: 6.4 | I154: 14 | J154: 86.2 | K154: 2019-07-22 | L154: 3 | M154: INE878I01014
A155: BAGFILMS | B155: EQ | C155: 3.15 | D155: 3.25 | E155: 3 | F155: 3.15 | G155: 3.15 | H155: 3.05 | I155: 28655 | J155: 89359.35 | K155: 2019-07-22 | L155: 78 | M155: INE116D01028
A156: BAJAJ-AUTO | B156: EQ | C156: 2560 | D156: 2609.95 | E156: 2514.45 | F156: 2562.9 | G156: 2569 | H156: 2558.25 | I156: 407638 | J156: 1043849993 | K156: 2019-07-22 | L156: 39268 | M156: INE917I01010
A157: BAJAJCON | B157: EQ | C157: 301.1 | D157: 301.1 | E157: 288.75 | F157: 290.75 | G157: 290.25 | H157: 298.7 | I157: 26259 | J157: 7654660.7 | K157: 2019-07-22 | L157: 1984 | M157: INE933K01021
A158: BAJAJELEC | B158: EQ | C158: 448.6 | D158: 451 | E158: 441.25 | F158: 447.1 | G158: 447 | H158: 451.85 | I158: 40498 | J158: 18018792.15 | K158: 2019-07-22 | L158: 1643 | M158: INE193E01025
A159: BAJAJFINSV | B159: EQ | C159: 7541 | D159: 7544 | E159: 7080.8 | F159: 7162.45 | G159: 7144.9 | H159: 7566.35 | I159: 693477 | J159: 5004039164 | K159: 2019-07-22 | L159: 84724 | M159: INE918I01018
A160: BAJAJHIND | B160: EQ | C160: 7.05 | D160: 7.1 | E160: 6.9 | F160: 7 | G160: 7.05 | H160: 7.05 | I160: 655713 | J160: 4588887.75 | K160: 2019-07-22 | L160: 995 | M160: INE306A01021
A161: BAJAJHLDNG | B161: EQ | C161: 3475 | D161: 3511.95 | E161: 3395.9 | F161: 3431 | G161: 3445.1 | H161: 3500.05 | I161: 30928 | J161: 106160468.3 | K161: 2019-07-22 | L161: 3072 | M161: INE118A01012
A162: BAJFINANCE | B162: EQ | C162: 3316 | D162: 3316 | E162: 3164.65 | F162: 3246.6 | G162: 3257 | H162: 3323.1 | I162: 3692023 | J162: 1.191110622e+10 | K162: 2019-07-22 | L162: 247193 | M162: INE296A01024
A163: BALAJITELE | B163: EQ | C163: 52.75 | D163: 54.5 | E163: 52 | F163: 53.4 | G163: 54.4 | H163: 53.15 | I163: 24504 | J163: 1297149.4 | K163: 2019-07-22 | L163: 315 | M163: INE794B01026
A164: BALAMINES | B164: EQ | C164: 281 | D164: 284.1 | E164: 261.1 | F164: 263 | G164: 263.5 | H164: 284.1 | I164: 50758 | J164: 13593106.6 | K164: 2019-07-22 | L164: 1754 | M164: INE050E01027
A165: BALAXI | B165: BE | C165: 72.05 | D165: 72.05 | E165: 72.05 | F165: 72.05 | G165: 72.05 | H165: 75.8 | I165: 792 | J165: 57063.6 | K165: 2019-07-22 | L165: 15 | M165: INE618N01014
A166: BALKRISHNA | B166: EQ | C166: 24.8 | D166: 24.8 | E166: 22.55 | F166: 22.7 | G166: 22.6 | H166: 24.75 | I166: 9244 | J166: 215793.1 | K166: 2019-07-22 | L166: 170 | M166: INE875R01011
A167: BALKRISIND | B167: EQ | C167: 721.1 | D167: 735.2 | E167: 719 | F167: 732.6 | G167: 733 | H167: 728.65 | I167: 274461 | J167: 199822384.6 | K167: 2019-07-22 | L167: 8445 | M167: INE787D01026
A168: BALLARPUR | B168: EQ | C168: 1.1 | D168: 1.2 | E168: 1.1 | F168: 1.1 | G168: 1.1 | H168: 1.15 | I168: 1442375 | J168: 1614440.35 | K168: 2019-07-22 | L168: 367 | M168: INE294A01037
A169: BALMLAWRIE | B169: EQ | C169: 175 | D169: 176.2 | E169: 173 | F169: 174.05 | G169: 173.75 | H169: 175.75 | I169: 35229 | J169: 6153082.55 | K169: 2019-07-22 | L169: 1230 | M169: INE164A01016
A170: BALPHARMA | B170: EQ | C170: 48.25 | D170: 49 | E170: 47.15 | F170: 47.85 | G170: 47.95 | H170: 49.25 | I170: 2960 | J170: 141845.95 | K170: 2019-07-22 | L170: 90 | M170: INE083D01012
A171: BALRAMCHIN | B171: EQ | C171: 146.8 | D171: 152.15 | E171: 144.35 | F171: 147.75 | G171: 147.8 | H171: 146.8 | I171: 877933 | J171: 130274686.3 | K171: 2019-07-22 | L171: 26077 | M171: INE119A01028
A172: BANARBEADS | B172: EQ | C172: 44 | D172: 44.65 | E172: 43.75 | F172: 44.1 | G172: 44.65 | H172: 44 | I172: 3703 | J172: 163066.05 | K172: 2019-07-22 | L172: 26 | M172: INE655B01011
A173: BANARISUG | B173: EQ | C173: 1400 | D173: 1400.05 | E173: 1400 | F173: 1400 | G173: 1400 | H173: 1405 | I173: 1213 | J173: 1698200.05 | K173: 2019-07-22 | L173: 24 | M173: INE459A01010
A174: BANCOINDIA | B174: EQ | C174: 103 | D174: 105.9 | E174: 103 | F174: 104.25 | G174: 104 | H174: 105.4 | I174: 13195 | J174: 1377413.7 | K174: 2019-07-22 | L174: 323 | M174: INE213C01025
A175: BANDHANBNK | B175: EQ | C175: 530 | D175: 530 | E175: 498 | F175: 501.3 | G175: 500 | H175: 527.35 | I175: 700676 | J175: 358223067.5 | K175: 2019-07-22 | L175: 27711 | M175: INE545U01014
A176: BANG | B176: EQ | C176: 38.3 | D176: 38.3 | E176: 33.5 | F176: 35.7 | G176: 35 | H176: 37.15 | I176: 9051 | J176: 316386.45 | K176: 2019-07-22 | L176: 185 | M176: INE863I01016
A177: BANKBARODA | B177: EQ | C177: 118 | D177: 119.35 | E177: 115.85 | F177: 118.35 | G177: 118.45 | H177: 118 | I177: 18668714 | J177: 2197053500 | K177: 2019-07-22 | L177: 55775 | M177: INE028A01039
A178: BANKBEES | B178: EQ | C178: 2981 | D178: 3027.4 | E178: 2955.1 | F178: 2982.53 | G178: 2989 | H178: 3031.59 | I178: 75903 | J178: 226752166.3 | K178: 2019-07-22 | L178: 1288 | M178: INF732E01078
A179: BANKINDIA | B179: EQ | C179: 80 | D179: 81 | E179: 78.8 | F179: 80.65 | G179: 80.6 | H179: 80.15 | I179: 7350038 | J179: 589028695.3 | K179: 2019-07-22 | L179: 21593 | M179: INE084A01016
A180: BANSWRAS | B180: EQ | C180: 65.25 | D180: 66.5 | E180: 64 | F180: 65.1 | G180: 66 | H180: 67 | I180: 1376 | J180: 89375.65 | K180: 2019-07-22 | L180: 36 | M180: INE629D01012
A181: BARTRONICS | B181: EQ | C181: 3.2 | D181: 3.3 | E181: 3.05 | F181: 3.2 | G181: 3.25 | H181: 3.2 | I181: 4448 | J181: 14134.75 | K181: 2019-07-22 | L181: 35 | M181: INE855F01034
A182: BASF | B182: EQ | C182: 1120.05 | D182: 1120.05 | E182: 1079 | F182: 1082.65 | G182: 1079 | H182: 1122.2 | I182: 7382 | J182: 8083405.5 | K182: 2019-07-22 | L182: 779 | M182: INE373A01013
A183: BASML | B183: EQ | C183: 135.55 | D183: 142 | E183: 135.5 | F183: 138.35 | G183: 137.25 | H183: 138.15 | I183: 745 | J183: 102424.75 | K183: 2019-07-22 | L183: 29 | M183: INE186H01014
A184: BATAINDIA | B184: EQ | C184: 1262.7 | D184: 1292 | E184: 1262 | F184: 1280 | G184: 1283.75 | H184: 1294.7 | I184: 929567 | J184: 1188740535 | K184: 2019-07-22 | L184: 29686 | M184: INE176A01028
A185: BAYERCROP | B185: EQ | C185: 3216 | D185: 3255 | E185: 3201.95 | F185: 3234.3 | G185: 3227 | H185: 3286.55 | I185: 3087 | J185: 9960043.55 | K185: 2019-07-22 | L185: 1193 | M185: INE462A01022
A186: BBL | B186: EQ | C186: 971.5 | D186: 974.9 | E186: 946.8 | F186: 951.2 | G186: 946.8 | H186: 976.85 | I186: 3367 | J186: 3226323.95 | K186: 2019-07-22 | L186: 435 | M186: INE464A01028
A187: BBTC | B187: EQ | C187: 899.7 | D187: 899.7 | E187: 861.1 | F187: 879.8 | G187: 881 | H187: 896.85 | I187: 47644 | J187: 41973431.9 | K187: 2019-07-22 | L187: 3186 | M187: INE050A01025
A188: BCG | B188: EQ | C188: 3.65 | D188: 3.65 | E188: 3.35 | F188: 3.35 | G188: 3.35 | H188: 3.5 | I188: 330820 | J188: 1125143.9 | K188: 2019-07-22 | L188: 189 | M188: INE425B01027
A189: BDL | B189: EQ | C189: 308 | D189: 308 | E189: 295.25 | F189: 299.95 | G189: 299.85 | H189: 304.7 | I189: 29385 | J189: 8793143.95 | K189: 2019-07-22 | L189: 1262 | M189: INE171Z01018
A190: BEARDSELL | B190: EQ | C190: 14.95 | D190: 14.95 | E190: 13.7 | F190: 14.25 | G190: 14.5 | H190: 14.25 | I190: 583 | J190: 8506.65 | K190: 2019-07-22 | L190: 20 | M190: INE520H01022
A191: BEDMUTHA | B191: EQ | C191: 17.1 | D191: 17.1 | E191: 15.1 | F191: 15.5 | G191: 15.5 | H191: 16.05 | I191: 2499 | J191: 38625.55 | K191: 2019-07-22 | L191: 51 | M191: INE844K01012
A192: BEL | B192: EQ | C192: 98.4 | D192: 101.75 | E192: 95.8 | F192: 100.5 | G192: 100.45 | H192: 98.55 | I192: 13720516 | J192: 1364926329 | K192: 2019-07-22 | L192: 60087 | M192: INE263A01024
A193: BEML | B193: EQ | C193: 911.95 | D193: 911.95 | E193: 887 | F193: 892.95 | G193: 889.85 | H193: 912.05 | I193: 513715 | J193: 461201911.6 | K193: 2019-07-22 | L193: 18690 | M193: INE258A01016
A194: BEPL | B194: EQ | C194: 64 | D194: 64.1 | E194: 61.55 | F194: 62.45 | G194: 62.7 | H194: 64.45 | I194: 197892 | J194: 12392306.7 | K194: 2019-07-22 | L194: 2566 | M194: INE922A01025
A195: BERGEPAINT | B195: EQ | C195: 307.65 | D195: 311 | E195: 305.95 | F195: 308.05 | G195: 307 | H195: 309.15 | I195: 606070 | J195: 186633258.4 | K195: 2019-07-22 | L195: 6742 | M195: INE463A01038
A196: BFINVEST | B196: EQ | C196: 272 | D196: 274.25 | E196: 268.15 | F196: 269.9 | G196: 271.4 | H196: 270.7 | I196: 68413 | J196: 18498301.8 | K196: 2019-07-22 | L196: 7141 | M196: INE878K01010
A197: BFUTILITIE | B197: EQ | C197: 227.25 | D197: 232.75 | E197: 218.55 | F197: 223.9 | G197: 223.75 | H197: 225.2 | I197: 904002 | J197: 202986207.9 | K197: 2019-07-22 | L197: 15877 | M197: INE243D01012
A198: BGLOBAL | B198: BE | C198: 1.4 | D198: 1.4 | E198: 1.35 | F198: 1.35 | G198: 1.35 | H198: 1.4 | I198: 7079 | J198: 9562.7 | K198: 2019-07-22 | L198: 15 | M198: INE224M01013
A199: BGRENERGY | B199: EQ | C199: 45.95 | D199: 46.6 | E199: 44.1 | F199: 45.1 | G199: 45 | H199: 46.2 | I199: 45166 | J199: 2030871.6 | K199: 2019-07-22 | L199: 648 | M199: INE661I01014
A200: BHAGERIA | B200: EQ | C200: 121.8 | D200: 121.95 | E200: 115 | F200: 118.05 | G200: 120.9 | H200: 121.8 | I200: 11793 | J200: 1383226.75 | K200: 2019-07-22 | L200: 262 | M200: INE354C01027
... 1458 more rows

Sheet Sheet1 (hidden)

Sheet Sheet3 (hidden)

Sheet Sheet4 (hidden)
